Workbook

Sheet Title
C1: CENTERS FOR DISEASE CONTROL & PREVENTION (CDC)
G4: Maxi-Vac Alternative 2.0*
A5: A tool for planning smallpox vaccination clinics and mass vaccination sites
A7: Contributors to the Spreadsheet Adaptation: Castonguay, François M.; Fischer, Leah S.; Jeon, S; Washington, Michael L.; Meltzer, Martin I.
A10: Date of this version:
A11: 2021-10-08
G17: Contact Info: HEMU@cdc.gov

Sheet Introduction
A1: Introduction
C3: About the Tool | L3: Navigation and Instructions
N5: Click the arrow buttons on the upper right corner to navigate through the tool.
L7: User Input | N7: Peach-colored cells are designated user input cells in which users will select from a drop down menu or enter a value. There are four peach/user input cells in this tool.
C8: Background
L9: Calculated, fixed, or linked cell | N9: Grey cells contain formula, calculated values, or fixed factors; they are automatically updated based on user entries in the yellow cells.
L11: Pop-up box | N11: Bright yellow buttons are for pop-up boxes on tabs 1-4 that contain additional information or helpful hints regarding variable user inputs.
C12: Description of the Simulation Model
L13: Pop-up box | N13: Red buttons are for pop-up boxes on tabs 5-7 that contain interpretation for results.
C17: How to Choose Between Maxi-Vac and Maxi-Vac Alternative
C23: Data Sources
C28: Additional Reference

Sheet 1. Personnel
A1: 1. Select the number of staff available per 12-hour shift
B9: Number of shifts per 24-hour period (cannot be changed): | I9: 2
B11: Select number of physicians per shift from pulldown menu: | I11: 1
B13: Select number of nurses* per shift from pulldown menu: | I13: 15
B15: Select number of other staff per shift from pulldown menu: | I15: 10
B18: Total Staff
B19: Total number of physicians in a 24-hour period: | I19: =I11*I9 -> 2
B21: Total number of nurses in a 24-hour period: | I21: =I13*I9 -> 30
B23: Total number of other staff in a 24-hour period: | I23: =I15*I9 -> 20
B25: Total staff in a 24-hour period: | I25: =I19+I21+I23 -> 52

Sheet 2. Activities
A1: 2. Indicate the station's activities supported
J4: Dropdown menu options
H6: Activities that cannot be opt out of | J6: Yes
B8: Select Yes/No for "orientation" from pulldown menu: | E8: Yes | H8: Size of orientation room | J8: 30
H10: Number of physicians | J10: 1 | K10: 3
H12: Number of nurses | J12: 5 | K12: 15 | L12: 30
H14: Number of other staff | J14: 5 | K14: 10
H16: Orientation | J16: Yes | K16: No
B17: Select Yes/No for "witness" from pulldown menu: | E17: Yes
H18: Witness | J18: Yes | K18: No
H20: Percentage of families | J20: 0.2 | K20: 0.4
H21: sent to medical screeners
J23: 0.02 | K23: 0.02 | L23: 0.1

Sheet 3. % of Families
A1: 3. Enter percentages of families
B6: Percentage of families turned away at triage: | K6: 0.02
B8: Percentage of families that need to be treated elsewhere: | K8: 0.02
B10: Select percentage of families sent to medical screeners from pulldown menu: | K10: 0.2
B12: Percentage of families to see physician evaluator: | K12: 0.1

Sheet 4. Scenario Summary
A1: 4. Scenario Summary
B3: Number of physicians per shift: | E3: =IF('1. Personnel'!I11=0,"*ERROR*",'1. Personnel'!I11) -> 1
B4: Number of nurses per shift: | E4: =IF('1. Personnel'!I13=0,"*ERROR*",'1. Personnel'!I13) -> 15
B5: Number of other staff per shift: | E5: =IF('1. Personnel'!I15=0,"*ERROR*",'1. Personnel'!I15) -> 10
B6: Total staff per shift | E6: =E3+E4+E5 -> 26
B8: Total staff per 24 hours | E8: ='1. Personnel'!I9*'4. Scenario Summary'!E6 -> 52
D10: Orientation: | E10: =IF('2. Activities'!E8=0,"*ERROR*",'2. Activities'!E8) -> Yes
B13: Percentage of families sent to medical screeners: | E13: =IF('3. % of Families'!K10=0,"*ERROR*",'3. % of Families'!K10) -> 0.2
D17: Witness: | E17: =IF('2. Activities'!E17=0,"*ERROR*",'2. Activities'!E17) -> Yes

Sheet 5. Results – Vaccinated & Staff
A1: 5. Results for People Treated & Staff Placement and Utilization
B3: Total number of staff available per shift: | E3: ='1. Personnel'!I11+'1. Personnel'!I13+'1. Personnel'!I15 -> 26
B4: Actual number of staff used per shift: | E4: ='Results INDEX-MATCH'!F11 -> 19
B5: Maximum number of people that can be treated in a 24-hour period: | E5: ='Results INDEX-MATCH'!F12 -> 3317
B7: Optimal Staff Placement by Station per Shift | G7: Staff Utilization (Percentage of Time Busy) per Shift
B8: Station Description | C8: Physicians | D8: Nurses | E8: Other Staff | G8: Station Description | H8: Physicians | I8: Nurses | J8: Other Staff
B9: Triage personnel | C9: =IF('Results INDEX-MATCH'!C17="na",0,'Results INDEX-MATCH'!C17) -> 0 | D9: =IF('Results INDEX-MATCH'!D17="na",0,'Results INDEX-MATCH'!D17) -> 3 | E9: =IF('Results INDEX-MATCH'!E17="na",0,'Results INDEX-MATCH'!E17) -> 0 | G9: Triage personnel | H9: =IF('Results INDEX-MATCH'!C32="na",0,'Results INDEX-MATCH'!C32) -> 0 | I9: =IF('Results INDEX-MATCH'!D32="na",0,'Results INDEX-MATCH'!D32) -> 99.6 | J9: =IF('Results INDEX-MATCH'!E32="na",0,'Results INDEX-MATCH'!E32) -> 0
B10: Orientation personnel | C10: =IF('Results INDEX-MATCH'!C18="na",0,'Results INDEX-MATCH'!C18) -> 0 | D10: =IF('Results INDEX-MATCH'!D18="na",0,'Results INDEX-MATCH'!D18) -> 0 | E10: =IF('Results INDEX-MATCH'!E18="na",0,'Results INDEX-MATCH'!E18) -> 2 | G10: Orientation personnel | H10: =IF('Results INDEX-MATCH'!C33="na",0,'Results INDEX-MATCH'!C33) -> 0 | I10: =IF('Results INDEX-MATCH'!D33="na",0,'Results INDEX-MATCH'!D33) -> 0 | J10: =IF('Results INDEX-MATCH'!E33="na",0,'Results INDEX-MATCH'!E33) -> 53.5
B11: Medical form helper | C11: =IF('Results INDEX-MATCH'!C19="na",0,'Results INDEX-MATCH'!C19) -> 0 | D11: =IF('Results INDEX-MATCH'!D19="na",0,'Results INDEX-MATCH'!D19) -> 0 | E11: =IF('Results INDEX-MATCH'!E19="na",0,'Results INDEX-MATCH'!E19) -> 1 | G11: Medical form helper | H11: =IF('Results INDEX-MATCH'!C34="na",0,'Results INDEX-MATCH'!C34) -> 0 | I11: =IF('Results INDEX-MATCH'!D34="na",0,'Results INDEX-MATCH'!D34) -> 0 | J11: =IF('Results INDEX-MATCH'!E34="na",0,'Results INDEX-MATCH'!E34) -> 11.3
B12: Referral personnel | C12: =IF('Results INDEX-MATCH'!C20="na",0,'Results INDEX-MATCH'!C20) -> 0 | D12: =IF('Results INDEX-MATCH'!D20="na",0,'Results INDEX-MATCH'!D20) -> 0 | E12: =IF('Results INDEX-MATCH'!E20="na",0,'Results INDEX-MATCH'!E20) -> 1 | G12: Referral personnel | H12: =IF('Results INDEX-MATCH'!C35="na",0,'Results INDEX-MATCH'!C35) -> 0 | I12: =IF('Results INDEX-MATCH'!D35="na",0,'Results INDEX-MATCH'!D35) -> 0 | J12: =IF('Results INDEX-MATCH'!E35="na",0,'Results INDEX-MATCH'!E35) -> 65.3
B13: Medical screener | C13: =IF('Results INDEX-MATCH'!C21="na",0,'Results INDEX-MATCH'!C21) -> 0 | D13: =IF('Results INDEX-MATCH'!D21="na",0,'Results INDEX-MATCH'!D21) -> 2 | E13: =IF('Results INDEX-MATCH'!E21="na",0,'Results INDEX-MATCH'!E21) -> 0 | G13: Medical screener | H13: =IF('Results INDEX-MATCH'!C36="na",0,'Results INDEX-MATCH'!C36) -> 0 | I13: =IF('Results INDEX-MATCH'!D36="na",0,'Results INDEX-MATCH'!D36) -> 38.7 | J13: =IF('Results INDEX-MATCH'!E36="na",0,'Results INDEX-MATCH'!E36) -> 0
B14: Physician evaluator | C14: =IF('Results INDEX-MATCH'!C22="na",0,'Results INDEX-MATCH'!C22) -> 1 | D14: =IF('Results INDEX-MATCH'!D22="na",0,'Results INDEX-MATCH'!D22) -> 0 | E14: =IF('Results INDEX-MATCH'!E22="na",0,'Results INDEX-MATCH'!E22) -> 0 | G14: Physician evaluator | H14: =IF('Results INDEX-MATCH'!C37="na",0,'Results INDEX-MATCH'!C37) -> 45.1 | I14: =IF('Results INDEX-MATCH'!D37="na",0,'Results INDEX-MATCH'!D37) -> 0 | J14: =IF('Results INDEX-MATCH'!E37="na",0,'Results INDEX-MATCH'!E37) -> 0
B15: Vaccinator | C15: =IF('Results INDEX-MATCH'!C23="na",0,'Results INDEX-MATCH'!C23) -> 0 | D15: =IF('Results INDEX-MATCH'!D23="na",0,'Results INDEX-MATCH'!D23) -> 4 | E15: =IF('Results INDEX-MATCH'!E23="na",0,'Results INDEX-MATCH'!E23) -> 0 | G15: Vaccinator | H15: =IF('Results INDEX-MATCH'!C38="na",0,'Results INDEX-MATCH'!C38) -> 0 | I15: =IF('Results INDEX-MATCH'!D38="na",0,'Results INDEX-MATCH'!D38) -> 92.3 | J15: =IF('Results INDEX-MATCH'!E38="na",0,'Results INDEX-MATCH'!E38) -> 0
B16: Witness | C16: =IF('Results INDEX-MATCH'!C24="na",0,'Results INDEX-MATCH'!C24) -> 0 | D16: =IF('Results INDEX-MATCH'!D24="na",0,'Results INDEX-MATCH'!D24) -> 4 | E16: =IF('Results INDEX-MATCH'!E24="na",0,'Results INDEX-MATCH'!E24) -> 0 | G16: Witness | H16: =IF('Results INDEX-MATCH'!C39="na",0,'Results INDEX-MATCH'!C39) -> 0 | I16: =IF('Results INDEX-MATCH'!D39="na",0,'Results INDEX-MATCH'!D39) -> 92.3 | J16: =IF('Results INDEX-MATCH'!E39="na",0,'Results INDEX-MATCH'!E39) -> 0
B17: Exit review Personnel | C17: =IF('Results INDEX-MATCH'!C25="na",0,'Results INDEX-MATCH'!C25) -> 0 | D17: =IF('Results INDEX-MATCH'!D25="na",0,'Results INDEX-MATCH'!D25) -> 1 | E17: =IF('Results INDEX-MATCH'!E25="na",0,'Results INDEX-MATCH'!E25) -> 0 | G17: Exit review Personnel | H17: =IF('Results INDEX-MATCH'!C40="na",0,'Results INDEX-MATCH'!C40) -> 0 | I17: =IF('Results INDEX-MATCH'!D40="na",0,'Results INDEX-MATCH'!D40) -> 18.7 | J17: =IF('Results INDEX-MATCH'!E40="na",0,'Results INDEX-MATCH'!E40) -> 0
B18: Total | C18: =SUM(C9:C17) -> 1 | D18: =SUM(D9:D17) -> 14 | E18: =SUM(E9:E17) -> 4

Sheet 6. Results – Time & Auxiliary
A1: 6. Results for Average Time Spent & Auxiliary Staff
B3: Average Time Families Spent at Each Station (in Minutes) | E3: Auxiliary Staff
E4: Station Description | F4: Number per shift
B5: Station Description | C5: Average time (in minutes) | E5: Form distribution | F5: 9
B6: Triage | C6: ='Results INDEX-MATCH'!C77 -> 4.32 | E6: Vaccine preparation | F6: 2
B7: Orientation | C7: =IF('Results INDEX-MATCH'!C78="na",0,'Results INDEX-MATCH'!C78) -> 19.821 | E7: Medical records data | F7: 10
B8: Medical froms help | C8: ='Results INDEX-MATCH'!C79 -> 12.293 | E8: Clinic manager | F8: 2
B9: Referral | C9: ='Results INDEX-MATCH'!C80 -> 2.984 | E9: Supply manager | F9: 2
B10: Medical screening | C10: ='Results INDEX-MATCH'!C81 -> 4.161 | E10: Clinic QA reviewer | F10: 4
B11: Physician evaluation | C11: ='Results INDEX-MATCH'!C82 -> 48.236 | E11: Security | F11: 20
B12: Vaccination | C12: ='Results INDEX-MATCH'!C83 -> 10.879 | E12: Traffic flow | F12: 2
B13: Witness | C13: =IF('Results INDEX-MATCH'!C84="na",0,'Results INDEX-MATCH'!C84) -> 10.879 | E13: Translator | F13: 1 (per major language)
B14: Review/Exit | C14: ='Results INDEX-MATCH'!C85 -> 0.33 | E14: Float staff | F14: 3
E15: Contact evaluation | F15: 4
E16: EMT | F16: 1
E17: IT support | F17: 1
E18: Total | F18: =SUM(F5:F12)+SUM(F14:F17)+1 -> 61

Sheet 7. Results – Adding & Removing
A1: 7. Results for Impact/Minus One & Impact/Plus One
B3: Impact on the Number of People Treated by Removing One Staff per Station per Shift | G3: Impact on the Number of People Treated by Adding One Staff per Station per Shift
B5: Station Description | C5: Physicians | D5: Nurses | E5: Other Staff | G5: Station Description | H5: Physicians | I5: Nurses | J5: Other Staff
B6: Triage | C6: ='Results INDEX-MATCH'!C47 -> na | D6: ='Results INDEX-MATCH'!D47 -> -1109 | E6: ='Results INDEX-MATCH'!E47 -> na | G6: Triage | H6: ='Results INDEX-MATCH'!C62 -> na | I6: ='Results INDEX-MATCH'!D62 -> 202 | J6: ='Results INDEX-MATCH'!E62 -> na
B7: Orientation | C7: ='Results INDEX-MATCH'!C48 -> na | D7: ='Results INDEX-MATCH'!D48 -> na | E7: ='Results INDEX-MATCH'!E48 -> -235 | G7: Orientation | H7: ='Results INDEX-MATCH'!C63 -> na | I7: ='Results INDEX-MATCH'!D63 -> na | J7: ='Results INDEX-MATCH'!E63 -> 0
B8: Medical froms help | C8: ='Results INDEX-MATCH'!C49 -> na | D8: ='Results INDEX-MATCH'!D49 -> na | E8: ='Results INDEX-MATCH'!E49 -> NA | G8: Medical froms help | H8: ='Results INDEX-MATCH'!C64 -> na | I8: ='Results INDEX-MATCH'!D64 -> na | J8: ='Results INDEX-MATCH'!E64 -> 0
B9: Referral | C9: ='Results INDEX-MATCH'!C50 -> na | D9: ='Results INDEX-MATCH'!D50 -> na | E9: ='Results INDEX-MATCH'!E50 -> -834 | G9: Referral | H9: ='Results INDEX-MATCH'!C65 -> na | I9: ='Results INDEX-MATCH'!D65 -> na | J9: ='Results INDEX-MATCH'!E65 -> 3
B10: Medical screening | C10: ='Results INDEX-MATCH'!C51 -> na | D10: ='Results INDEX-MATCH'!D51 -> NA | E10: ='Results INDEX-MATCH'!E51 -> na | G10: Medical screening | H10: ='Results INDEX-MATCH'!C66 -> na | I10: ='Results INDEX-MATCH'!D66 -> -1 | J10: ='Results INDEX-MATCH'!E66 -> na
B11: Physician evaluation | C11: ='Results INDEX-MATCH'!C52 -> NA | D11: ='Results INDEX-MATCH'!D52 -> na | E11: ='Results INDEX-MATCH'!E52 -> na | G11: Physician evaluation | H11: ='Results INDEX-MATCH'!C67 -> 8 | I11: ='Results INDEX-MATCH'!D67 -> na | J11: ='Results INDEX-MATCH'!E67 -> na
B12: Vaccination | C12: ='Results INDEX-MATCH'!C53 -> na | D12: ='Results INDEX-MATCH'!D53 -> -679 | E12: ='Results INDEX-MATCH'!E53 -> na | G12: Vaccination | H12: ='Results INDEX-MATCH'!C68 -> na | I12: ='Results INDEX-MATCH'!D68 -> 30 | J12: ='Results INDEX-MATCH'!E68 -> na
B13: Witness | C13: ='Results INDEX-MATCH'!C54 -> na | D13: ='Results INDEX-MATCH'!D54 -> -679 | E13: ='Results INDEX-MATCH'!E54 -> na | G13: Witness | H13: ='Results INDEX-MATCH'!C69 -> na | I13: ='Results INDEX-MATCH'!D69 -> 30 | J13: ='Results INDEX-MATCH'!E69 -> na
B14: Review/Exit | C14: ='Results INDEX-MATCH'!C55 -> na | D14: ='Results INDEX-MATCH'!D55 -> NA | E14: ='Results INDEX-MATCH'!E55 -> na | G14: Review/Exit | H14: ='Results INDEX-MATCH'!C70 -> na | I14: ='Results INDEX-MATCH'!D70 -> -33 | J14: ='Results INDEX-MATCH'!E70 -> na

Sheet Technical Appendix
A1: Technical Appendix
O3: Input Distributions*
O5: Process | S5: Version 1 Triangular Distribution (Minimum, Most Likely, Maximum) (in minutes) | W5: Alternative Version (this version) Triangular Distribution (unless specified below)
O10: Triage (per family member) | S10: (0.5, 1.0, 2.0) | W10: (0.5, 1.0, 2.0)
O12: Orientation | S12: (20, 25, 30) | W12: (13, 14, 15)
O14: Fill-out forms w/o help (per family member) | S14: (0.5, 1.0, 1.5) | W14: 33 * BETA(0.518, 6.25)
O16: Fill-out forms w/ help (per family member) | S16: (0.3, 1.0, 1.5) | W16: 33 * BETA(0.518, 6.25)
O18: Referral (per family member) | S18: (0.4, 0.5, 0.75) | W18: (0.4, 0.5, 0.75)
B20: Input Probabilities | O20: Medical screening (per family member) | S20: (5, 10, 15) | W20: -0.001 + LOGN(0.859, 0.508)
B22: Description | M22: Percent | O22: Physician evaluation | S22: (5, 10, 15) | W22: (0.1, 0.5, 0.75)
B24: Percent of families in which all have previously have been vaccinated* | M24: 2 | O24: Exit review (per family member) | S24: (2, 3, 5) | W24: ERLA(0.0599,5)
B26: Percent symptomatic/contact (exit clinic); these families exit the clinic after being triaged | M26: 1 | O26: Vaccination (per family member) | S26: (0.5, 1.0, 1.5) | W26: 1 + ERLA(0.3, 2)
B28: Percent identified as not treatable at the clinic site; these families exit the clinic after being triaged | M28: 2
B30: Percent of people who need help with filling out their medical/consent forms | M30: 2
B32: Percent with complicating health factors; these families require additional medical screening beyond that given at the referral station | M32: 20 or 40
B34: Percent with complicating health factors that are identified by the medical screener and who are not treatable on site; these families will exit the clinic after seeing a medical screener and will exit the clinic before receiving a vaccination | M34: 10
B36: Percent with complicating health factors that are identified by the physician evaluator and who are not treatable on site; these families will exit the clinic after seeing the physician evaluator and will exit the clinic before receiving a vaccination | M36: 5

Sheet Clinic Flow
A1: Vaccination Site Flow Chart
F26: ="Average Time for Medical Screening: "&'6. Results – Time & Auxiliary'!C10&" min. (only "&TEXT('3. % of Families'!K10,"0%")&" of families)" -> Average Time for Medical Screening: 4.161 min. (only 20% of families) | G26: ="Average Time for Physical Evaluation: "&'6. Results – Time & Auxiliary'!C11&" min. (only 10% of families)" -> Average Time for Physical Evaluation: 48.236 min. (only 10% of families)

Sheet Results INDEX-MATCH
B1: Orientation | C1: =IF('2. Activities'!E8=0,"*ERROR*",'2. Activities'!E8) -> Yes | D1: =IF(C1="Yes","Y","N") -> Y | N1: ID | O1: =_xlfn.CONCAT(D1,D2,C3,C4,C5,C6) -> YY1151020
B2: Witness | C2: =IF('2. Activities'!E17=0,"*ERROR*",'2. Activities'!E17) -> Yes | D2: =IF(C2="Yes","Y","N") -> Y
B3: Physicians | C3: =IF('1. Personnel'!I11=0,"*ERROR*",'1. Personnel'!I11) -> 1
B4: Nurses | C4: =IF('1. Personnel'!I13=0,"*ERROR*",'1. Personnel'!I13) -> 15
B5: Other Staff | C5: =IF('1. Personnel'!I15=0,"*ERROR*",'1. Personnel'!I15) -> 10
B6: % of families | C6: =IF('3. % of Families'!K10=0,"*ERROR*",'3. % of Families'!K10)*100 -> 20
B7: UNIQUE ID | C7: =_xlfn.CONCAT(D1,D2,C3,C4,C5,C6) -> YY1151020
A10: Total number of staff available per shift: | F10: ='1. Personnel'!I11+'1. Personnel'!I13+'1. Personnel'!I15 -> 26
A11: Actual number of staff used per shift: | F11: =INDEX(Data_Modified!I$6:I$101,MATCH($C$7,Data_Modified!$G$6:$G$101,0)) -> 19
A12: Maximum number of people that can be treated in a 24-hour period: | F12: =INDEX(Data_Modified!H$6:H$101,MATCH($C$7,Data_Modified!$G$6:$G$101,0)) -> 3317
B15: People Treated
B16: Station Description | C16: Physicians | D16: Nurses | E16: Other Staff | H16: Station Description | I16: Triage Personnel | J16: Orientation personnel | K16: Medical form helper | L16: Referral personnel | M16: Medical screener | N16: Physician Evaluator | O16: Vaccinator | P16: Witness | Q16: Exit review Personnel | R16: Total
B17: Triage Personnel | C17: =TRANSPOSE(I17:Q17) -> na | D17: =TRANSPOSE(I18:Q18) -> 3 | E17: =TRANSPOSE(I19:Q19) -> na | H17: Physicians | I17: =INDEX(Data_Modified!J$6:J$101,MATCH($C$7,Data_Modified!$G$6:$G$101,0)) -> na | J17: =INDEX(Data_Modified!K$6:K$101,MATCH($C$7,Data_Modified!$G$6:$G$101,0)) -> na | K17: =INDEX(Data_Modified!L$6:L$101,MATCH($C$7,Data_Modified!$G$6:$G$101,0)) -> na | L17: =INDEX(Data_Modified!M$6:M$101,MATCH($C$7,Data_Modified!$G$6:$G$101,0)) -> na | M17: =INDEX(Data_Modified!N$6:N$101,MATCH($C$7,Data_Modified!$G$6:$G$101,0)) -> na | N17: =INDEX(Data_Modified!O$6:O$101,MATCH($C$7,Data_Modified!$G$6:$G$101,0)) -> 1 | O17: =INDEX(Data_Modified!P$6:P$101,MATCH($C$7,Data_Modified!$G$6:$G$101,0)) -> na | P17: =INDEX(Data_Modified!Q$6:Q$101,MATCH($C$7,Data_Modified!$G$6:$G$101,0)) -> na | Q17: =INDEX(Data_Modified!R$6:R$101,MATCH($C$7,Data_Modified!$G$6:$G$101,0)) -> na | R17: =SUM(I17:Q17) -> 1
B18: Orientation personnel | C18: na | D18: na | E18: 2 | H18: Nurses | I18: =INDEX(Data_Modified!S$6:S$101,MATCH($C$7,Data_Modified!$G$6:$G$101,0)) -> 3 | J18: =INDEX(Data_Modified!T$6:T$101,MATCH($C$7,Data_Modified!$G$6:$G$101,0)) -> na | K18: =INDEX(Data_Modified!U$6:U$101,MATCH($C$7,Data_Modified!$G$6:$G$101,0)) -> na | L18: =INDEX(Data_Modified!V$6:V$101,MATCH($C$7,Data_Modified!$G$6:$G$101,0)) -> na | M18: =INDEX(Data_Modified!W$6:W$101,MATCH($C$7,Data_Modified!$G$6:$G$101,0)) -> 2 | N18: =INDEX(Data_Modified!X$6:X$101,MATCH($C$7,Data_Modified!$G$6:$G$101,0)) -> na | O18: =INDEX(Data_Modified!Y$6:Y$101,MATCH($C$7,Data_Modified!$G$6:$G$101,0)) -> 4 | P18: =INDEX(Data_Modified!Z$6:Z$101,MATCH($C$7,Data_Modified!$G$6:$G$101,0)) -> 4 | Q18: =INDEX(Data_Modified!AA$6:AA$101,MATCH($C$7,Data_Modified!$G$6:$G$101,0)) -> 1 | R18: =SUM(I18:Q18) -> 14
B19: Medical form helper | C19: na | D19: na | E19: 1 | H19: Other Staff | I19: =INDEX(Data_Modified!AB$6:AB$101,MATCH($C$7,Data_Modified!$G$6:$G$101,0)) -> na | J19: =INDEX(Data_Modified!AC$6:AC$101,MATCH($C$7,Data_Modified!$G$6:$G$101,0)) -> 2 | K19: =INDEX(Data_Modified!AD$6:AD$101,MATCH($C$7,Data_Modified!$G$6:$G$101,0)) -> 1 | L19: =INDEX(Data_Modified!AE$6:AE$101,MATCH($C$7,Data_Modified!$G$6:$G$101,0)) -> 1 | M19: =INDEX(Data_Modified!AF$6:AF$101,MATCH($C$7,Data_Modified!$G$6:$G$101,0)) -> na | N19: =INDEX(Data_Modified!AG$6:AG$101,MATCH($C$7,Data_Modified!$G$6:$G$101,0)) -> na | O19: =INDEX(Data_Modified!AH$6:AH$101,MATCH($C$7,Data_Modified!$G$6:$G$101,0)) -> na | P19: =INDEX(Data_Modified!AI$6:AI$101,MATCH($C$7,Data_Modified!$G$6:$G$101,0)) -> na | Q19: =INDEX(Data_Modified!AJ$6:AJ$101,MATCH($C$7,Data_Modified!$G$6:$G$101,0)) -> na
B20: Referral personnel | C20: na | D20: na | E20: 1
B21: Medical screener | C21: na | D21: 2 | E21: na
B22: Physician Evaluator | C22: 1 | D22: na | E22: na
B23: Vaccinator | C23: na | D23: 4 | E23: na
B24: Witness | C24: na | D24: 4 | E24: na
B25: Exit review Personnel | C25: na | D25: 1 | E25: na
B26: Total | C26: =SUM(C17:C25) -> 1 | D26: =SUM(D17:D25) -> 14 | E26: =SUM(E17:E25) -> 4
B30: Staff Utilization
B31: Station Description | C31: Physicians | D31: Nurses | E31: Other Staff | H31: Station Description | I31: Triage personnel | J31: Orientation personnel | K31: Medical form helper | L31: Referral personnel | M31: Medical screener | N31: Physician evaluator | O31: Vaccinator | P31: Witness | Q31: Exit review Personnel
B32: Triage personnel | C32: =TRANSPOSE(I32:Q32) -> na | D32: =TRANSPOSE(I33:Q33) -> 99.6 | E32: =TRANSPOSE(I34:Q34) -> na | H32: Physicians | I32: =INDEX(Data_Modified!AK$6:AK$101,MATCH($C$7,Data_Modified!$G$6:$G$101,0)) -> na | J32: =INDEX(Data_Modified!AL$6:AL$101,MATCH($C$7,Data_Modified!$G$6:$G$101,0)) -> na | K32: =INDEX(Data_Modified!AM$6:AM$101,MATCH($C$7,Data_Modified!$G$6:$G$101,0)) -> na | L32: =INDEX(Data_Modified!AN$6:AN$101,MATCH($C$7,Data_Modified!$G$6:$G$101,0)) -> na | M32: =INDEX(Data_Modified!AO$6:AO$101,MATCH($C$7,Data_Modified!$G$6:$G$101,0)) -> na | N32: =INDEX(Data_Modified!AP$6:AP$101,MATCH($C$7,Data_Modified!$G$6:$G$101,0)) -> 45.1 | O32: =INDEX(Data_Modified!AQ$6:AQ$101,MATCH($C$7,Data_Modified!$G$6:$G$101,0)) -> na | P32: =INDEX(Data_Modified!AR$6:AR$101,MATCH($C$7,Data_Modified!$G$6:$G$101,0)) -> na | Q32: =INDEX(Data_Modified!AS$6:AS$101,MATCH($C$7,Data_Modified!$G$6:$G$101,0)) -> na
B33: Orientation personnel | C33: na | D33: na | E33: 53.5 | H33: Nurses | I33: =INDEX(Data_Modified!AT$6:AT$101,MATCH($C$7,Data_Modified!$G$6:$G$101,0)) -> 99.6 | J33: =INDEX(Data_Modified!AU$6:AU$101,MATCH($C$7,Data_Modified!$G$6:$G$101,0)) -> na | K33: =INDEX(Data_Modified!AV$6:AV$101,MATCH($C$7,Data_Modified!$G$6:$G$101,0)) -> na | L33: =INDEX(Data_Modified!AW$6:AW$101,MATCH($C$7,Data_Modified!$G$6:$G$101,0)) -> na | M33: =INDEX(Data_Modified!AX$6:AX$101,MATCH($C$7,Data_Modified!$G$6:$G$101,0)) -> 38.7 | N33: =INDEX(Data_Modified!AY$6:AY$101,MATCH($C$7,Data_Modified!$G$6:$G$101,0)) -> na | O33: =INDEX(Data_Modified!AZ$6:AZ$101,MATCH($C$7,Data_Modified!$G$6:$G$101,0)) -> 92.3 | P33: =INDEX(Data_Modified!BA$6:BA$101,MATCH($C$7,Data_Modified!$G$6:$G$101,0)) -> 92.3 | Q33: =INDEX(Data_Modified!BB$6:BB$101,MATCH($C$7,Data_Modified!$G$6:$G$101,0)) -> 18.7
B34: Medical form helper | C34: na | D34: na | E34: 11.3 | H34: Other Staff | I34: =INDEX(Data_Modified!BC$6:BC$101,MATCH($C$7,Data_Modified!$G$6:$G$101,0)) -> na | J34: =INDEX(Data_Modified!BD$6:BD$101,MATCH($C$7,Data_Modified!$G$6:$G$101,0)) -> 53.5 | K34: =INDEX(Data_Modified!BE$6:BE$101,MATCH($C$7,Data_Modified!$G$6:$G$101,0)) -> 11.3 | L34: =INDEX(Data_Modified!BF$6:BF$101,MATCH($C$7,Data_Modified!$G$6:$G$101,0)) -> 65.3 | M34: =INDEX(Data_Modified!BG$6:BG$101,MATCH($C$7,Data_Modified!$G$6:$G$101,0)) -> na | N34: =INDEX(Data_Modified!BH$6:BH$101,MATCH($C$7,Data_Modified!$G$6:$G$101,0)) -> na | O34: =INDEX(Data_Modified!BI$6:BI$101,MATCH($C$7,Data_Modified!$G$6:$G$101,0)) -> na | P34: =INDEX(Data_Modified!BJ$6:BJ$101,MATCH($C$7,Data_Modified!$G$6:$G$101,0)) -> na | Q34: =INDEX(Data_Modified!BK$6:BK$101,MATCH($C$7,Data_Modified!$G$6:$G$101,0)) -> na
B35: Referral personnel | C35: na | D35: na | E35: 65.3
B36: Medical screener | C36: na | D36: 38.7 | E36: na
B37: Physician evaluator | C37: 45.1 | D37: na | E37: na
B38: Vaccinator | C38: na | D38: 92.3 | E38: na
B39: Witness | C39: na | D39: 92.3 | E39: na
B40: Exit review Personnel | C40: na | D40: 18.7 | E40: na
B45: Impact/Minus One
B46: Station Description | C46: Physicians | D46: Nurses | E46: Other Staff
B47: Triage | C47: =TRANSPOSE(I48:Q48) -> na | D47: =TRANSPOSE(I49:Q49) -> -1109 | E47: =TRANSPOSE(I50:Q50) -> na | H47: Station Description | I47: Triage | J47: Orientation | K47: Medical froms help | L47: Referral | M47: Medical screening | N47: Physician evaluation | O47: Vaccination | P47: Witness | Q47: Review/Exit
B48: Orientation | C48: na | D48: na | E48: -235 | H48: Physicians | I48: =INDEX(Data_Modified!CM$6:CM$101,MATCH($C$7,Data_Modified!$G$6:$G$101,0)) -> na | J48: =INDEX(Data_Modified!CN$6:CN$101,MATCH($C$7,Data_Modified!$G$6:$G$101,0)) -> na | K48: =INDEX(Data_Modified!CO$6:CO$101,MATCH($C$7,Data_Modified!$G$6:$G$101,0)) -> na | L48: =INDEX(Data_Modified!CP$6:CP$101,MATCH($C$7,Data_Modified!$G$6:$G$101,0)) -> na | M48: =INDEX(Data_Modified!CQ$6:CQ$101,MATCH($C$7,Data_Modified!$G$6:$G$101,0)) -> na | N48: =INDEX(Data_Modified!CR$6:CR$101,MATCH($C$7,Data_Modified!$G$6:$G$101,0)) -> NA | O48: =INDEX(Data_Modified!CS$6:CS$101,MATCH($C$7,Data_Modified!$G$6:$G$101,0)) -> na | P48: =INDEX(Data_Modified!CT$6:CT$101,MATCH($C$7,Data_Modified!$G$6:$G$101,0)) -> na | Q48: =INDEX(Data_Modified!CU$6:CU$101,MATCH($C$7,Data_Modified!$G$6:$G$101,0)) -> na
B49: Medical froms help | C49: na | D49: na | E49: NA | H49: Nurses | I49: =INDEX(Data_Modified!CV$6:CV$101,MATCH($C$7,Data_Modified!$G$6:$G$101,0)) -> -1109 | J49: =INDEX(Data_Modified!CW$6:CW$101,MATCH($C$7,Data_Modified!$G$6:$G$101,0)) -> na | K49: =INDEX(Data_Modified!CX$6:CX$101,MATCH($C$7,Data_Modified!$G$6:$G$101,0)) -> na | L49: =INDEX(Data_Modified!CY$6:CY$101,MATCH($C$7,Data_Modified!$G$6:$G$101,0)) -> na | M49: =INDEX(Data_Modified!CZ$6:CZ$101,MATCH($C$7,Data_Modified!$G$6:$G$101,0)) -> NA | N49: =INDEX(Data_Modified!DA$6:DA$101,MATCH($C$7,Data_Modified!$G$6:$G$101,0)) -> na | O49: =INDEX(Data_Modified!DB$6:DB$101,MATCH($C$7,Data_Modified!$G$6:$G$101,0)) -> -679 | P49: =INDEX(Data_Modified!DC$6:DC$101,MATCH($C$7,Data_Modified!$G$6:$G$101,0)) -> -679 | Q49: =INDEX(Data_Modified!DD$6:DD$101,MATCH($C$7,Data_Modified!$G$6:$G$101,0)) -> NA
B50: Referral | C50: na | D50: na | E50: -834 | H50: Other Staff | I50: =INDEX(Data_Modified!DE$6:DE$101,MATCH($C$7,Data_Modified!$G$6:$G$101,0)) -> na | J50: =INDEX(Data_Modified!DF$6:DF$101,MATCH($C$7,Data_Modified!$G$6:$G$101,0)) -> -235 | K50: =INDEX(Data_Modified!DG$6:DG$101,MATCH($C$7,Data_Modified!$G$6:$G$101,0)) -> NA | L50: =INDEX(Data_Modified!DH$6:DH$101,MATCH($C$7,Data_Modified!$G$6:$G$101,0)) -> -834 | M50: =INDEX(Data_Modified!DI$6:DI$101,MATCH($C$7,Data_Modified!$G$6:$G$101,0)) -> na | N50: =INDEX(Data_Modified!DJ$6:DJ$101,MATCH($C$7,Data_Modified!$G$6:$G$101,0)) -> na | O50: =INDEX(Data_Modified!DK$6:DK$101,MATCH($C$7,Data_Modified!$G$6:$G$101,0)) -> na | P50: =INDEX(Data_Modified!DL$6:DL$101,MATCH($C$7,Data_Modified!$G$6:$G$101,0)) -> na | Q50: =INDEX(Data_Modified!DM$6:DM$101,MATCH($C$7,Data_Modified!$G$6:$G$101,0)) -> na
B51: Medical screening | C51: na | D51: NA | E51: na
B52: Physician evaluation | C52: NA | D52: na | E52: na
B53: Vaccination | C53: na | D53: -679 | E53: na
B54: Witness | C54: na | D54: -679 | E54: na
B55: Review/Exit | C55: na | D55: NA | E55: na
B60: Impact/Plus One
B61: Station Description | C61: Physicians | D61: Nurses | E61: Other Staff | H61: Station Description | I61: Triage | J61: Orientation | K61: Medical froms help | L61: Referral | M61: Medical screening | N61: Physician evaluation | O61: Vaccination | P61: Witness | Q61: Review/Exit
B62: Triage | C62: =TRANSPOSE(I62:Q62) -> na | D62: =TRANSPOSE(I63:Q63) -> 202 | E62: =TRANSPOSE(I64:Q64) -> na | H62: Physicians | I62: =INDEX(Data_Modified!BL$6:BL$101,MATCH($C$7,Data_Modified!$G$6:$G$101,0)) -> na | J62: =INDEX(Data_Modified!BM$6:BM$101,MATCH($C$7,Data_Modified!$G$6:$G$101,0)) -> na | K62: =INDEX(Data_Modified!BN$6:BN$101,MATCH($C$7,Data_Modified!$G$6:$G$101,0)) -> na | L62: =INDEX(Data_Modified!BO$6:BO$101,MATCH($C$7,Data_Modified!$G$6:$G$101,0)) -> na | M62: =INDEX(Data_Modified!BP$6:BP$101,MATCH($C$7,Data_Modified!$G$6:$G$101,0)) -> na | N62: =INDEX(Data_Modified!BQ$6:BQ$101,MATCH($C$7,Data_Modified!$G$6:$G$101,0)) -> 8 | O62: =INDEX(Data_Modified!BR$6:BR$101,MATCH($C$7,Data_Modified!$G$6:$G$101,0)) -> na | P62: =INDEX(Data_Modified!BS$6:BS$101,MATCH($C$7,Data_Modified!$G$6:$G$101,0)) -> na | Q62: =INDEX(Data_Modified!BT$6:BT$101,MATCH($C$7,Data_Modified!$G$6:$G$101,0)) -> na
B63: Orientation | C63: na | D63: na | E63: 0 | H63: Nurses | I63: =INDEX(Data_Modified!BU$6:BU$101,MATCH($C$7,Data_Modified!$G$6:$G$101,0)) -> 202 | J63: =INDEX(Data_Modified!BV$6:BV$101,MATCH($C$7,Data_Modified!$G$6:$G$101,0)) -> na | K63: =INDEX(Data_Modified!BW$6:BW$101,MATCH($C$7,Data_Modified!$G$6:$G$101,0)) -> na | L63: =INDEX(Data_Modified!BX$6:BX$101,MATCH($C$7,Data_Modified!$G$6:$G$101,0)) -> na | M63: =INDEX(Data_Modified!BY$6:BY$101,MATCH($C$7,Data_Modified!$G$6:$G$101,0)) -> -1 | N63: =INDEX(Data_Modified!BZ$6:BZ$101,MATCH($C$7,Data_Modified!$G$6:$G$101,0)) -> na | O63: =INDEX(Data_Modified!CA$6:CA$101,MATCH($C$7,Data_Modified!$G$6:$G$101,0)) -> 30 | P63: =INDEX(Data_Modified!CB$6:CB$101,MATCH($C$7,Data_Modified!$G$6:$G$101,0)) -> 30 | Q63: =INDEX(Data_Modified!CC$6:CC$101,MATCH($C$7,Data_Modified!$G$6:$G$101,0)) -> -33
B64: Medical froms help | C64: na | D64: na | E64: 0 | H64: Other Staff | I64: =INDEX(Data_Modified!CD$6:CD$101,MATCH($C$7,Data_Modified!$G$6:$G$101,0)) -> na | J64: =INDEX(Data_Modified!CE$6:CE$101,MATCH($C$7,Data_Modified!$G$6:$G$101,0)) -> 0 | K64: =INDEX(Data_Modified!CF$6:CF$101,MATCH($C$7,Data_Modified!$G$6:$G$101,0)) -> 0 | L64: =INDEX(Data_Modified!CG$6:CG$101,MATCH($C$7,Data_Modified!$G$6:$G$101,0)) -> 3 | M64: =INDEX(Data_Modified!CH$6:CH$101,MATCH($C$7,Data_Modified!$G$6:$G$101,0)) -> na | N64: =INDEX(Data_Modified!CI$6:CI$101,MATCH($C$7,Data_Modified!$G$6:$G$101,0)) -> na | O64: =INDEX(Data_Modified!CJ$6:CJ$101,MATCH($C$7,Data_Modified!$G$6:$G$101,0)) -> na | P64: =INDEX(Data_Modified!CK$6:CK$101,MATCH($C$7,Data_Modified!$G$6:$G$101,0)) -> na | Q64: =INDEX(Data_Modified!CL$6:CL$101,MATCH($C$7,Data_Modified!$G$6:$G$101,0)) -> na
B65: Referral | C65: na | D65: na | E65: 3
B66: Medical screening | C66: na | D66: -1 | E66: na
B67: Physician evaluation | C67: 8 | D67: na | E67: na
B68: Vaccination | C68: na | D68: 30 | E68: na
B69: Witness | C69: na | D69: 30 | E69: na
B70: Review/Exit | C70: na | D70: -33 | E70: na
B75: Average Time Spent
B76: Station Description | C76: Average time | H76: Station Description | I76: Triage | J76: Orientation | K76: Medical froms help | L76: Referral | M76: Medical screening | N76: Physician evaluation | O76: Vaccination | P76: Witness | Q76: Review/Exit
B77: Triage | C77: =TRANSPOSE(I77:Q77) -> 4.32 | H77: Average time | I77: =INDEX(Data_Modified!DN$6:DN$101,MATCH($C$7,Data_Modified!$G$6:$G$101,0)) -> 4.32 | J77: =INDEX(Data_Modified!DO$6:DO$101,MATCH($C$7,Data_Modified!$G$6:$G$101,0)) -> 19.821 | K77: =INDEX(Data_Modified!DP$6:DP$101,MATCH($C$7,Data_Modified!$G$6:$G$101,0)) -> 12.293 | L77: =INDEX(Data_Modified!DQ$6:DQ$101,MATCH($C$7,Data_Modified!$G$6:$G$101,0)) -> 2.984 | M77: =INDEX(Data_Modified!DR$6:DR$101,MATCH($C$7,Data_Modified!$G$6:$G$101,0)) -> 4.161 | N77: =INDEX(Data_Modified!DS$6:DS$101,MATCH($C$7,Data_Modified!$G$6:$G$101,0)) -> 48.236 | O77: =INDEX(Data_Modified!DT$6:DT$101,MATCH($C$7,Data_Modified!$G$6:$G$101,0)) -> 10.879 | P77: =INDEX(Data_Modified!DU$6:DU$101,MATCH($C$7,Data_Modified!$G$6:$G$101,0)) -> 10.879 | Q77: =INDEX(Data_Modified!DV$6:DV$101,MATCH($C$7,Data_Modified!$G$6:$G$101,0)) -> 0.33
B78: Orientation | C78: 19.821
B79: Medical froms help | C79: 12.293
B80: Referral | C80: 2.984
B81: Medical screening | C81: 4.161
B82: Physician evaluation | C82: 48.236
B83: Vaccination | C83: 10.879
B84: Witness | C84: 10.879
B85: Review/Exit | C85: 0.33
B90: Others
B91: Station Description | C91: Number per shiift | G91: Station Description | H91: Form distribution | I91: Vaccine preparation | J91: Medical records data | K91: Clinic manager | L91: Supply manager | M91: Clinic QA reviewer | N91: Security | O91: Traffic flow | P91: Translator | Q91: Float staff | R91: Contact evaluation | S91: EMT | T91: IT support
B92: Form distribution | G92: Number per shiift
B93: Vaccine preparation
B94: Medical records data
B95: Clinic manager
B96: Supply manager
B97: Clinic QA reviewer
B98: Security
B99: Traffic flow
B100: Translator
B101: Float staff
B102: Contact evaluation
B103: EMT
B104: IT support

Sheet Data_Modified
H1: RESULTS RESULTS RESULTS RESULTS RESULTS RESULTS RESULTS RESULTS RESULTS RESULTS RESULTS RESULTS RESULTS RESULTS RESULTS RESULTS RESULTS RESULTS RESULTS RESULTS RESULTS RESULTS RESULTS RESULTS RESULTS RESULTS RESULTS RESULTS RESULTS RESULTS RESULTS RESULTS RESULTS RESULTS RESULTS RESULTS RESULTS RESULTS RESULTS RESULTS RESULTS RESULTS RESULTS RESULTS RESULTS
J2: PHYSICIANS | S2: NURSES | AB2: OTHER | AK2: PHYSICIANS | AT2: NURSES | BC2: OTHER | BL2: PHYSICIANS | BU2: NURSES | CD2: OTHER | CM2: PHYSICIANS | CV2: NURSES | DE2: OTHER
C3: CONSTRAINTS | J3: Output (# at Station) | S3: Output (# at Station) | AB3: Output (# at Station) | AK3: Output (% Time Busy) | AT3: Output (% Time Busy) | BC3: Output (% Time Busy) | BL3: Impact of Adding One Resource (Change in Number of People Vaccinated) | BU3: Impact of Adding One Resource (Change in Number of People Vaccinated) | CD3: Impact of Adding One Resource (Change in Number of People Vaccinated) | CM3: Impact of Removing One Resource (Change in Number of People Vaccinated) | CV3: Impact of Removing One Resource (Change in Number of People Vaccinated) | DE3: Impact of Removing One Resource (Change in Number of People Vaccinated) | DN3: Average Time Families Spend At Each Station (Minutes)
C4: Personnel Type and Orientation Room Size | H4: MAIN
A5: Orientation | B5: Witness | C5: Physican | D5: Medical Prof | E5: Other | F5: Complications by initial reviewer DecideComp (%) | G5: Unique Identifier | H5: People Vaccinated | I5: Total Staff Used | J5: Triage Personnel | K5: Orientation Personnel | L5: Medical Form Helper | M5: Referral Personnel | N5: Medical Screener | O5: Physician Evaluator | P5: Vaccinator | Q5: Witnesses | R5: Exit Review Personnel | S5: Triage Personnel | T5: Orientation Personnel | U5: Medical Form Helper | V5: Referral Personnel | W5: Medical Screener | X5: Physician Evaluator | Y5: Vaccinator | Z5: Witnesses | AA5: Exit Review Personnel | AB5: Triage Personnel | AC5: Orientation Personnel | AD5: Medical Form Helper | AE5: Referral Personnel | AF5: Medical Screener | AG5: Physician Evaluator | AH5: Vaccinator | AI5: Witnesses | AJ5: Exit Review Personnel | AK5: Triage Personnel | AL5: Orientation Personnel | AM5: Medical Form Helper | AN5: Referral Personnel | AO5: Medical Screener | AP5: Physician Evaluator | AQ5: Vaccinator | AR5: Witnesses | AS5: Exit Review Personnel | AT5: Triage Personnel | AU5: Orientation Personnel | AV5: Medical Form Helper | AW5: Referral Personnel | AX5: Medical Screener | AY5: Physician Evaluator | AZ5: Vaccinator | BA5: Witnesses | BB5: Exit Review Personnel | BC5: Triage Personel | BD5: Orientation Personnel | BE5: Medical Form Helper | BF5: Referral Personnel | BG5: Medical Screener | BH5: Physician Evaluator | BI5: Vaccinator | BJ5: Witnesses | BK5: Exit Review Personnel | BL5: Triage Personnel | BM5: Orientation Personnel | BN5: Medical Form Helper | BO5: Referral Personnel | BP5: Medical Screener | BQ5: Physician Evaluator | BR5: Vaccinator | BS5: Witnesses | BT5: Exit Review Personnel | BU5: Triage Personnel | BV5: Orientation Personnel | BW5: Medical Form Helper | BX5: Referral Personnel | BY5: Medical Screener | BZ5: Physician Evaluator | CA5: Vaccinator | CB5: Witnesses | CC5: Exit Review Personnel | CD5: Triage Personnel | CE5: Orientation Personnel | CF5: Medical Form Helper | CG5: Referral Personnel | CH5: Medical Screener | CI5: Physician Evaluator | CJ5: Vaccinator | CK5: Witnesses | CL5: Exit Review Personnel | CM5: Triage Personnel | CN5: Orientation Personnel | CO5: Medical Form Helper | CP5: Referral Personnel | CQ5: Medical Screener | CR5: Physician Evaluator | CS5: Vaccinator | CT5: Witnesses | CU5: Exit Review Personnel | CV5: Triage Personnel | CW5: Orientation Personnel | CX5: Medical Form Helper | CY5: Referral Personnel | CZ5: Medical Screener | DA5: Physician Evaluator | DB5: Vaccinator | DC5: Witnesses | DD5: Exit Review Personnel | DE5: Triage Personnel | DF5: Orientation Personnel | DG5: Medical Form Helper | DH5: Referral Personnel | DI5: Medical Screener | DJ5: Physician Evaluator | DK5: Vaccinator | DL5: Witnesses | DM5: Exit Review Personnel | DN5: Triage | DO5: Orientation | DP5: Medical Forms | DQ5: Referral | DR5: Medical Screening | DS5: Physician Evaluation | DT5: Vaccinator | DU5: Witnesses | DV5: Exit Review Personnel
A6: Y | B6: Y | C6: 1 | D6: 5 | E6: 5 | F6: 20 | G6: =_xlfn.CONCAT(A6,B6,C6,D6,E6,F6) -> YY15520 | H6: 871 | I6: =O6+S6+W6+Y6+Z6+AA6+AC6+ AD6+AE6 -> 9 | J6: na | K6: na | L6: na | M6: na | N6: na | O6: 1 | P6: na | Q6: na | R6: na | S6: 1 | T6: na | U6: na | V6: na | W6: 1 | X6: na | Y6: 1 | Z6: 1 | AA6: 1 | AB6: na | AC6: 1 | AD6: 1 | AE6: 1 | AF6: na | AG6: na | AH6: na | AI6: na | AJ6: na | AK6: na | AL6: na | AM6: na | AN6: na | AO6: na | AP6: 15.7 | AQ6: na | AR6: na | AS6: na | AT6: 100 | AU6: na | AV6: na | AW6: na | AX6: 14.9 | AY6: na | AZ6: 96 | BA6: 96 | BB6: 4.9 | BC6: na | BD6: 35.7 | BE6: 3.4 | BF6: 43.6 | BG6: na | BH6: na | BI6: na | BJ6: na | BK6: na | BL6: na | BM6: na | BN6: na | BO6: na | BP6: na | BQ6: -6 | BR6: na | BS6: na | BT6: na | BU6: -2 | BV6: na | BW6: na | BX6: na | BY6: -8 | BZ6: na | CA6: 230 | CB6: 230 | CC6: 0 | CD6: na | CE6: 0 | CF6: 8 | CG6: 4 | CH6: na | CI6: na | CJ6: na | CK6: na | CL6: na | CM6: na | CN6: na | CO6: na | CP6: na | CQ6: na | CR6: NA | CS6: na | CT6: na | CU6: na | CV6: -8 | CW6: na | CX6: na | CY6: na | CZ6: NA | DA6: na | DB6: NA | DC6: NA | DD6: NA | DE6: na | DF6: NA | DG6: NA | DH6: NA | DI6: na | DJ6: na | DK6: na | DL6: na | DM6: na | DN6: 4.232 | DO6: 31.247 | DP6: 11.143 | DQ6: 4.233 | DR6: 3.81 | DS6: 36.994 | DT6: 162.469 | DU6: 162.469 | DV6: 0.294
A7: Y | B7: Y | C7: 3 | D7: 5 | E7: 5 | F7: 20 | G7: =_xlfn.CONCAT(A7,B7,C7,D7,E7,F7) -> YY35520 | H7: 871 | I7: =O7+S7+W7+Y7+Z7+AA7+AC7+ AD7+AE7 -> 9 | J7: na | K7: na | L7: na | M7: na | N7: na | O7: 1 | P7: na | Q7: na | R7: na | S7: 1 | T7: na | U7: na | V7: na | W7: 1 | X7: na | Y7: 1 | Z7: 1 | AA7: 1 | AB7: na | AC7: 1 | AD7: 1 | AE7: 1 | AF7: na | AG7: na | AH7: na | AI7: na | AJ7: na | AK7: na | AL7: na | AM7: na | AN7: na | AO7: na | AP7: 15.7 | AQ7: na | AR7: na | AS7: na | AT7: 100 | AU7: na | AV7: na | AW7: na | AX7: 14.9 | AY7: na | AZ7: 96 | BA7: 96 | BB7: 4.9 | BC7: na | BD7: 35.7 | BE7: 3.4 | BF7: 43.6 | BG7: na | BH7: na | BI7: na | BJ7: na | BK7: na | BL7: na | BM7: na | BN7: na | BO7: na | BP7: na | BQ7: -6 | BR7: na | BS7: na | BT7: na | BU7: -2 | BV7: na | BW7: na | BX7: na | BY7: -8 | BZ7: na | CA7: 230 | CB7: 230 | CC7: 0 | CD7: na | CE7: 0 | CF7: 8 | CG7: 4 | CH7: na | CI7: na | CJ7: na | CK7: na | CL7: na | CM7: na | CN7: na | CO7: na | CP7: na | CQ7: na | CR7: NA | CS7: na | CT7: na | CU7: na | CV7: -8 | CW7: na | CX7: na | CY7: na | CZ7: NA | DA7: na | DB7: NA | DC7: NA | DD7: NA | DE7: na | DF7: NA | DG7: NA | DH7: NA | DI7: na | DJ7: na | DK7: na | DL7: na | DM7: na | DN7: 4.232 | DO7: 31.247 | DP7: 11.143 | DQ7: 4.233 | DR7: 3.81 | DS7: 36.994 | DT7: 162.469 | DU7: 162.469 | DV7: 0.294
A8: Y | B8: Y | C8: 1 | D8: 15 | E8: 5 | F8: 20 | G8: YY115520 | H8: 3317 | I8: 19 | J8: na | K8: na | L8: na | M8: na | N8: na | O8: 1 | P8: na | Q8: na | R8: na | S8: 3 | T8: na | U8: na | V8: na | W8: 2 | X8: na | Y8: 4 | Z8: 4 | AA8: 1 | AB8: na | AC8: 2 | AD8: 1 | AE8: 1 | AF8: na | AG8: na | AH8: na | AI8: na | AJ8: na | AK8: na | AL8: na | AM8: na | AN8: na | AO8: na | AP8: 45.1 | AQ8: na | AR8: na | AS8: na | AT8: 99.6 | AU8: na | AV8: na | AW8: na | AX8: 38.7 | AY8: na | AZ8: 92.3 | BA8: 92.3 | BB8: 18.7 | BC8: na | BD8: 53.5 | BE8: 11.3 | BF8: 65.3 | BG8: na | BH8: na | BI8: na | BJ8: na | BK8: na | BL8: na | BM8: na | BN8: na | BO8: na | BP8: na | BQ8: 8 | BR8: na | BS8: na | BT8: na | BU8: 202 | BV8: na | BW8: na | BX8: na | BY8: -1 | BZ8: na | CA8: 30 | CB8: 30 | CC8: -33 | CD8: na | CE8: 0 | CF8: 0 | CG8: 3 | CH8: na | CI8: na | CJ8: na | CK8: na | CL8: na | CM8: na | CN8: na | CO8: na | CP8: na | CQ8: na | CR8: NA | CS8: na | CT8: na | CU8: na | CV8: -1109 | CW8: na | CX8: na | CY8: na | CZ8: NA | DA8: na | DB8: -679 | DC8: -679 | DD8: NA | DE8: na | DF8: -235 | DG8: NA | DH8: -834 | DI8: na | DJ8: na | DK8: na | DL8: na | DM8: na | DN8: 4.32 | DO8: 19.821 | DP8: 12.293 | DQ8: 2.984 | DR8: 4.161 | DS8: 48.236 | DT8: 10.879 | DU8: 10.879 | DV8: 0.33
A9: Y | B9: Y | C9: 3 | D9: 15 | E9: 5 | F9: 20 | G9: YY315520 | H9: 3317 | I9: =O9+S9+W9+Y9+Z9+AA9+AC9+ AD9+AE9 -> 19 | J9: na | K9: na | L9: na | M9: na | N9: na | O9: 1 | P9: na | Q9: na | R9: na | S9: 3 | T9: na | U9: na | V9: na | W9: 2 | X9: na | Y9: 4 | Z9: 4 | AA9: 1 | AB9: na | AC9: 2 | AD9: 1 | AE9: 1 | AF9: na | AG9: na | AH9: na | AI9: na | AJ9: na | AK9: na | AL9: na | AM9: na | AN9: na | AO9: na | AP9: 45.1 | AQ9: na | AR9: na | AS9: na | AT9: 99.6 | AU9: na | AV9: na | AW9: na | AX9: 38.7 | AY9: na | AZ9: 92.3 | BA9: 92.3 | BB9: 18.7 | BC9: na | BD9: 53.5 | BE9: 11.3 | BF9: 65.3 | BG9: na | BH9: na | BI9: na | BJ9: na | BK9: na | BL9: na | BM9: na | BN9: na | BO9: na | BP9: na | BQ9: 8 | BR9: na | BS9: na | BT9: na | BU9: 202 | BV9: na | BW9: na | BX9: na | BY9: -1 | BZ9: na | CA9: 30 | CB9: 30 | CC9: -33 | CD9: na | CE9: 0 | CF9: 0 | CG9: 3 | CH9: na | CI9: na | CJ9: na | CK9: na | CL9: na | CM9: na | CN9: na | CO9: na | CP9: na | CQ9: na | CR9: NA | CS9: na | CT9: na | CU9: na | CV9: -1109 | CW9: na | CX9: na | CY9: na | CZ9: NA | DA9: na | DB9: -679 | DC9: -679 | DD9: NA | DE9: na | DF9: -235 | DG9: NA | DH9: -834 | DI9: na | DJ9: na | DK9: na | DL9: na | DM9: na | DN9: 4.32 | DO9: 19.821 | DP9: 12.293 | DQ9: 2.984 | DR9: 4.161 | DS9: 48.236 | DT9: 10.879 | DU9: 10.879 | DV9: 0.33
A10: Y | B10: Y | C10: 1 | D10: 30 | E10: 5 | F10: 20 | G10: YY130520 | H10: 4403 | I10: 24 | J10: na | K10: na | L10: na | M10: na | N10: na | O10: 1 | P10: na | Q10: na | R10: na | S10: 4 | T10: na | U10: na | V10: na | W10: 2 | X10: na | Y10: 6 | Z10: 6 | AA10: 1 | AB10: na | AC10: 2 | AD10: 1 | AE10: 1 | AF10: na | AG10: na | AH10: na | AI10: na | AJ10: na | AK10: na | AL10: na | AM10: na | AN10: na | AO10: na | AP10: 63 | AQ10: na | AR10: na | AS10: na | AT10: 99.5 | AU10: na | AV10: na | AW10: na | AX10: 53.1 | AY10: na | AZ10: 81.5 | BA10: 81.5 | BB10: 25.4 | BC10: na | BD10: 71 | BE10: 12.8 | BF10: 86.8 | BG10: na | BH10: na | BI10: na | BJ10: na | BK10: na | BL10: na | BM10: na | BN10: na | BO10: na | BP10: na | BQ10: -5 | BR10: na | BS10: na | BT10: na | BU10: 565 | BV10: na | BW10: na | BX10: na | BY10: -1 | BZ10: na | CA10: -11 | CB10: -11 | CC10: 39 | CD10: na | CE10: 0 | CF10: -27 | CG10: 36 | CH10: na | CI10: na | CJ10: na | CK10: na | CL10: na | CM10: na | CN10: na | CO10: na | CP10: na | CQ10: na | CR10: NA | CS10: na | CT10: na | CU10: na | CV10: -1085 | CW10: na | CX10: na | CY10: na | CZ10: NA | DA10: na | DB10: -73 | DC10: -73 | DD10: NA | DE10: na | DF10: -1321 | DG10: NA | DH10: -1889 | DI10: na | DJ10: na | DK10: na | DL10: na | DM10: na | DN10: 4.259 | DO10: 18.375 | DP10: 10.046 | DQ10: 4.341 | DR10: 5.086 | DS10: 72.263 | DT10: 6.45 | DU10: 6.45 | DV10: 0.351
A11: Y | B11: Y | C11: 3 | D11: 30 | E11: 5 | F11: 20 | G11: YY330520 | H11: 4403 | I11: 24 | J11: na | K11: na | L11: na | M11: na | N11: na | O11: 1 | P11: na | Q11: na | R11: na | S11: 4 | T11: na | U11: na | V11: na | W11: 2 | X11: na | Y11: 6 | Z11: 6 | AA11: 1 | AB11: na | AC11: 2 | AD11: 1 | AE11: 1 | AF11: na | AG11: na | AH11: na | AI11: na | AJ11: na | AK11: na | AL11: na | AM11: na | AN11: na | AO11: na | AP11: 63 | AQ11: na | AR11: na | AS11: na | AT11: 99.5 | AU11: na | AV11: na | AW11: na | AX11: 53.1 | AY11: na | AZ11: 81.5 | BA11: 81.5 | BB11: 25.4 | BC11: na | BD11: 71 | BE11: 12.8 | BF11: 86.8 | BG11: na | BH11: na | BI11: na | BJ11: na | BK11: na | BL11: na | BM11: na | BN11: na | BO11: na | BP11: na | BQ11: -5 | BR11: na | BS11: na | BT11: na | BU11: 565 | BV11: na | BW11: na | BX11: na | BY11: -1 | BZ11: na | CA11: -11 | CB11: -11 | CC11: 39 | CD11: na | CE11: 0 | CF11: -27 | CG11: 36 | CH11: na | CI11: na | CJ11: na | CK11: na | CL11: na | CM11: na | CN11: na | CO11: na | CP11: na | CQ11: na | CR11: NA | CS11: na | CT11: na | CU11: na | CV11: -1085 | CW11: na | CX11: na | CY11: na | CZ11: NA | DA11: na | DB11: -73 | DC11: -73 | DD11: NA | DE11: na | DF11: -1321 | DG11: NA | DH11: -1889 | DI11: na | DJ11: na | DK11: na | DL11: na | DM11: na | DN11: 4.259 | DO11: 18.375 | DP11: 10.046 | DQ11: 4.341 | DR11: 5.086 | DS11: 72.263 | DT11: 6.45 | DU11: 6.45 | DV11: 0.351
A12: Y | B12: Y | C12: 1 | D12: 5 | E12: 10 | F12: 20 | G12: YY151020 | H12: 871 | I12: 9 | J12: na | K12: na | L12: na | M12: na | N12: na | O12: 1 | P12: na | Q12: na | R12: na | S12: 1 | T12: na | U12: na | V12: na | W12: 1 | X12: na | Y12: 1 | Z12: 1 | AA12: 1 | AB12: na | AC12: 1 | AD12: 1 | AE12: 1 | AF12: na | AG12: na | AH12: na | AI12: na | AJ12: na | AK12: na | AL12: na | AM12: na | AN12: na | AO12: na | AP12: 15.7 | AQ12: na | AR12: na | AS12: na | AT12: 100 | AU12: na | AV12: na | AW12: na | AX12: 14.9 | AY12: na | AZ12: 96 | BA12: 96 | BB12: 4.9 | BC12: na | BD12: 35.7 | BE12: 3.4 | BF12: 43.6 | BG12: na | BH12: na | BI12: na | BJ12: na | BK12: na | BL12: na | BM12: na | BN12: na | BO12: na | BP12: na | BQ12: -6 | BR12: na | BS12: na | BT12: na | BU12: -2 | BV12: na | BW12: na | BX12: na | BY12: -8 | BZ12: na | CA12: 230 | CB12: 230 | CC12: 0 | CD12: na | CE12: 0 | CF12: 8 | CG12: 4 | CH12: na | CI12: na | CJ12: na | CK12: na | CL12: na | CM12: na | CN12: na | CO12: na | CP12: na | CQ12: na | CR12: NA | CS12: na | CT12: na | CU12: na | CV12: NA | CW12: na | CX12: na | CY12: na | CZ12: NA | DA12: na | DB12: NA | DC12: NA | DD12: NA | DE12: na | DF12: NA | DG12: NA | DH12: NA | DI12: na | DJ12: na | DK12: na | DL12: na | DM12: na | DN12: 4.232 | DO12: 31.247 | DP12: 11.143 | DQ12: 4.233 | DR12: 3.81 | DS12: 36.994 | DT12: 162.469 | DU12: 162.469 | DV12: 0.294
A13: Y | B13: Y | C13: 3 | D13: 5 | E13: 10 | F13: 20 | G13: YY351020 | H13: 871 | I13: 9 | J13: na | K13: na | L13: na | M13: na | N13: na | O13: 1 | P13: na | Q13: na | R13: na | S13: 1 | T13: na | U13: na | V13: na | W13: 1 | X13: na | Y13: 1 | Z13: 1 | AA13: 1 | AB13: na | AC13: 1 | AD13: 1 | AE13: 1 | AF13: na | AG13: na | AH13: na | AI13: na | AJ13: na | AK13: na | AL13: na | AM13: na | AN13: na | AO13: na | AP13: 15.7 | AQ13: na | AR13: na | AS13: na | AT13: 100 | AU13: na | AV13: na | AW13: na | AX13: 14.9 | AY13: na | AZ13: 96 | BA13: 96 | BB13: 4.9 | BC13: na | BD13: 35.7 | BE13: 3.4 | BF13: 43.6 | BG13: na | BH13: na | BI13: na | BJ13: na | BK13: na | BL13: na | BM13: na | BN13: na | BO13: na | BP13: na | BQ13: -6 | BR13: na | BS13: na | BT13: na | BU13: -2 | BV13: na | BW13: na | BX13: na | BY13: -8 | BZ13: na | CA13: 230 | CB13: 230 | CC13: 0 | CD13: na | CE13: 0 | CF13: 8 | CG13: 4 | CH13: na | CI13: na | CJ13: na | CK13: na | CL13: na | CM13: na | CN13: na | CO13: na | CP13: na | CQ13: na | CR13: NA | CS13: na | CT13: na | CU13: na | CV13: NA | CW13: na | CX13: na | CY13: na | CZ13: NA | DA13: na | DB13: NA | DC13: NA | DD13: NA | DE13: na | DF13: NA | DG13: NA | DH13: NA | DI13: na | DJ13: na | DK13: na | DL13: na | DM13: na | DN13: 4.232 | DO13: 31.247 | DP13: 11.143 | DQ13: 4.233 | DR13: 3.81 | DS13: 36.994 | DT13: 162.469 | DU13: 162.469 | DV13: 0.294
A14: Y | B14: Y | C14: 1 | D14: 15 | E14: 10 | F14: 20 | G14: YY1151020 | H14: 3317 | I14: 19 | J14: na | K14: na | L14: na | M14: na | N14: na | O14: 1 | P14: na | Q14: na | R14: na | S14: 3 | T14: na | U14: na | V14: na | W14: 2 | X14: na | Y14: 4 | Z14: 4 | AA14: 1 | AB14: na | AC14: 2 | AD14: 1 | AE14: 1 | AF14: na | AG14: na | AH14: na | AI14: na | AJ14: na | AK14: na | AL14: na | AM14: na | AN14: na | AO14: na | AP14: 45.1 | AQ14: na | AR14: na | AS14: na | AT14: 99.6 | AU14: na | AV14: na | AW14: na | AX14: 38.7 | AY14: na | AZ14: 92.3 | BA14: 92.3 | BB14: 18.7 | BC14: na | BD14: 53.5 | BE14: 11.3 | BF14: 65.3 | BG14: na | BH14: na | BI14: na | BJ14: na | BK14: na | BL14: na | BM14: na | BN14: na | BO14: na | BP14: na | BQ14: 8 | BR14: na | BS14: na | BT14: na | BU14: 202 | BV14: na | BW14: na | BX14: na | BY14: -1 | BZ14: na | CA14: 30 | CB14: 30 | CC14: -33 | CD14: na | CE14: 0 | CF14: 0 | CG14: 3 | CH14: na | CI14: na | CJ14: na | CK14: na | CL14: na | CM14: na | CN14: na | CO14: na | CP14: na | CQ14: na | CR14: NA | CS14: na | CT14: na | CU14: na | CV14: -1109 | CW14: na | CX14: na | CY14: na | CZ14: NA | DA14: na | DB14: -679 | DC14: -679 | DD14: NA | DE14: na | DF14: -235 | DG14: NA | DH14: -834 | DI14: na | DJ14: na | DK14: na | DL14: na | DM14: na | DN14: 4.32 | DO14: 19.821 | DP14: 12.293 | DQ14: 2.984 | DR14: 4.161 | DS14: 48.236 | DT14: 10.879 | DU14: 10.879 | DV14: 0.33
A15: Y | B15: Y | C15: 3 | D15: 15 | E15: 10 | F15: 20 | G15: YY3151020 | H15: 3317 | I15: 19 | J15: na | K15: na | L15: na | M15: na | N15: na | O15: 1 | P15: na | Q15: na | R15: na | S15: 3 | T15: na | U15: na | V15: na | W15: 2 | X15: na | Y15: 4 | Z15: 4 | AA15: 1 | AB15: na | AC15: 2 | AD15: 1 | AE15: 1 | AF15: na | AG15: na | AH15: na | AI15: na | AJ15: na | AK15: na | AL15: na | AM15: na | AN15: na | AO15: na | AP15: 45.1 | AQ15: na | AR15: na | AS15: na | AT15: 99.6 | AU15: na | AV15: na | AW15: na | AX15: 38.7 | AY15: na | AZ15: 92.3 | BA15: 92.3 | BB15: 18.7 | BC15: na | BD15: 53.5 | BE15: 11.3 | BF15: 65.3 | BG15: na | BH15: na | BI15: na | BJ15: na | BK15: na | BL15: na | BM15: na | BN15: na | BO15: na | BP15: na | BQ15: 8 | BR15: na | BS15: na | BT15: na | BU15: 202 | BV15: na | BW15: na | BX15: na | BY15: -1 | BZ15: na | CA15: 30 | CB15: 30 | CC15: -33 | CD15: na | CE15: 0 | CF15: 0 | CG15: 3 | CH15: na | CI15: na | CJ15: na | CK15: na | CL15: na | CM15: na | CN15: na | CO15: na | CP15: na | CQ15: na | CR15: NA | CS15: na | CT15: na | CU15: na | CV15: -1109 | CW15: na | CX15: na | CY15: na | CZ15: NA | DA15: na | DB15: -679 | DC15: -679 | DD15: NA | DE15: na | DF15: -235 | DG15: NA | DH15: -834 | DI15: na | DJ15: na | DK15: na | DL15: na | DM15: na | DN15: 4.32 | DO15: 19.821 | DP15: 12.293 | DQ15: 2.984 | DR15: 4.161 | DS15: 48.236 | DT15: 10.879 | DU15: 10.879 | DV15: 0.33
A16: Y | B16: Y | C16: 1 | D16: 30 | E16: 10 | F16: 20 | G16: YY1301020 | H16: 7898.8 | I16: 39 | J16: na | K16: na | L16: na | M16: na | N16: na | O16: 1 | P16: na | Q16: na | R16: na | S16: 8 | T16: na | U16: na | V16: na | W16: 5 | X16: na | Y16: 9 | Z16: 9 | AA16: 2 | AB16: na | AC16: 3 | AD16: 1 | AE16: 1 | AF16: na | AG16: na | AH16: na | AI16: na | AJ16: na | AK16: na | AL16: na | AM16: na | AN16: na | AO16: na | AP16: 84.2 | AQ16: na | AR16: na | AS16: na | AT16: 98.9 | AU16: na | AV16: na | AW16: na | AX16: 96.4 | AY16: na | AZ16: 97.6 | BA16: 97.6 | BB16: 22.6 | BC16: na | BD16: 94.6 | BE16: 30.6 | BF16: 69.5 | BG16: na | BH16: na | BI16: na | BJ16: na | BK16: na | BL16: na | BM16: na | BN16: na | BO16: na | BP16: na | BQ16: 42 | BR16: na | BS16: na | BT16: na | BU16: 24 | BV16: na | BW16: na | BX16: na | BY16: 23 | BZ16: na | CA16: 702 | CB16: 702 | CC16: 34 | CD16: na | CE16: -5 | CF16: 24 | CG16: 39 | CH16: na | CI16: na | CJ16: na | CK16: na | CL16: na | CM16: na | CN16: na | CO16: na | CP16: na | CQ16: na | CR16: NA | CS16: na | CT16: na | CU16: na | CV16: -246 | CW16: na | CX16: na | CY16: na | CZ16: NA | DA16: na | DB16: -855 | DC16: -855 | DD16: 16 | DE16: na | DF16: -1740 | DG16: NA | DH16: 19 | DI16: na | DJ16: na | DK16: na | DL16: na | DM16: na | DN16: 4.245 | DO16: 16.772 | DP16: 15.37 | DQ16: 2.255 | DR16: 90.528 | DS16: 125.77 | DT16: 65.827 | DU16: 65.827 | DV16: 0.308
A17: Y | B17: Y | C17: 3 | D17: 30 | E17: 10 | F17: 20 | G17: YY3301020 | H17: 7898.8 | I17: 39 | J17: na | K17: na | L17: na | M17: na | N17: na | O17: 1 | P17: na | Q17: na | R17: na | S17: 8 | T17: na | U17: na | V17: na | W17: 5 | X17: na | Y17: 9 | Z17: 9 | AA17: 2 | AB17: na | AC17: 3 | AD17: 1 | AE17: 1 | AF17: na | AG17: na | AH17: na | AI17: na | AJ17: na | AK17: na | AL17: na | AM17: na | AN17: na | AO17: na | AP17: 84.2 | AQ17: na | AR17: na | AS17: na | AT17: 98.9 | AU17: na | AV17: na | AW17: na | AX17: 96.4 | AY17: na | AZ17: 97.6 | BA17: 97.6 | BB17: 22.6 | BC17: na | BD17: 94.6 | BE17: 30.6 | BF17: 69.5 | BG17: na | BH17: na | BI17: na | BJ17: na | BK17: na | BL17: na | BM17: na | BN17: na | BO17: na | BP17: na | BQ17: 42 | BR17: na | BS17: na | BT17: na | BU17: 24 | BV17: na | BW17: na | BX17: na | BY17: 23 | BZ17: na | CA17: 702 | CB17: 702 | CC17: 34 | CD17: na | CE17: -5 | CF17: 24 | CG17: 39 | CH17: na | CI17: na | CJ17: na | CK17: na | CL17: na | CM17: na | CN17: na | CO17: na | CP17: na | CQ17: na | CR17: NA | CS17: na | CT17: na | CU17: na | CV17: -246 | CW17: na | CX17: na | CY17: na | CZ17: NA | DA17: na | DB17: -855 | DC17: -855 | DD17: 16 | DE17: na | DF17: -1740 | DG17: NA | DH17: 19 | DI17: na | DJ17: na | DK17: na | DL17: na | DM17: na | DN17: 4.245 | DO17: 16.772 | DP17: 15.37 | DQ17: 2.255 | DR17: 90.528 | DS17: 125.77 | DT17: 65.827 | DU17: 65.827 | DV17: 0.308
A18: Y | B18: Y | C18: 1 | D18: 5 | E18: 5 | F18: 40 | G18: YY15540 | H18: 40 | I18: 9 | J18: na | K18: na | L18: na | M18: na | N18: na | O18: 1 | P18: na | Q18: na | R18: na | S18: 1 | T18: na | U18: na | V18: na | W18: 1 | X18: na | Y18: 1 | Z18: 1 | AA18: 1 | AB18: na | AC18: 1 | AD18: 1 | AE18: 1 | AF18: na | AG18: na | AH18: na | AI18: na | AJ18: na | AK18: na | AL18: na | AM18: na | AN18: na | AO18: na | AP18: 33.8 | AQ18: na | AR18: na | AS18: na | AT18: 100 | AU18: na | AV18: na | AW18: na | AX18: 27.6 | AY18: na | AZ18: 95.7 | BA18: 95.7 | BB18: 5 | BC18: na | BD18: 35.3 | BE18: 3.8 | BF18: 43 | BG18: na | BH18: na | BI18: na | BJ18: na | BK18: na | BL18: na | BM18: na | BN18: na | BO18: na | BP18: na | BQ18: 3 | BR18: na | BS18: na | BT18: na | BU18: 10 | BV18: na | BW18: na | BX18: na | BY18: -7 | BZ18: na | CA18: 200 | CB18: 200 | CC18: 0 | CD18: na | CE18: 0 | CF18: -2 | CG18: -10 | CH18: na | CI18: na | CJ18: na | CK18: na | CL18: na | CM18: na | CN18: na | CO18: na | CP18: na | CQ18: na | CR18: NA | CS18: na | CT18: na | CU18: na | CV18: NA | CW18: na | CX18: na | CY18: na | CZ18: NA | DA18: na | DB18: NA | DC18: NA | DD18: NA | DE18: na | DF18: NA | DG18: NA | DH18: NA | DI18: na | DJ18: na | DK18: na | DL18: na | DM18: na | DN18: 4.295 | DO18: 31.607 | DP18: 8.841 | DQ18: 4.06 | DR18: 4.162 | DS18: 45.584 | DT18: 143.077 | DU18: 143.077 | DV18: 0.299
A19: Y | B19: Y | C19: 3 | D19: 5 | E19: 5 | F19: 40 | G19: YY35540 | H19: 868 | I19: 9 | J19: na | K19: na | L19: na | M19: na | N19: na | O19: 1 | P19: na | Q19: na | R19: na | S19: 1 | T19: na | U19: na | V19: na | W19: 1 | X19: na | Y19: 1 | Z19: 1 | AA19: 1 | AB19: na | AC19: 1 | AD19: 1 | AE19: 1 | AF19: na | AG19: na | AH19: na | AI19: na | AJ19: na | AK19: na | AL19: na | AM19: na | AN19: na | AO19: na | AP19: 33.8 | AQ19: na | AR19: na | AS19: na | AT19: 100 | AU19: na | AV19: na | AW19: na | AX19: 27.6 | AY19: na | AZ19: 95.7 | BA19: 95.7 | BB19: 5 | BC19: na | BD19: 35.3 | BE19: 3.8 | BF19: 43 | BG19: na | BH19: na | BI19: na | BJ19: na | BK19: na | BL19: na | BM19: na | BN19: na | BO19: na | BP19: na | BQ19: 3 | BR19: na | BS19: na | BT19: na | BU19: 10 | BV19: na | BW19: na | BX19: na | BY19: -7 | BZ19: na | CA19: 200 | CB19: 200 | CC19: 0 | CD19: na | CE19: 0 | CF19: -2 | CG19: -10 | CH19: na | CI19: na | CJ19: na | CK19: na | CL19: na | CM19: na | CN19: na | CO19: na | CP19: na | CQ19: na | CR19: NA | CS19: na | CT19: na | CU19: na | CV19: NA | CW19: na | CX19: na | CY19: na | CZ19: NA | DA19: na | DB19: NA | DC19: NA | DD19: NA | DE19: na | DF19: NA | DG19: NA | DH19: NA | DI19: na | DJ19: na | DK19: na | DL19: na | DM19: na | DN19: 4.295 | DO19: 31.607 | DP19: 8.841 | DQ19: 4.06 | DR19: 4.162 | DS19: 45.584 | DT19: 143.077 | DU19: 143.077 | DV19: 0.299
A20: Y | B20: Y | C20: 1 | D20: 15 | E20: 5 | F20: 40 | G20: YY115540 | H20: 3251 | I20: 19 | J20: na | K20: na | L20: na | M20: na | N20: na | O20: 1 | P20: na | Q20: na | R20: na | S20: 3 | T20: na | U20: na | V20: na | W20: 2 | X20: na | Y20: 4 | Z20: 4 | AA20: 1 | AB20: na | AC20: 2 | AD20: 1 | AE20: 1 | AF20: na | AG20: na | AH20: na | AI20: na | AJ20: na | AK20: na | AL20: na | AM20: na | AN20: na | AO20: na | AP20: 85.6 | AQ20: na | AR20: na | AS20: na | AT20: 99.7 | AU20: na | AV20: na | AW20: na | AX20: 82.5 | AY20: na | AZ20: 90 | BA20: 90 | BB20: 18.5 | BC20: na | BD20: 53.5 | BE20: 11.5 | BF20: 65.5 | BG20: na | BH20: na | BI20: na | BJ20: na | BK20: na | BL20: na | BM20: na | BN20: na | BO20: na | BP20: na | BQ20: 21 | BR20: na | BS20: na | BT20: na | BU20: 247 | BV20: na | BW20: na | BX20: na | BY20: -5 | BZ20: na | CA20: -26 | CB20: -26 | CC20: -16 | CD20: na | CE20: 0 | CF20: -25 | CG20: -29 | CH20: na | CI20: na | CJ20: na | CK20: na | CL20: na | CM20: na | CN20: na | CO20: na | CP20: na | CQ20: na | CR20: NA | CS20: na | CT20: na | CU20: na | CV20: -1087 | CW20: na | CX20: na | CY20: na | CZ20: NA | DA20: na | DB20: -646 | DC20: -646 | DD20: NA | DE20: na | DF20: -261 | DG20: NA | DH20: -836 | DI20: na | DJ20: na | DK20: na | DL20: na | DM20: na | DN20: 4.261 | DO20: 19.801 | DP20: 10.848 | DQ20: 2.902 | DR20: 14.125 | DS20: 121.532 | DT20: 10.368 | DU20: 10.368 | DV20: 0.328
A21: Y | B21: Y | C21: 3 | D21: 15 | E21: 5 | F21: 40 | G21: YY315540 | H21: 3251 | I21: 19 | J21: na | K21: na | L21: na | M21: na | N21: na | O21: 1 | P21: na | Q21: na | R21: na | S21: 3 | T21: na | U21: na | V21: na | W21: 2 | X21: na | Y21: 4 | Z21: 4 | AA21: 1 | AB21: na | AC21: 2 | AD21: 1 | AE21: 1 | AF21: na | AG21: na | AH21: na | AI21: na | AJ21: na | AK21: na | AL21: na | AM21: na | AN21: na | AO21: na | AP21: 85.6 | AQ21: na | AR21: na | AS21: na | AT21: 99.7 | AU21: na | AV21: na | AW21: na | AX21: 82.5 | AY21: na | AZ21: 90 | BA21: 90 | BB21: 18.5 | BC21: na | BD21: 53.5 | BE21: 11.5 | BF21: 65.5 | BG21: na | BH21: na | BI21: na | BJ21: na | BK21: na | BL21: na | BM21: na | BN21: na | BO21: na | BP21: na | BQ21: 21 | BR21: na | BS21: na | BT21: na | BU21: 247 | BV21: na | BW21: na | BX21: na | BY21: -5 | BZ21: na | CA21: -26 | CB21: -26 | CC21: -16 | CD21: na | CE21: 0 | CF21: -25 | CG21: -29 | CH21: na | CI21: na | CJ21: na | CK21: na | CL21: na | CM21: na | CN21: na | CO21: na | CP21: na | CQ21: na | CR21: NA | CS21: na | CT21: na | CU21: na | CV21: -1087 | CW21: na | CX21: na | CY21: na | CZ21: NA | DA21: na | DB21: -646 | DC21: -646 | DD21: NA | DE21: na | DF21: -261 | DG21: NA | DH21: -836 | DI21: na | DJ21: na | DK21: na | DL21: na | DM21: na | DN21: 4.261 | DO21: 19.801 | DP21: 10.848 | DQ21: 2.902 | DR21: 14.125 | DS21: 121.532 | DT21: 10.368 | DU21: 10.368 | DV21: 0.328
A22: Y | B22: Y | C22: 1 | D22: 30 | E22: 5 | F22: 40 | G22: YY130540 | H22: 4814.8 | I22: 27 | J22: na | K22: na | L22: na | M22: na | N22: na | O22: 1 | P22: na | Q22: na | R22: na | S22: 5 | T22: na | U22: na | V22: na | W22: 2 | X22: na | Y22: 6 | Z22: 6 | AA22: 1 | AB22: na | AC22: 2 | AD22: 1 | AE22: 3 | AF22: na | AG22: na | AH22: na | AI22: na | AJ22: na | AK22: na | AL22: na | AM22: na | AN22: na | AO22: na | AP22: 93.6 | AQ22: na | AR22: na | AS22: na | AT22: 99.4 | AU22: na | AV22: na | AW22: na | AX22: 40.7 | AY22: na | AZ22: 89.2 | BA22: 89.2 | BB22: 27.4 | BC22: na | BD22: 89.1 | BE22: 23.7 | BF22: 97.8 | BG22: na | BH22: na | BI22: na | BJ22: na | BK22: na | BL22: na | BM22: na | BN22: na | BO22: na | BP22: na | BQ22: 42 | BR22: na | BS22: na | BT22: na | BU22: -11 | BV22: na | BW22: na | BX22: na | BY22: 17 | BZ22: na | CA22: -5 | CB22: -5 | CC22: -26 | CD22: na | CE22: 17 | CF22: -15 | CG22: 401 | CH22: na | CI22: na | CJ22: na | CK22: na | CL22: na | CM22: na | CN22: na | CO22: na | CP22: na | CQ22: na | CR22: NA | CS22: na | CT22: na | CU22: na | CV22: -527 | CW22: na | CX22: na | CY22: na | CZ22: -8 | DA22: na | DB22: -428 | DC22: -428 | DD22: NA | DE22: na | DF22: -1806 | DG22: NA | DH22: -2396 | DI22: na | DJ22: na | DK22: na | DL22: na | DM22: na | DN22: 4.297 | DO22: 17.711 | DP22: 14.553 | DQ22: 72.97 | DR22: 3.19 | DS22: 231.859 | DT22: 7.101 | DU22: 7.101 | DV22: 0.355
A23: Y | B23: Y | C23: 3 | D23: 30 | E23: 5 | F23: 40 | G23: YY330540 | H23: 4814.8 | I23: 27 | J23: na | K23: na | L23: na | M23: na | N23: na | O23: 1 | P23: na | Q23: na | R23: na | S23: 5 | T23: na | U23: na | V23: na | W23: 2 | X23: na | Y23: 6 | Z23: 6 | AA23: 1 | AB23: na | AC23: 2 | AD23: 1 | AE23: 3 | AF23: na | AG23: na | AH23: na | AI23: na | AJ23: na | AK23: na | AL23: na | AM23: na | AN23: na | AO23: na | AP23: 93.6 | AQ23: na | AR23: na | AS23: na | AT23: 99.4 | AU23: na | AV23: na | AW23: na | AX23: 40.7 | AY23: na | AZ23: 89.2 | BA23: 89.2 | BB23: 27.4 | BC23: na | BD23: 89.1 | BE23: 23.7 | BF23: 97.8 | BG23: na | BH23: na | BI23: na | BJ23: na | BK23: na | BL23: na | BM23: na | BN23: na | BO23: na | BP23: na | BQ23: 42 | BR23: na | BS23: na | BT23: na | BU23: -11 | BV23: na | BW23: na | BX23: na | BY23: 17 | BZ23: na | CA23: -5 | CB23: -5 | CC23: -26 | CD23: na | CE23: 17 | CF23: -15 | CG23: 401 | CH23: na | CI23: na | CJ23: na | CK23: na | CL23: na | CM23: na | CN23: na | CO23: na | CP23: na | CQ23: na | CR23: NA | CS23: na | CT23: na | CU23: na | CV23: -527 | CW23: na | CX23: na | CY23: na | CZ23: -8 | DA23: na | DB23: -428 | DC23: -428 | DD23: NA | DE23: na | DF23: -1806 | DG23: NA | DH23: -2396 | DI23: na | DJ23: na | DK23: na | DL23: na | DM23: na | DN23: 4.297 | DO23: 17.711 | DP23: 14.553 | DQ23: 72.97 | DR23: 3.19 | DS23: 231.859 | DT23: 7.101 | DU23: 7.101 | DV23: 0.355
A24: Y | B24: Y | C24: 1 | D24: 5 | E24: 10 | F24: 40 | G24: YY151040 | H24: 867.8 | I24: 9 | J24: na | K24: na | L24: na | M24: na | N24: na | O24: 1 | P24: na | Q24: na | R24: na | S24: 1 | T24: na | U24: na | V24: na | W24: 1 | X24: na | Y24: 1 | Z24: 1 | AA24: 1 | AB24: na | AC24: 1 | AD24: 1 | AE24: 1 | AF24: na | AG24: na | AH24: na | AI24: na | AJ24: na | AK24: na | AL24: na | AM24: na | AN24: na | AO24: na | AP24: 33.8 | AQ24: na | AR24: na | AS24: na | AT24: 100 | AU24: na | AV24: na | AW24: na | AX24: 27.6 | AY24: na | AZ24: 95.7 | BA24: 95.7 | BB24: 5 | BC24: na | BD24: 35.3 | BE24: 3.8 | BF24: 43 | BG24: na | BH24: na | BI24: na | BJ24: na | BK24: na | BL24: na | BM24: na | BN24: na | BO24: na | BP24: na | BQ24: 3 | BR24: na | BS24: na | BT24: na | BU24: 10 | BV24: na | BW24: na | BX24: na | BY24: -7 | BZ24: na | CA24: 200 | CB24: 200 | CC24: 0 | CD24: na | CE24: 0 | CF24: -2 | CG24: -10 | CH24: na | CI24: na | CJ24: na | CK24: na | CL24: na | CM24: na | CN24: na | CO24: na | CP24: na | CQ24: na | CR24: NA | CS24: na | CT24: na | CU24: na | CV24: NA | CW24: na | CX24: na | CY24: na | CZ24: NA | DA24: na | DB24: NA | DC24: NA | DD24: NA | DE24: na | DF24: -566 | DG24: NA | DH24: -1124 | DI24: na | DJ24: na | DK24: na | DL24: na | DM24: na | DN24: 4.295 | DO24: 31.607 | DP24: 8.841 | DQ24: 4.06 | DR24: 4.162 | DS24: 45.584 | DT24: 143.077 | DU24: 143.077 | DV24: 0.299
A25: Y | B25: Y | C25: 3 | D25: 5 | E25: 10 | F25: 40 | G25: YY351040 | H25: 867.8 | I25: 9 | J25: na | K25: na | L25: na | M25: na | N25: na | O25: 1 | P25: na | Q25: na | R25: na | S25: 1 | T25: na | U25: na | V25: na | W25: 1 | X25: na | Y25: 1 | Z25: 1 | AA25: 1 | AB25: na | AC25: 1 | AD25: 1 | AE25: 1 | AF25: na | AG25: na | AH25: na | AI25: na | AJ25: na | AK25: na | AL25: na | AM25: na | AN25: na | AO25: na | AP25: 33.8 | AQ25: na | AR25: na | AS25: na | AT25: 100 | AU25: na | AV25: na | AW25: na | AX25: 27.6 | AY25: na | AZ25: 95.7 | BA25: 95.7 | BB25: 5 | BC25: na | BD25: 35.3 | BE25: 3.8 | BF25: 43 | BG25: na | BH25: na | BI25: na | BJ25: na | BK25: na | BL25: na | BM25: na | BN25: na | BO25: na | BP25: na | BQ25: 3 | BR25: na | BS25: na | BT25: na | BU25: 10 | BV25: na | BW25: na | BX25: na | BY25: -7 | BZ25: na | CA25: 200 | CB25: 200 | CC25: 0 | CD25: na | CE25: 0 | CF25: -2 | CG25: -10 | CH25: na | CI25: na | CJ25: na | CK25: na | CL25: na | CM25: na | CN25: na | CO25: na | CP25: na | CQ25: na | CR25: NA | CS25: na | CT25: na | CU25: na | CV25: NA | CW25: na | CX25: na | CY25: na | CZ25: NA | DA25: na | DB25: NA | DC25: NA | DD25: NA | DE25: na | DF25: NA | DG25: NA | DH25: NA | DI25: na | DJ25: na | DK25: na | DL25: na | DM25: na | DN25: 4.295 | DO25: 31.607 | DP25: 8.841 | DQ25: 4.06 | DR25: 4.162 | DS25: 45.584 | DT25: 143.077 | DU25: 143.077 | DV25: 0.299
A26: Y | B26: Y | C26: 1 | D26: 15 | E26: 10 | F26: 40 | G26: YY1151040 | H26: 3246 | I26: 21 | J26: na | K26: na | L26: na | M26: na | N26: na | O26: 1 | P26: na | Q26: na | R26: na | S26: 4 | T26: na | U26: na | V26: na | W26: 2 | X26: na | Y26: 4 | Z26: 4 | AA26: 1 | AB26: na | AC26: 2 | AD26: 1 | AE26: 2 | AF26: na | AG26: na | AH26: na | AI26: na | AJ26: na | AK26: na | AL26: na | AM26: na | AN26: na | AO26: na | AP26: 94.7 | AQ26: na | AR26: na | AS26: na | AT26: 99.5 | AU26: na | AV26: na | AW26: na | AX26: 53.7 | AY26: na | AZ26: 97.4 | BA26: 97.4 | BB26: 20.2 | BC26: na | BD26: 71.1 | BE26: 15.6 | BF26: 87.1 | BG26: na | BH26: na | BI26: na | BJ26: na | BK26: na | BL26: na | BM26: na | BN26: na | BO26: na | BP26: na | BQ26: -38 | BR26: na | BS26: na | BT26: na | BU26: -38 | BV26: na | BW26: na | BX26: na | BY26: -31 | BZ26: na | CA26: 748 | CB26: 748 | CC26: -39 | CD26: na | CE26: -10 | CF26: -28 | CG26: -41 | CH26: na | CI26: na | CJ26: na | CK26: na | CL26: na | CM26: na | CN26: na | CO26: na | CP26: na | CQ26: na | CR26: NA | CS26: na | CT26: na | CU26: na | CV26: -299 | CW26: na | CX26: na | CY26: na | CZ26: -47 | DA26: na | DB26: -914 | DC26: -914 | DD26: NA | DE26: na | DF26: NA | DG26: NA | DH26: NA | DI26: na | DJ26: na | DK26: na | DL26: na | DM26: na | DN26: 4.289 | DO26: 18.409 | DP26: 14.242 | DQ26: 4.435 | DR26: 3.944 | DS26: 209.135 | DT26: 127.438 | DU26: 127.438 | DV26: 0.33
A27: Y | B27: Y | C27: 3 | D27: 15 | E27: 10 | F27: 40 | G27: YY3151040 | H27: 3246 | I27: 21 | J27: na | K27: na | L27: na | M27: na | N27: na | O27: 1 | P27: na | Q27: na | R27: na | S27: 4 | T27: na | U27: na | V27: na | W27: 2 | X27: na | Y27: 4 | Z27: 4 | AA27: 1 | AB27: na | AC27: 2 | AD27: 1 | AE27: 2 | AF27: na | AG27: na | AH27: na | AI27: na | AJ27: na | AK27: na | AL27: na | AM27: na | AN27: na | AO27: na | AP27: 94.7 | AQ27: na | AR27: na | AS27: na | AT27: 99.5 | AU27: na | AV27: na | AW27: na | AX27: 53.7 | AY27: na | AZ27: 97.4 | BA27: 97.4 | BB27: 20.2 | BC27: na | BD27: 71.1 | BE27: 15.6 | BF27: 87.1 | BG27: na | BH27: na | BI27: na | BJ27: na | BK27: na | BL27: na | BM27: na | BN27: na | BO27: na | BP27: na | BQ27: -38 | BR27: na | BS27: na | BT27: na | BU27: -38 | BV27: na | BW27: na | BX27: na | BY27: -31 | BZ27: na | CA27: 748 | CB27: 748 | CC27: -39 | CD27: na | CE27: -10 | CF27: -28 | CG27: -41 | CH27: na | CI27: na | CJ27: na | CK27: na | CL27: na | CM27: na | CN27: na | CO27: na | CP27: na | CQ27: na | CR27: NA | CS27: na | CT27: na | CU27: na | CV27: -299 | CW27: na | CX27: na | CY27: na | CZ27: -47 | DA27: na | DB27: -914 | DC27: -914 | DD27: NA | DE27: na | DF27: NA | DG27: NA | DH27: NA | DI27: na | DJ27: na | DK27: na | DL27: na | DM27: na | DN27: 4.289 | DO27: 18.409 | DP27: 14.242 | DQ27: 4.435 | DR27: 3.944 | DS27: 209.135 | DT27: 127.438 | DU27: 127.438 | DV27: 0.33
A28: Y | B28: Y | C28: 1 | D28: 30 | E28: 10 | F28: 40 | G28: YY1301040 | H28: 7928.2 | I28: 40 | J28: na | K28: na | L28: na | M28: na | N28: na | O28: 1 | P28: na | Q28: na | R28: na | S28: 8 | T28: na | U28: na | V28: na | W28: 4 | X28: na | Y28: 9 | Z28: 9 | AA28: 1 | AB28: na | AC28: 3 | AD28: 2 | AE28: 3 | AF28: na | AG28: na | AH28: na | AI28: na | AJ28: na | AK28: na | AL28: na | AM28: na | AN28: na | AO28: na | AP28: 96.9 | AQ28: na | AR28: na | AS28: na | AT28: 99 | AU28: na | AV28: na | AW28: na | AX28: 71.7 | AY28: na | AZ28: 97.3 | BA28: 97.3 | BB28: 45.3 | BC28: na | BD28: 94.2 | BE28: 14.6 | BF28: 86.8 | BG28: na | BH28: na | BI28: na | BJ28: na | BK28: na | BL28: na | BM28: na | BN28: na | BO28: na | BP28: na | BQ28: -8 | BR28: na | BS28: na | BT28: na | BU28: 12 | BV28: na | BW28: na | BX28: na | BY28: -8 | BZ28: na | CA28: 455 | CB28: 455 | CC28: 4 | CD28: na | CE28: -46 | CF28: -29 | CG28: -71 | CH28: na | CI28: na | CJ28: na | CK28: na | CL28: na | CM28: na | CN28: na | CO28: na | CP28: na | CQ28: na | CR28: NA | CS28: na | CT28: na | CU28: na | CV28: -532 | CW28: na | CX28: na | CY28: na | CZ28: -83 | DA28: na | DB28: -879 | DC28: -879 | DD28: NA | DE28: na | DF28: -1947 | DG28: -42 | DH28: -763 | DI28: na | DJ28: na | DK28: na | DL28: na | DM28: na | DN28: 4.286 | DO28: 16.678 | DP28: 8.831 | DQ28: 3.231 | DR28: 4.296 | DS28: 403.157 | DT28: 54.576 | DU28: 54.576 | DV28: 0.412
A29: Y | B29: Y | C29: 3 | D29: 30 | E29: 10 | F29: 40 | G29: YY3301040 | H29: 7928.2 | I29: 40 | J29: na | K29: na | L29: na | M29: na | N29: na | O29: 1 | P29: na | Q29: na | R29: na | S29: 8 | T29: na | U29: na | V29: na | W29: 4 | X29: na | Y29: 9 | Z29: 9 | AA29: 1 | AB29: na | AC29: 3 | AD29: 2 | AE29: 3 | AF29: na | AG29: na | AH29: na | AI29: na | AJ29: na | AK29: na | AL29: na | AM29: na | AN29: na | AO29: na | AP29: 96.9 | AQ29: na | AR29: na | AS29: na | AT29: 99 | AU29: na | AV29: na | AW29: na | AX29: 71.7 | AY29: na | AZ29: 97.3 | BA29: 97.3 | BB29: 45.3 | BC29: na | BD29: 94.2 | BE29: 14.6 | BF29: 86.8 | BG29: na | BH29: na | BI29: na | BJ29: na | BK29: na | BL29: na | BM29: na | BN29: na | BO29: na | BP29: na | BQ29: -8 | BR29: na | BS29: na | BT29: na | BU29: 12 | BV29: na | BW29: na | BX29: na | BY29: -8 | BZ29: na | CA29: 455 | CB29: 455 | CC29: 4 | CD29: na | CE29: -46 | CF29: -29 | CG29: -71 | CH29: na | CI29: na | CJ29: na | CK29: na | CL29: na | CM29: na | CN29: na | CO29: na | CP29: na | CQ29: na | CR29: NA | CS29: na | CT29: na | CU29: na | CV29: -532 | CW29: na | CX29: na | CY29: na | CZ29: -83 | DA29: na | DB29: -879 | DC29: -879 | DD29: NA | DE29: na | DF29: -1947 | DG29: -42 | DH29: -763 | DI29: na | DJ29: na | DK29: na | DL29: na | DM29: na | DN29: 4.286 | DO29: 16.678 | DP29: 8.831 | DQ29: 3.231 | DR29: 4.296 | DS29: 403.157 | DT29: 54.576 | DU29: 54.576 | DV29: 0.412
A30: Y | B30: N | C30: 1 | D30: 5 | E30: 5 | F30: 20 | G30: YN15520 | H30: 1102 | I30: =O30+S30+W30+Y30+AA30+AC30+ AD30+AE30 -> 9 | J30: na | K30: na | L30: na | M30: na | N30: na | O30: 1 | P30: na | Q30: na | R30: na | S30: 1 | T30: na | U30: na | V30: na | W30: 1 | X30: na | Y30: 2 | Z30: na | AA30: 1 | AB30: na | AC30: 1 | AD30: 1 | AE30: 1 | AF30: na | AG30: na | AH30: na | AI30: na | AJ30: na | AK30: na | AL30: na | AM30: na | AN30: na | AO30: na | AP30: 16.1 | AQ30: na | AR30: na | AS30: na | AT30: 100 | AU30: na | AV30: na | AW30: na | AX30: 12.8 | AY30: na | AZ30: 60.7 | BA30: 0 | BB30: 6.4 | BC30: na | BD30: 35.8 | BE30: 3.5 | BF30: 43.2 | BG30: na | BH30: na | BI30: na | BJ30: na | BK30: na | BL30: na | BM30: na | BN30: na | BO30: na | BP30: na | BQ30: 0 | BR30: na | BS30: na | BT30: na | BU30: 652 | BV30: na | BW30: na | BX30: na | BY30: 1 | BZ30: na | CA30: -9 | CB30: na | CC30: -11 | CD30: na | CE30: 0 | CF30: -4 | CG30: 13 | CH30: na | CI30: na | CJ30: na | CK30: na | CL30: na | CM30: na | CN30: na | CO30: na | CP30: na | CQ30: na | CR30: NA | CS30: na | CT30: na | CU30: na | CV30: NA | CW30: na | CX30: na | CY30: na | CZ30: NA | DA30: na | DB30: -230 | DC30: na | DD30: NA | DE30: na | DF30: NA | DG30: NA | DH30: NA | DI30: na | DJ30: na | DK30: na | DL30: na | DM30: na | DN30: 4.263 | DO30: 31.04 | DP30: 7.62 | DQ30: 4.085 | DR30: 3.54 | DS30: 41.208 | DT30: 7.534 | DU30: na | DV30: 0.313
A31: Y | B31: N | C31: 3 | D31: 5 | E31: 5 | F31: 20 | G31: YN35520 | H31: 1102 | I31: =O31+S31+W31+Y31+AA31+AC31+ AD31+AE31 -> 9 | J31: na | K31: na | L31: na | M31: na | N31: na | O31: 1 | P31: na | Q31: na | R31: na | S31: 1 | T31: na | U31: na | V31: na | W31: 1 | X31: na | Y31: 2 | Z31: na | AA31: 1 | AB31: na | AC31: 1 | AD31: 1 | AE31: 1 | AF31: na | AG31: na | AH31: na | AI31: na | AJ31: na | AK31: na | AL31: na | AM31: na | AN31: na | AO31: na | AP31: 16.1 | AQ31: na | AR31: na | AS31: na | AT31: 100 | AU31: na | AV31: na | AW31: na | AX31: 12.8 | AY31: na | AZ31: 60.7 | BA31: 0 | BB31: 6.4 | BC31: na | BD31: 35.8 | BE31: 3.5 | BF31: 43.2 | BG31: na | BH31: na | BI31: na | BJ31: na | BK31: na | BL31: na | BM31: na | BN31: na | BO31: na | BP31: na | BQ31: 0 | BR31: na | BS31: na | BT31: na | BU31: 652 | BV31: na | BW31: na | BX31: na | BY31: 1 | BZ31: na | CA31: -9 | CB31: na | CC31: -11 | CD31: na | CE31: 0 | CF31: -4 | CG31: 13 | CH31: na | CI31: na | CJ31: na | CK31: na | CL31: na | CM31: na | CN31: na | CO31: na | CP31: na | CQ31: na | CR31: NA | CS31: na | CT31: na | CU31: na | CV31: NA | CW31: na | CX31: na | CY31: na | CZ31: NA | DA31: na | DB31: -230 | DC31: na | DD31: NA | DE31: na | DF31: NA | DG31: NA | DH31: NA | DI31: na | DJ31: na | DK31: na | DL31: na | DM31: na | DN31: 4.263 | DO31: 31.04 | DP31: 7.62 | DQ31: 4.085 | DR31: 3.54 | DS31: 41.208 | DT31: 7.534 | DU31: na | DV31: 0.313
A32: Y | B32: N | C32: 1 | D32: 15 | E32: 5 | F32: 20 | G32: YN115520 | H32: 4968 | I32: 19 | J32: na | K32: na | L32: na | M32: na | N32: na | O32: 1 | P32: na | Q32: na | R32: na | S32: 5 | T32: na | U32: na | V32: na | W32: 2 | X32: na | Y32: 6 | Z32: na | AA32: 1 | AB32: na | AC32: 2 | AD32: 1 | AE32: 1 | AF32: na | AG32: na | AH32: na | AI32: na | AJ32: na | AK32: na | AL32: na | AM32: na | AN32: na | AO32: na | AP32: 64.9 | AQ32: na | AR32: na | AS32: na | AT32: 99.4 | AU32: na | AV32: na | AW32: na | AX32: 57.2 | AY32: na | AZ32: 91.6 | BA32: 0 | BB32: 28.2 | BC32: na | BD32: 89 | BE32: 16.8 | BF32: 97.8 | BG32: na | BH32: na | BI32: na | BJ32: na | BK32: na | BL32: na | BM32: na | BN32: na | BO32: na | BP32: na | BQ32: -4 | BR32: na | BS32: na | BT32: na | BU32: 13 | BV32: na | BW32: na | BX32: na | BY32: 14 | BZ32: na | CA32: -11 | CB32: na | CC32: -17 | CD32: na | CE32: -18 | CF32: -1 | CG32: 299 | CH32: na | CI32: na | CJ32: na | CK32: na | CL32: na | CM32: na | CN32: na | CO32: na | CP32: na | CQ32: na | CR32: NA | CS32: na | CT32: na | CU32: na | CV32: -565 | CW32: na | CX32: na | CY32: na | CZ32: NA | DA32: na | DB32: -571 | DC32: na | DD32: NA | DE32: na | DF32: -1868 | DG32: NA | DH32: -2462 | DI32: na | DJ32: na | DK32: na | DL32: na | DM32: na | DN32: 4.293 | DO32: 17.642 | DP32: 10.124 | DQ32: 75.93 | DR32: 5.53 | DS32: 60.617 | DT32: 7.455 | DU32: na | DV32: 0.356
A33: Y | B33: N | C33: 3 | D33: 15 | E33: 5 | F33: 20 | G33: YN315520 | H33: 4968 | I33: 19 | J33: na | K33: na | L33: na | M33: na | N33: na | O33: 1 | P33: na | Q33: na | R33: na | S33: 5 | T33: na | U33: na | V33: na | W33: 2 | X33: na | Y33: 6 | Z33: na | AA33: 1 | AB33: na | AC33: 2 | AD33: 1 | AE33: 1 | AF33: na | AG33: na | AH33: na | AI33: na | AJ33: na | AK33: na | AL33: na | AM33: na | AN33: na | AO33: na | AP33: 64.9 | AQ33: na | AR33: na | AS33: na | AT33: 99.4 | AU33: na | AV33: na | AW33: na | AX33: 57.2 | AY33: na | AZ33: 91.6 | BA33: 0 | BB33: 28.2 | BC33: na | BD33: 89 | BE33: 16.8 | BF33: 97.8 | BG33: na | BH33: na | BI33: na | BJ33: na | BK33: na | BL33: na | BM33: na | BN33: na | BO33: na | BP33: na | BQ33: -4 | BR33: na | BS33: na | BT33: na | BU33: 13 | BV33: na | BW33: na | BX33: na | BY33: 14 | BZ33: na | CA33: -11 | CB33: na | CC33: -17 | CD33: na | CE33: -18 | CF33: -1 | CG33: 299 | CH33: na | CI33: na | CJ33: na | CK33: na | CL33: na | CM33: na | CN33: na | CO33: na | CP33: na | CQ33: na | CR33: NA | CS33: na | CT33: na | CU33: na | CV33: -565 | CW33: na | CX33: na | CY33: na | CZ33: NA | DA33: na | DB33: -571 | DC33: na | DD33: NA | DE33: na | DF33: -1868 | DG33: NA | DH33: -2462 | DI33: na | DJ33: na | DK33: na | DL33: na | DM33: na | DN33: 4.293 | DO33: 17.642 | DP33: 10.124 | DQ33: 75.93 | DR33: 5.53 | DS33: 60.617 | DT33: 7.455 | DU33: na | DV33: 0.356
A34: Y | B34: N | C34: 1 | D34: 30 | E34: 5 | F34: 20 | G34: YN130520 | H34: 4968 | I34: 19 | J34: na | K34: na | L34: na | M34: na | N34: na | O34: 1 | P34: na | Q34: na | R34: na | S34: 5 | T34: na | U34: na | V34: na | W34: 2 | X34: na | Y34: 6 | Z34: na | AA34: 1 | AB34: na | AC34: 2 | AD34: 1 | AE34: 1 | AF34: na | AG34: na | AH34: na | AI34: na | AJ34: na | AK34: na | AL34: na | AM34: na | AN34: na | AO34: na | AP34: 64.9 | AQ34: na | AR34: na | AS34: na | AT34: 99.4 | AU34: na | AV34: na | AW34: na | AX34: 57.2 | AY34: na | AZ34: 91.6 | BA34: 0 | BB34: 28.2 | BC34: na | BD34: 89 | BE34: 16.8 | BF34: 97.8 | BG34: na | BH34: na | BI34: na | BJ34: na | BK34: na | BL34: na | BM34: na | BN34: na | BO34: na | BP34: na | BQ34: -4 | BR34: na | BS34: na | BT34: na | BU34: 13 | BV34: na | BW34: na | BX34: na | BY34: 14 | BZ34: na | CA34: -11 | CB34: na | CC34: -17 | CD34: na | CE34: -18 | CF34: -1 | CG34: 299 | CH34: na | CI34: na | CJ34: na | CK34: na | CL34: na | CM34: na | CN34: na | CO34: na | CP34: na | CQ34: na | CR34: NA | CS34: na | CT34: na | CU34: na | CV34: -565 | CW34: na | CX34: na | CY34: na | CZ34: NA | DA34: na | DB34: -571 | DC34: na | DD34: NA | DE34: na | DF34: -1868 | DG34: NA | DH34: -2462 | DI34: na | DJ34: na | DK34: na | DL34: na | DM34: na | DN34: 4.293 | DO34: 17.642 | DP34: 10.124 | DQ34: 75.93 | DR34: 5.53 | DS34: 60.617 | DT34: 7.455 | DU34: na | DV34: 0.356
A35: Y | B35: N | C35: 3 | D35: 30 | E35: 5 | F35: 20 | G35: YN330520 | H35: 4968 | I35: 19 | J35: na | K35: na | L35: na | M35: na | N35: na | O35: 1 | P35: na | Q35: na | R35: na | S35: 5 | T35: na | U35: na | V35: na | W35: 2 | X35: na | Y35: 6 | Z35: na | AA35: 1 | AB35: na | AC35: 2 | AD35: 1 | AE35: 1 | AF35: na | AG35: na | AH35: na | AI35: na | AJ35: na | AK35: na | AL35: na | AM35: na | AN35: na | AO35: na | AP35: 64.9 | AQ35: na | AR35: na | AS35: na | AT35: 99.4 | AU35: na | AV35: na | AW35: na | AX35: 57.2 | AY35: na | AZ35: 91.6 | BA35: 0 | BB35: 28.2 | BC35: na | BD35: 89 | BE35: 16.8 | BF35: 97.8 | BG35: na | BH35: na | BI35: na | BJ35: na | BK35: na | BL35: na | BM35: na | BN35: na | BO35: na | BP35: na | BQ35: -4 | BR35: na | BS35: na | BT35: na | BU35: 13 | BV35: na | BW35: na | BX35: na | BY35: 14 | BZ35: na | CA35: -11 | CB35: na | CC35: -17 | CD35: na | CE35: -18 | CF35: -1 | CG35: 299 | CH35: na | CI35: na | CJ35: na | CK35: na | CL35: na | CM35: na | CN35: na | CO35: na | CP35: na | CQ35: na | CR35: NA | CS35: na | CT35: na | CU35: na | CV35: -565 | CW35: na | CX35: na | CY35: na | CZ35: NA | DA35: na | DB35: -571 | DC35: na | DD35: NA | DE35: na | DF35: -1868 | DG35: NA | DH35: -2462 | DI35: na | DJ35: na | DK35: na | DL35: na | DM35: na | DN35: 4.293 | DO35: 17.642 | DP35: 10.124 | DQ35: 75.93 | DR35: 5.53 | DS35: 60.617 | DT35: 7.455 | DU35: na | DV35: 0.356
A36: Y | B36: N | C36: 1 | D36: 5 | E36: 10 | F36: 20 | G36: YN151020 | H36: 1102 | I36: 9 | J36: na | K36: na | L36: na | M36: na | N36: na | O36: 1 | P36: na | Q36: na | R36: na | S36: 1 | T36: na | U36: na | V36: na | W36: 1 | X36: na | Y36: 2 | Z36: na | AA36: 1 | AB36: na | AC36: 1 | AD36: 1 | AE36: 1 | AF36: na | AG36: na | AH36: na | AI36: na | AJ36: na | AK36: na | AL36: na | AM36: na | AN36: na | AO36: na | AP36: 16.1 | AQ36: na | AR36: na | AS36: na | AT36: 100 | AU36: na | AV36: na | AW36: na | AX36: 12.8 | AY36: na | AZ36: 60.7 | BA36: 0 | BB36: 6.4 | BC36: na | BD36: 35.8 | BE36: 3.5 | BF36: 43.2 | BG36: na | BH36: na | BI36: na | BJ36: na | BK36: na | BL36: na | BM36: na | BN36: na | BO36: na | BP36: na | BQ36: 0 | BR36: na | BS36: na | BT36: na | BU36: 652 | BV36: na | BW36: na | BX36: na | BY36: 1 | BZ36: na | CA36: -9 | CB36: na | CC36: -11 | CD36: na | CE36: 0 | CF36: -4 | CG36: 13 | CH36: na | CI36: na | CJ36: na | CK36: na | CL36: na | CM36: na | CN36: na | CO36: na | CP36: na | CQ36: na | CR36: NA | CS36: na | CT36: na | CU36: na | CV36: NA | CW36: na | CX36: na | CY36: na | CZ36: NA | DA36: na | DB36: -230 | DC36: na | DD36: NA | DE36: na | DF36: NA | DG36: NA | DH36: NA | DI36: na | DJ36: na | DK36: na | DL36: na | DM36: na | DN36: 4.263 | DO36: 31.04 | DP36: 7.62 | DQ36: 4.085 | DR36: 3.54 | DS36: 41.208 | DT36: 7.534 | DU36: na | DV36: 0.313
A37: Y | B37: N | C37: 3 | D37: 5 | E37: 10 | F37: 20 | G37: YN351020 | H37: 1102 | I37: 9 | J37: na | K37: na | L37: na | M37: na | N37: na | O37: 1 | P37: na | Q37: na | R37: na | S37: 1 | T37: na | U37: na | V37: na | W37: 1 | X37: na | Y37: 2 | Z37: na | AA37: 1 | AB37: na | AC37: 1 | AD37: 1 | AE37: 1 | AF37: na | AG37: na | AH37: na | AI37: na | AJ37: na | AK37: na | AL37: na | AM37: na | AN37: na | AO37: na | AP37: 16.1 | AQ37: na | AR37: na | AS37: na | AT37: 100 | AU37: na | AV37: na | AW37: na | AX37: 12.8 | AY37: na | AZ37: 60.7 | BA37: 0 | BB37: 6.4 | BC37: na | BD37: 35.8 | BE37: 3.5 | BF37: 43.2 | BG37: na | BH37: na | BI37: na | BJ37: na | BK37: na | BL37: na | BM37: na | BN37: na | BO37: na | BP37: na | BQ37: 0 | BR37: na | BS37: na | BT37: na | BU37: 652 | BV37: na | BW37: na | BX37: na | BY37: 1 | BZ37: na | CA37: -9 | CB37: na | CC37: -11 | CD37: na | CE37: 0 | CF37: -4 | CG37: 13 | CH37: na | CI37: na | CJ37: na | CK37: na | CL37: na | CM37: na | CN37: na | CO37: na | CP37: na | CQ37: na | CR37: NA | CS37: na | CT37: na | CU37: na | CV37: NA | CW37: na | CX37: na | CY37: na | CZ37: NA | DA37: na | DB37: -230 | DC37: na | DD37: NA | DE37: na | DF37: NA | DG37: NA | DH37: NA | DI37: na | DJ37: na | DK37: na | DL37: na | DM37: na | DN37: 4.263 | DO37: 31.04 | DP37: 7.62 | DQ37: 4.085 | DR37: 3.54 | DS37: 41.208 | DT37: 7.534 | DU37: na | DV37: 0.313
A38: Y | B38: N | C38: 1 | D38: 15 | E38: 10 | F38: 20 | G38: YN1151020 | H38: 6163 | I38: 26 | J38: na | K38: na | L38: na | M38: na | N38: na | O38: 1 | P38: na | Q38: na | R38: na | S38: 6 | T38: na | U38: na | V38: na | W38: 5 | X38: na | Y38: 7 | Z38: na | AA38: 1 | AB38: na | AC38: 4 | AD38: 1 | AE38: 1 | AF38: na | AG38: na | AH38: na | AI38: na | AJ38: na | AK38: na | AL38: na | AM38: na | AN38: na | AO38: na | AP38: 79.5 | AQ38: na | AR38: na | AS38: na | AT38: 99.2 | AU38: na | AV38: na | AW38: na | AX38: 81.6 | AY38: na | AZ38: 97.3 | BA38: 0 | BB38: 35.1 | BC38: na | BD38: 53.2 | BE38: 22 | BF38: 52.2 | BG38: na | BH38: na | BI38: na | BJ38: na | BK38: na | BL38: na | BM38: na | BN38: na | BO38: na | BP38: na | BQ38: -12 | BR38: na | BS38: na | BT38: na | BU38: 19 | BV38: na | BW38: na | BX38: na | BY38: -13 | BZ38: na | CA38: 424 | CB38: na | CC38: -54 | CD38: na | CE38: 0 | CF38: -13 | CG38: -26 | CH38: na | CI38: na | CJ38: na | CK38: na | CL38: na | CM38: na | CN38: na | CO38: na | CP38: na | CQ38: na | CR38: NA | CS38: na | CT38: na | CU38: na | CV38: -627 | CW38: na | CX38: na | CY38: na | CZ38: NA | DA38: na | DB38: -896 | DC38: na | DD38: NA | DE38: na | DF38: 0 | DG38: NA | DH38: -7 | DI38: na | DJ38: na | DK38: na | DL38: na | DM38: na | DN38: 4.284 | DO38: 16.906 | DP38: 11.716 | DQ38: 2.103 | DR38: 13.256 | DS38: 74.44 | DT38: 55.377 | DU38: na | DV38: 0.374
A39: Y | B39: N | C39: 3 | D39: 15 | E39: 10 | F39: 20 | G39: YN3151020 | H39: 6163 | I39: 26 | J39: na | K39: na | L39: na | M39: na | N39: na | O39: 1 | P39: na | Q39: na | R39: na | S39: 6 | T39: na | U39: na | V39: na | W39: 5 | X39: na | Y39: 7 | Z39: na | AA39: 1 | AB39: na | AC39: 4 | AD39: 1 | AE39: 1 | AF39: na | AG39: na | AH39: na | AI39: na | AJ39: na | AK39: na | AL39: na | AM39: na | AN39: na | AO39: na | AP39: 79.5 | AQ39: na | AR39: na | AS39: na | AT39: 99.2 | AU39: na | AV39: na | AW39: na | AX39: 81.6 | AY39: na | AZ39: 97.3 | BA39: 0 | BB39: 35.1 | BC39: na | BD39: 53.2 | BE39: 22 | BF39: 52.2 | BG39: na | BH39: na | BI39: na | BJ39: na | BK39: na | BL39: na | BM39: na | BN39: na | BO39: na | BP39: na | BQ39: -12 | BR39: na | BS39: na | BT39: na | BU39: 19 | BV39: na | BW39: na | BX39: na | BY39: -13 | BZ39: na | CA39: 424 | CB39: na | CC39: -54 | CD39: na | CE39: 0 | CF39: -13 | CG39: -26 | CH39: na | CI39: na | CJ39: na | CK39: na | CL39: na | CM39: na | CN39: na | CO39: na | CP39: na | CQ39: na | CR39: NA | CS39: na | CT39: na | CU39: na | CV39: -627 | CW39: na | CX39: na | CY39: na | CZ39: NA | DA39: na | DB39: -896 | DC39: na | DD39: NA | DE39: na | DF39: 0 | DG39: NA | DH39: -7 | DI39: na | DJ39: na | DK39: na | DL39: na | DM39: na | DN39: 4.284 | DO39: 16.906 | DP39: 11.716 | DQ39: 2.103 | DR39: 13.256 | DS39: 74.44 | DT39: 55.377 | DU39: na | DV39: 0.374
A40: Y | B40: N | C40: 1 | D40: 30 | E40: 10 | F40: 20 | G40: YN1301020 | H40: 11510 | I40: 40 | J40: na | K40: na | L40: na | M40: na | N40: na | O40: 1 | P40: na | Q40: na | R40: na | S40: 12 | T40: na | U40: na | V40: na | W40: 5 | X40: na | Y40: 15 | Z40: na | AA40: 1 | AB40: na | AC40: 4 | AD40: 1 | AE40: 1 | AF40: na | AG40: na | AH40: na | AI40: na | AJ40: na | AK40: na | AL40: na | AM40: na | AN40: na | AO40: na | AP40: 87.3 | AQ40: na | AR40: na | AS40: na | AT40: 98.5 | AU40: na | AV40: na | AW40: na | AX40: 98 | AY40: na | AZ40: 85.1 | BA40: 0 | BB40: 65.4 | BC40: na | BD40: 99.3 | BE40: 46.7 | BF40: 97 | BG40: na | BH40: na | BI40: na | BJ40: na | BK40: na | BL40: na | BM40: na | BN40: na | BO40: na | BP40: na | BQ40: 69 | BR40: na | BS40: na | BT40: na | BU40: -54 | BV40: na | BW40: na | BX40: na | BY40: 688 | BZ40: na | CA40: -61 | CB40: na | CC40: -1 | CD40: na | CE40: 41 | CF40: -31 | CG40: 34 | CH40: na | CI40: na | CJ40: na | CK40: na | CL40: na | CM40: na | CN40: na | CO40: na | CP40: na | CQ40: na | CR40: NA | CS40: na | CT40: na | CU40: na | CV40: -228 | CW40: na | CX40: na | CY40: na | CZ40: NA | DA40: na | DB40: -64 | DC40: na | DD40: NA | DE40: na | DF40: -2507 | DG40: NA | DH40: -1901 | DI40: na | DJ40: na | DK40: na | DL40: na | DM40: na | DN40: 4.271 | DO40: 60.455 | DP40: 22.612 | DQ40: 5.969 | DR40: 247.434 | DS40: 161.062 | DT40: 6.077 | DU40: na | DV40: 0.576
A41: Y | B41: N | C41: 3 | D41: 30 | E41: 10 | F41: 20 | G41: YN3301020 | H41: 11510 | I41: 40 | J41: na | K41: na | L41: na | M41: na | N41: na | O41: 1 | P41: na | Q41: na | R41: na | S41: 12 | T41: na | U41: na | V41: na | W41: 5 | X41: na | Y41: 15 | Z41: na | AA41: 1 | AB41: na | AC41: 4 | AD41: 1 | AE41: 1 | AF41: na | AG41: na | AH41: na | AI41: na | AJ41: na | AK41: na | AL41: na | AM41: na | AN41: na | AO41: na | AP41: 87.3 | AQ41: na | AR41: na | AS41: na | AT41: 98.5 | AU41: na | AV41: na | AW41: na | AX41: 98 | AY41: na | AZ41: 85.1 | BA41: 0 | BB41: 65.4 | BC41: na | BD41: 99.3 | BE41: 46.7 | BF41: 97 | BG41: na | BH41: na | BI41: na | BJ41: na | BK41: na | BL41: na | BM41: na | BN41: na | BO41: na | BP41: na | BQ41: 69 | BR41: na | BS41: na | BT41: na | BU41: -54 | BV41: na | BW41: na | BX41: na | BY41: 688 | BZ41: na | CA41: -61 | CB41: na | CC41: -1 | CD41: na | CE41: 41 | CF41: -31 | CG41: 34 | CH41: na | CI41: na | CJ41: na | CK41: na | CL41: na | CM41: na | CN41: na | CO41: na | CP41: na | CQ41: na | CR41: NA | CS41: na | CT41: na | CU41: na | CV41: -228 | CW41: na | CX41: na | CY41: na | CZ41: NA | DA41: na | DB41: -64 | DC41: na | DD41: NA | DE41: na | DF41: -2507 | DG41: NA | DH41: -1901 | DI41: na | DJ41: na | DK41: na | DL41: na | DM41: na | DN41: 4.271 | DO41: 60.455 | DP41: 22.612 | DQ41: 5.969 | DR41: 247.434 | DS41: 161.062 | DT41: 6.077 | DU41: na | DV41: 0.576
A42: Y | B42: N | C42: 1 | D42: 5 | E42: 5 | F42: 40 | G42: YN15540 | H42: 1067.8 | I42: 9 | J42: na | K42: na | L42: na | M42: na | N42: na | O42: 1 | P42: na | Q42: na | R42: na | S42: 1 | T42: na | U42: na | V42: na | W42: 1 | X42: na | Y42: 2 | Z42: na | AA42: 1 | AB42: na | AC42: 1 | AD42: 1 | AE42: 1 | AF42: na | AG42: na | AH42: na | AI42: na | AJ42: na | AK42: na | AL42: na | AM42: na | AN42: na | AO42: na | AP42: 31.8 | AQ42: na | AR42: na | AS42: na | AT42: 100 | AU42: na | AV42: na | AW42: na | AX42: 27.2 | AY42: na | AZ42: 59.9 | BA42: 0 | BB42: 6.2 | BC42: na | BD42: 35.5 | BE42: 4.9 | BF42: 21.7 | BG42: na | BH42: na | BI42: na | BJ42: na | BK42: na | BL42: na | BM42: na | BN42: na | BO42: na | BP42: na | BQ42: -14 | BR42: na | BS42: na | BT42: na | BU42: 658 | BV42: na | BW42: na | BX42: na | BY42: -7 | BZ42: na | CA42: -40 | CB42: na | CC42: -11 | CD42: na | CE42: 0 | CF42: -9 | CG42: 6 | CH42: na | CI42: na | CJ42: na | CK42: na | CL42: na | CM42: na | CN42: na | CO42: na | CP42: na | CQ42: na | CR42: NA | CS42: na | CT42: na | CU42: na | CV42: NA | CW42: na | CX42: na | CY42: na | CZ42: NA | DA42: na | DB42: -230 | DC42: na | DD42: NA | DE42: na | DF42: NA | DG42: NA | DH42: -20 | DI42: na | DJ42: na | DK42: na | DL42: na | DM42: na | DN42: 4.274 | DO42: 31.712 | DP42: 8.811 | DQ42: 2.293 | DR42: 4.243 | DS42: 42.198 | DT42: 8.084 | DU42: na | DV42: 0.309
A43: Y | B43: N | C43: 3 | D43: 5 | E43: 5 | F43: 40 | G43: YN35540 | H43: 1067.8 | I43: 9 | J43: na | K43: na | L43: na | M43: na | N43: na | O43: 1 | P43: na | Q43: na | R43: na | S43: 1 | T43: na | U43: na | V43: na | W43: 1 | X43: na | Y43: 2 | Z43: na | AA43: 1 | AB43: na | AC43: 1 | AD43: 1 | AE43: 1 | AF43: na | AG43: na | AH43: na | AI43: na | AJ43: na | AK43: na | AL43: na | AM43: na | AN43: na | AO43: na | AP43: 31.8 | AQ43: na | AR43: na | AS43: na | AT43: 100 | AU43: na | AV43: na | AW43: na | AX43: 27.2 | AY43: na | AZ43: 59.9 | BA43: 0 | BB43: 6.2 | BC43: na | BD43: 35.5 | BE43: 4.9 | BF43: 21.7 | BG43: na | BH43: na | BI43: na | BJ43: na | BK43: na | BL43: na | BM43: na | BN43: na | BO43: na | BP43: na | BQ43: -14 | BR43: na | BS43: na | BT43: na | BU43: 658 | BV43: na | BW43: na | BX43: na | BY43: -7 | BZ43: na | CA43: -40 | CB43: na | CC43: -11 | CD43: na | CE43: 0 | CF43: -9 | CG43: 6 | CH43: na | CI43: na | CJ43: na | CK43: na | CL43: na | CM43: na | CN43: na | CO43: na | CP43: na | CQ43: na | CR43: NA | CS43: na | CT43: na | CU43: na | CV43: NA | CW43: na | CX43: na | CY43: na | CZ43: NA | DA43: na | DB43: -230 | DC43: na | DD43: NA | DE43: na | DF43: NA | DG43: NA | DH43: -20 | DI43: na | DJ43: na | DK43: na | DL43: na | DM43: na | DN43: 4.274 | DO43: 31.712 | DP43: 8.811 | DQ43: 2.293 | DR43: 4.243 | DS43: 42.198 | DT43: 8.084 | DU43: na | DV43: 0.309
A44: Y | B44: N | C44: 1 | D44: 15 | E44: 5 | F44: 40 | G44: YN115540 | H44: 4125.4 | I44: 18 | J44: na | K44: na | L44: na | M44: na | N44: na | O44: 1 | P44: na | Q44: na | R44: na | S44: 4 | T44: na | U44: na | V44: na | W44: 2 | X44: na | Y44: 5 | Z44: na | AA44: 2 | AB44: na | AC44: 2 | AD44: 1 | AE44: 1 | AF44: na | AG44: na | AH44: na | AI44: na | AJ44: na | AK44: na | AL44: na | AM44: na | AN44: na | AO44: na | AP44: 91 | AQ44: na | AR44: na | AS44: na | AT44: 99.5 | AU44: na | AV44: na | AW44: na | AX44: 96.1 | AY44: na | AZ44: 92.1 | BA44: 0 | BB44: 11.5 | BC44: na | BD44: 71.1 | BE44: 18 | BF44: 86.9 | BG44: na | BH44: na | BI44: na | BJ44: na | BK44: na | BL44: na | BM44: na | BN44: na | BO44: na | BP44: na | BQ44: -28 | BR44: na | BS44: na | BT44: na | BU44: 234 | BV44: na | BW44: na | BX44: na | BY44: 135 | BZ44: na | CA44: 3 | CB44: na | CC44: -6 | CD44: na | CE44: -44 | CF44: -19 | CG44: -45 | CH44: na | CI44: na | CJ44: na | CK44: na | CL44: na | CM44: na | CN44: na | CO44: na | CP44: na | CQ44: na | CR44: NA | CS44: na | CT44: na | CU44: na | CV44: -860 | CW44: na | CX44: na | CY44: na | CZ44: NA | DA44: na | DB44: -627 | DC44: na | DD44: -9 | DE44: na | DF44: -1104 | DG44: NA | DH44: -1685 | DI44: na | DJ44: na | DK44: na | DL44: na | DM44: na | DN44: 4.289 | DO44: 18.404 | DP44: 12.966 | DQ44: 4.405 | DR44: 68.017 | DS44: 172.902 | DT44: 11.905 | DU44: na | DV44: 0.296
A45: Y | B45: N | C45: 3 | D45: 15 | E45: 5 | F45: 40 | G45: YN315540 | H45: 4125.4 | I45: 18 | J45: na | K45: na | L45: na | M45: na | N45: na | O45: 1 | P45: na | Q45: na | R45: na | S45: 4 | T45: na | U45: na | V45: na | W45: 2 | X45: na | Y45: 5 | Z45: na | AA45: 2 | AB45: na | AC45: 2 | AD45: 1 | AE45: 1 | AF45: na | AG45: na | AH45: na | AI45: na | AJ45: na | AK45: na | AL45: na | AM45: na | AN45: na | AO45: na | AP45: 91 | AQ45: na | AR45: na | AS45: na | AT45: 99.5 | AU45: na | AV45: na | AW45: na | AX45: 96.1 | AY45: na | AZ45: 92.1 | BA45: 0 | BB45: 11.5 | BC45: na | BD45: 71.1 | BE45: 18 | BF45: 86.9 | BG45: na | BH45: na | BI45: na | BJ45: na | BK45: na | BL45: na | BM45: na | BN45: na | BO45: na | BP45: na | BQ45: -28 | BR45: na | BS45: na | BT45: na | BU45: 234 | BV45: na | BW45: na | BX45: na | BY45: 135 | BZ45: na | CA45: 3 | CB45: na | CC45: -6 | CD45: na | CE45: -44 | CF45: -19 | CG45: -45 | CH45: na | CI45: na | CJ45: na | CK45: na | CL45: na | CM45: na | CN45: na | CO45: na | CP45: na | CQ45: na | CR45: NA | CS45: na | CT45: na | CU45: na | CV45: -860 | CW45: na | CX45: na | CY45: na | CZ45: NA | DA45: na | DB45: -627 | DC45: na | DD45: -9 | DE45: na | DF45: -1104 | DG45: NA | DH45: -1685 | DI45: na | DJ45: na | DK45: na | DL45: na | DM45: na | DN45: 4.289 | DO45: 18.404 | DP45: 12.966 | DQ45: 4.405 | DR45: 68.017 | DS45: 172.902 | DT45: 11.905 | DU45: na | DV45: 0.296
A46: Y | B46: N | C46: 1 | D46: 30 | E46: 5 | F46: 40 | G46: YN130540 | H46: 4814.8 | I46: 21 | J46: na | K46: na | L46: na | M46: na | N46: na | O46: 1 | P46: na | Q46: na | R46: na | S46: 5 | T46: na | U46: na | V46: na | W46: 2 | X46: na | Y46: 6 | Z46: na | AA46: 1 | AB46: na | AC46: 2 | AD46: 1 | AE46: 3 | AF46: na | AG46: na | AH46: na | AI46: na | AJ46: na | AK46: na | AL46: na | AM46: na | AN46: na | AO46: na | AP46: 93.6 | AQ46: na | AR46: na | AS46: na | AT46: 99.4 | AU46: na | AV46: na | AW46: na | AX46: 40.7 | AY46: na | AZ46: 89.2 | BA46: 0 | BB46: 27.4 | BC46: na | BD46: 89.1 | BE46: 23.7 | BF46: 97.8 | BG46: na | BH46: na | BI46: na | BJ46: na | BK46: na | BL46: na | BM46: na | BN46: na | BO46: na | BP46: na | BQ46: 42 | BR46: na | BS46: na | BT46: na | BU46: -11 | BV46: na | BW46: na | BX46: na | BY46: 17 | BZ46: na | CA46: -5 | CB46: na | CC46: -26 | CD46: na | CE46: 17 | CF46: -15 | CG46: 401 | CH46: na | CI46: na | CJ46: na | CK46: na | CL46: na | CM46: na | CN46: na | CO46: na | CP46: na | CQ46: na | CR46: NA | CS46: na | CT46: na | CU46: na | CV46: -527 | CW46: na | CX46: na | CY46: na | CZ46: -8 | DA46: na | DB46: -428 | DC46: na | DD46: NA | DE46: na | DF46: -1806 | DG46: NA | DH46: -2396 | DI46: na | DJ46: na | DK46: na | DL46: na | DM46: na | DN46: 4.297 | DO46: 17.711 | DP46: 14.553 | DQ46: 72.97 | DR46: 3.19 | DS46: 231.859 | DT46: 7.101 | DU46: na | DV46: 0.355
A47: Y | B47: N | C47: 3 | D47: 30 | E47: 5 | F47: 40 | G47: YN330540 | H47: 4814.8 | I47: 21 | J47: na | K47: na | L47: na | M47: na | N47: na | O47: 1 | P47: na | Q47: na | R47: na | S47: 5 | T47: na | U47: na | V47: na | W47: 2 | X47: na | Y47: 6 | Z47: na | AA47: 1 | AB47: na | AC47: 2 | AD47: 1 | AE47: 3 | AF47: na | AG47: na | AH47: na | AI47: na | AJ47: na | AK47: na | AL47: na | AM47: na | AN47: na | AO47: na | AP47: 93.6 | AQ47: na | AR47: na | AS47: na | AT47: 99.4 | AU47: na | AV47: na | AW47: na | AX47: 40.7 | AY47: na | AZ47: 89.2 | BA47: 0 | BB47: 27.4 | BC47: na | BD47: 89.1 | BE47: 23.7 | BF47: 97.8 | BG47: na | BH47: na | BI47: na | BJ47: na | BK47: na | BL47: na | BM47: na | BN47: na | BO47: na | BP47: na | BQ47: 42 | BR47: na | BS47: na | BT47: na | BU47: -11 | BV47: na | BW47: na | BX47: na | BY47: 17 | BZ47: na | CA47: -5 | CB47: na | CC47: -26 | CD47: na | CE47: 17 | CF47: -15 | CG47: 401 | CH47: na | CI47: na | CJ47: na | CK47: na | CL47: na | CM47: na | CN47: na | CO47: na | CP47: na | CQ47: na | CR47: NA | CS47: na | CT47: na | CU47: na | CV47: -527 | CW47: na | CX47: na | CY47: na | CZ47: -8 | DA47: na | DB47: -428 | DC47: na | DD47: NA | DE47: na | DF47: -1806 | DG47: NA | DH47: -2396 | DI47: na | DJ47: na | DK47: na | DL47: na | DM47: na | DN47: 4.297 | DO47: 17.711 | DP47: 14.553 | DQ47: 72.97 | DR47: 3.19 | DS47: 231.859 | DT47: 7.101 | DU47: na | DV47: 0.355
A48: Y | B48: N | C48: 1 | D48: 5 | E48: 10 | F48: 40 | G48: YN151040 | H48: 1067.8 | I48: 9 | J48: na | K48: na | L48: na | M48: na | N48: na | O48: 1 | P48: na | Q48: na | R48: na | S48: 1 | T48: na | U48: na | V48: na | W48: 1 | X48: na | Y48: 2 | Z48: na | AA48: 1 | AB48: na | AC48: 1 | AD48: 1 | AE48: 1 | AF48: na | AG48: na | AH48: na | AI48: na | AJ48: na | AK48: na | AL48: na | AM48: na | AN48: na | AO48: na | AP48: 30.5 | AQ48: na | AR48: na | AS48: na | AT48: 100 | AU48: na | AV48: na | AW48: na | AX48: 28.1 | AY48: na | AZ48: 59.6 | BA48: 0 | BB48: 6.1 | BC48: na | BD48: 35.3 | BE48: 5.2 | BF48: 43.1 | BG48: na | BH48: na | BI48: na | BJ48: na | BK48: na | BL48: na | BM48: na | BN48: na | BO48: na | BP48: na | BQ48: 12 | BR48: na | BS48: na | BT48: na | BU48: 694 | BV48: na | BW48: na | BX48: na | BY48: 24 | BZ48: na | CA48: -1 | CB48: na | CC48: 9 | CD48: na | CE48: 0 | CF48: -15 | CG48: 0 | CH48: na | CI48: na | CJ48: na | CK48: na | CL48: na | CM48: na | CN48: na | CO48: na | CP48: na | CQ48: na | CR48: NA | CS48: na | CT48: na | CU48: na | CV48: NA | CW48: na | CX48: na | CY48: na | CZ48: NA | DA48: na | DB48: -200 | DC48: na | DD48: NA | DE48: na | DF48: NA | DG48: NA | DH48: -1089 | DI48: na | DJ48: na | DK48: na | DL48: na | DM48: na | DN48: 4.266 | DO48: 31.534 | DP48: 11.196 | DQ48: 4.098 | DR48: 4.164 | DS48: 40.75 | DT48: 7.677 | DU48: na | DV48: 0.306
A49: Y | B49: N | C49: 3 | D49: 5 | E49: 10 | F49: 40 | G49: YN351040 | H49: 1067.8 | I49: 9 | J49: na | K49: na | L49: na | M49: na | N49: na | O49: 1 | P49: na | Q49: na | R49: na | S49: 1 | T49: na | U49: na | V49: na | W49: 1 | X49: na | Y49: 2 | Z49: na | AA49: 1 | AB49: na | AC49: 1 | AD49: 1 | AE49: 1 | AF49: na | AG49: na | AH49: na | AI49: na | AJ49: na | AK49: na | AL49: na | AM49: na | AN49: na | AO49: na | AP49: 30.5 | AQ49: na | AR49: na | AS49: na | AT49: 100 | AU49: na | AV49: na | AW49: na | AX49: 28.1 | AY49: na | AZ49: 59.6 | BA49: 0 | BB49: 6.1 | BC49: na | BD49: 35.3 | BE49: 5.2 | BF49: 43.1 | BG49: na | BH49: na | BI49: na | BJ49: na | BK49: na | BL49: na | BM49: na | BN49: na | BO49: na | BP49: na | BQ49: 12 | BR49: na | BS49: na | BT49: na | BU49: 694 | BV49: na | BW49: na | BX49: na | BY49: 24 | BZ49: na | CA49: -1 | CB49: na | CC49: 9 | CD49: na | CE49: 0 | CF49: -15 | CG49: 0 | CH49: na | CI49: na | CJ49: na | CK49: na | CL49: na | CM49: na | CN49: na | CO49: na | CP49: na | CQ49: na | CR49: NA | CS49: na | CT49: na | CU49: na | CV49: NA | CW49: na | CX49: na | CY49: na | CZ49: NA | DA49: na | DB49: -200 | DC49: na | DD49: NA | DE49: na | DF49: NA | DG49: NA | DH49: -1089 | DI49: na | DJ49: na | DK49: na | DL49: na | DM49: na | DN49: 4.266 | DO49: 31.534 | DP49: 11.196 | DQ49: 4.098 | DR49: 4.164 | DS49: 40.75 | DT49: 7.677 | DU49: na | DV49: 0.306
A50: Y | B50: N | C50: 1 | D50: 15 | E50: 10 | F50: 40 | G50: YN1151040 | H50: 5540.6 | I50: 23 | J50: na | K50: na | L50: na | M50: na | N50: na | O50: 1 | P50: na | Q50: na | R50: na | S50: 6 | T50: na | U50: na | V50: na | W50: 3 | X50: na | Y50: 7 | Z50: na | AA50: 1 | AB50: na | AC50: 3 | AD50: 1 | AE50: 1 | AF50: na | AG50: na | AH50: na | AI50: na | AJ50: na | AK50: na | AL50: na | AM50: na | AN50: na | AO50: na | AP50: 81.4 | AQ50: na | AR50: na | AS50: na | AT50: 99.2 | AU50: na | AV50: na | AW50: na | AX50: 97.6 | AY50: na | AZ50: 87.3 | BA50: 0 | BB50: 31.3 | BC50: na | BD50: 71.4 | BE50: 21 | BF50: 87.4 | BG50: na | BH50: na | BI50: na | BJ50: na | BK50: na | BL50: na | BM50: na | BN50: na | BO50: na | BP50: na | BQ50: 4 | BR50: na | BS50: na | BT50: na | BU50: 426 | BV50: na | BW50: na | BX50: na | BY50: 603 | BZ50: na | CA50: -69 | CB50: na | CC50: -107 | CD50: na | CE50: -16 | CF50: 603 | CG50: -28 | CH50: na | CI50: na | CJ50: na | CK50: na | CL50: na | CM50: na | CN50: na | CO50: na | CP50: na | CQ50: na | CR50: NA | CS50: na | CT50: na | CU50: na | CV50: -699 | CW50: na | CX50: na | CY50: na | CZ50: NA | DA50: na | DB50: -281 | DC50: na | DD50: NA | DE50: na | DF50: -241 | DG50: NA | DH50: NA | DI50: na | DJ50: na | DK50: na | DL50: na | DM50: na | DN50: 4.283 | DO50: 16.895 | DP50: 9.84 | DQ50: 3.66 | DR50: 283.779 | DS50: 100.239 | DT50: 7.664 | DU50: na | DV50: 0.364
A51: Y | B51: N | C51: 3 | D51: 15 | E51: 10 | F51: 40 | G51: YN3151040 | H51: 5540.6 | I51: 23 | J51: na | K51: na | L51: na | M51: na | N51: na | O51: 1 | P51: na | Q51: na | R51: na | S51: 6 | T51: na | U51: na | V51: na | W51: 3 | X51: na | Y51: 7 | Z51: na | AA51: 1 | AB51: na | AC51: 3 | AD51: 1 | AE51: 1 | AF51: na | AG51: na | AH51: na | AI51: na | AJ51: na | AK51: na | AL51: na | AM51: na | AN51: na | AO51: na | AP51: 81.4 | AQ51: na | AR51: na | AS51: na | AT51: 99.2 | AU51: na | AV51: na | AW51: na | AX51: 97.6 | AY51: na | AZ51: 87.3 | BA51: 0 | BB51: 31.3 | BC51: na | BD51: 71.4 | BE51: 21 | BF51: 87.4 | BG51: na | BH51: na | BI51: na | BJ51: na | BK51: na | BL51: na | BM51: na | BN51: na | BO51: na | BP51: na | BQ51: 4 | BR51: na | BS51: na | BT51: na | BU51: 426 | BV51: na | BW51: na | BX51: na | BY51: 603 | BZ51: na | CA51: -69 | CB51: na | CC51: -107 | CD51: na | CE51: -16 | CF51: 603 | CG51: -28 | CH51: na | CI51: na | CJ51: na | CK51: na | CL51: na | CM51: na | CN51: na | CO51: na | CP51: na | CQ51: na | CR51: NA | CS51: na | CT51: na | CU51: na | CV51: -699 | CW51: na | CX51: na | CY51: na | CZ51: NA | DA51: na | DB51: -281 | DC51: na | DD51: NA | DE51: na | DF51: -241 | DG51: NA | DH51: NA | DI51: na | DJ51: na | DK51: na | DL51: na | DM51: na | DN51: 4.283 | DO51: 16.895 | DP51: 9.84 | DQ51: 3.66 | DR51: 283.779 | DS51: 100.239 | DT51: 7.664 | DU51: na | DV51: 0.364
A52: Y | B52: N | C52: 1 | D52: 30 | E52: 10 | F52: 40 | G52: YN1301040 | H52: 11448.4 | I52: 41 | J52: na | K52: na | L52: na | M52: na | N52: na | O52: 1 | P52: na | Q52: na | R52: na | S52: 11 | T52: na | U52: na | V52: na | W52: 5 | X52: na | Y52: 15 | Z52: na | AA52: 1 | AB52: na | AC52: 4 | AD52: 1 | AE52: 3 | AF52: na | AG52: na | AH52: na | AI52: na | AJ52: na | AK52: na | AL52: na | AM52: na | AN52: na | AO52: na | AP52: 97.4 | AQ52: na | AR52: na | AS52: na | AT52: 98.6 | AU52: na | AV52: na | AW52: na | AX52: 94.3 | AY52: na | AZ52: 84.8 | BA52: 0 | BB52: 64.9 | BC52: na | BD52: 97.3 | BE52: 42.6 | BF52: 95 | BG52: na | BH52: na | BI52: na | BJ52: na | BK52: na | BL52: na | BM52: na | BN52: na | BO52: na | BP52: na | BQ52: 98 | BR52: na | BS52: na | BT52: na | BU52: -6 | BV52: na | BW52: na | BX52: na | BY52: 36 | BZ52: na | CA52: -39 | CB52: na | CC52: -43 | CD52: na | CE52: -96 | CF52: -39 | CG52: -62 | CH52: na | CI52: na | CJ52: na | CK52: na | CL52: na | CM52: na | CN52: na | CO52: na | CP52: na | CQ52: na | CR52: NA | CS52: na | CT52: na | CU52: na | CV52: -999 | CW52: na | CX52: na | CY52: na | CZ52: -1255 | DA52: na | DB52: -69 | DC52: na | DD52: NA | DE52: na | DF52: -2583 | DG52: NA | DH52: -1932 | DI52: na | DJ52: na | DK52: na | DL52: na | DM52: na | DN52: 4.286 | DO52: 16.963 | DP52: 16.153 | DQ52: 4.629 | DR52: 21.193 | DS52: 525.635 | DT52: 6.294 | DU52: na | DV52: 0.574
A53: Y | B53: N | C53: 3 | D53: 30 | E53: 10 | F53: 40 | G53: YN3301040 | H53: 11448.4 | I53: 41 | J53: na | K53: na | L53: na | M53: na | N53: na | O53: 1 | P53: na | Q53: na | R53: na | S53: 11 | T53: na | U53: na | V53: na | W53: 5 | X53: na | Y53: 15 | Z53: na | AA53: 1 | AB53: na | AC53: 4 | AD53: 1 | AE53: 3 | AF53: na | AG53: na | AH53: na | AI53: na | AJ53: na | AK53: na | AL53: na | AM53: na | AN53: na | AO53: na | AP53: 97.4 | AQ53: na | AR53: na | AS53: na | AT53: 98.6 | AU53: na | AV53: na | AW53: na | AX53: 94.3 | AY53: na | AZ53: 84.8 | BA53: 0 | BB53: 64.9 | BC53: na | BD53: 97.3 | BE53: 42.6 | BF53: 95 | BG53: na | BH53: na | BI53: na | BJ53: na | BK53: na | BL53: na | BM53: na | BN53: na | BO53: na | BP53: na | BQ53: 98 | BR53: na | BS53: na | BT53: na | BU53: -6 | BV53: na | BW53: na | BX53: na | BY53: 36 | BZ53: na | CA53: -39 | CB53: na | CC53: -43 | CD53: na | CE53: -96 | CF53: -39 | CG53: -62 | CH53: na | CI53: na | CJ53: na | CK53: na | CL53: na | CM53: na | CN53: na | CO53: na | CP53: na | CQ53: na | CR53: NA | CS53: na | CT53: na | CU53: na | CV53: -999 | CW53: na | CX53: na | CY53: na | CZ53: -1255 | DA53: na | DB53: -69 | DC53: na | DD53: NA | DE53: na | DF53: -2583 | DG53: NA | DH53: -1932 | DI53: na | DJ53: na | DK53: na | DL53: na | DM53: na | DN53: 4.286 | DO53: 16.963 | DP53: 16.153 | DQ53: 4.629 | DR53: 21.193 | DS53: 525.635 | DT53: 6.294 | DU53: na | DV53: 0.574
A54: N | B54: Y | C54: 1 | D54: 5 | E54: 5 | F54: 20 | G54: NY15520 | H54: 889.967 | I54: 8 | J54: na | K54: na | L54: na | M54: na | N54: na | O54: 1 | P54: na | Q54: na | R54: na | S54: 1 | T54: na | U54: na | V54: na | W54: 1 | X54: na | Y54: 1 | Z54: 1 | AA54: 1 | AB54: na | AC54: na | AD54: 1 | AE54: 1 | AF54: na | AG54: na | AH54: na | AI54: na | AJ54: na | AK54: na | AL54: na | AM54: na | AN54: na | AO54: na | AP54: 15.2 | AQ54: na | AR54: na | AS54: na | AT54: 100 | AU54: na | AV54: na | AW54: na | AX54: 13.6 | AY54: na | AZ54: 98.5 | BA54: 98.5 | BB54: 5.1 | BC54: na | BD54: na | BE54: 3.6 | BF54: 44.4 | BG54: na | BH54: na | BI54: na | BJ54: na | BK54: na | BL54: na | BM54: na | BN54: na | BO54: na | BP54: na | BQ54: -1 | BR54: na | BS54: na | BT54: na | BU54: 7 | BV54: na | BW54: na | BX54: na | BY54: 1 | BZ54: na | CA54: 0 | CB54: 0 | CC54: 0 | CD54: na | CE54: 0 | CF54: -1 | CG54: -6 | CH54: na | CI54: na | CJ54: na | CK54: na | CL54: na | CM54: na | CN54: na | CO54: na | CP54: na | CQ54: na | CR54: na | CS54: na | CT54: na | CU54: na | CV54: na | CW54: na | CX54: na | CY54: na | CZ54: na | DA54: na | DB54: na | DC54: 0 | DD54: na | DE54: na | DF54: na | DG54: na | DH54: 0 | DI54: na | DJ54: na | DK54: na | DL54: na | DM54: na | DN54: 4.279 | DO54: na | DP54: 8.814 | DQ54: 2.639 | DR54: 3.348 | DS54: 38.931 | DT54: 154.123 | DU54: 154.123 | DV54: 0.301
A55: N | B55: Y | C55: 3 | D55: 5 | E55: 5 | F55: 20 | G55: NY35520 | H55: 889.967 | I55: 8 | J55: na | K55: na | L55: na | M55: na | N55: na | O55: 1 | P55: na | Q55: na | R55: na | S55: 1 | T55: na | U55: na | V55: na | W55: 1 | X55: na | Y55: 1 | Z55: 1 | AA55: 1 | AB55: na | AC55: na | AD55: 1 | AE55: 1 | AF55: na | AG55: na | AH55: na | AI55: na | AJ55: na | AK55: na | AL55: na | AM55: na | AN55: na | AO55: na | AP55: 15.2 | AQ55: na | AR55: na | AS55: na | AT55: 100 | AU55: na | AV55: na | AW55: na | AX55: 13.6 | AY55: na | AZ55: 98.5 | BA55: 98.5 | BB55: 5.1 | BC55: na | BD55: na | BE55: 3.6 | BF55: 44.4 | BG55: na | BH55: na | BI55: na | BJ55: na | BK55: na | BL55: na | BM55: na | BN55: na | BO55: na | BP55: na | BQ55: -1 | BR55: na | BS55: na | BT55: na | BU55: 7 | BV55: na | BW55: na | BX55: na | BY55: 1 | BZ55: na | CA55: 0 | CB55: 0 | CC55: 0 | CD55: na | CE55: 0 | CF55: -1 | CG55: -6 | CH55: na | CI55: na | CJ55: na | CK55: na | CL55: na | CM55: na | CN55: na | CO55: na | CP55: na | CQ55: na | CR55: na | CS55: na | CT55: na | CU55: na | CV55: na | CW55: na | CX55: na | CY55: na | CZ55: na | DA55: na | DB55: na | DC55: 0 | DD55: na | DE55: na | DF55: na | DG55: na | DH55: 0 | DI55: na | DJ55: na | DK55: na | DL55: na | DM55: na | DN55: 4.279 | DO55: na | DP55: 8.814 | DQ55: 2.639 | DR55: 3.348 | DS55: 38.931 | DT55: 154.123 | DU55: 154.123 | DV55: 0.301
A56: N | B56: Y | C56: 1 | D56: 15 | E56: 5 | F56: 20 | G56: NY115520 | H56: 3371.17 | I56: 21 | J56: na | K56: na | L56: na | M56: na | N56: na | O56: 1 | P56: na | Q56: na | R56: na | S56: 3 | T56: na | U56: na | V56: na | W56: 1 | X56: na | Y56: 5 | Z56: 5 | AA56: 1 | AB56: na | AC56: na | AD56: 2 | AE56: 3 | AF56: na | AG56: na | AH56: na | AI56: na | AJ56: na | AK56: na | AL56: na | AM56: na | AN56: na | AO56: na | AP56: 45.7 | AQ56: na | AR56: na | AS56: na | AT56: 99.6 | AU56: na | AV56: na | AW56: na | AX56: 40.9 | AY56: na | AZ56: 74.8 | BA56: 74.8 | BB56: 19.2 | BC56: na | BD56: na | BE56: 6.1 | BF56: 44.1 | BG56: na | BH56: na | BI56: na | BJ56: na | BK56: na | BL56: na | BM56: na | BN56: na | BO56: na | BP56: na | BQ56: 2 | BR56: na | BS56: na | BT56: na | BU56: 1023 | BV56: na | BW56: na | BX56: na | BY56: -3 | BZ56: na | CA56: 0 | CB56: 0 | CC56: -2 | CD56: na | CE56: 0 | CF56: 0 | CG56: -3 | CH56: na | CI56: na | CJ56: na | CK56: na | CL56: na | CM56: na | CN56: na | CO56: na | CP56: na | CQ56: na | CR56: na | CS56: na | CT56: na | CU56: na | CV56: -1120 | CW56: na | CX56: na | CY56: na | CZ56: na | DA56: na | DB56: -15 | DC56: -15 | DD56: na | DE56: na | DF56: na | DG56: -2 | DH56: -11 | DI56: na | DJ56: na | DK56: na | DL56: na | DM56: na | DN56: 4.271 | DO56: na | DP56: 9.813 | DQ56: 2.105 | DR56: 4.759 | DS56: 50.412 | DT56: 6.637 | DU56: 6.637 | DV56: 0.335
A57: N | B57: Y | C57: 3 | D57: 15 | E57: 5 | F57: 20 | G57: NY315520 | H57: 3373.43 | I57: 22 | J57: na | K57: na | L57: na | M57: na | N57: na | O57: 1 | P57: na | Q57: na | R57: na | S57: 3 | T57: na | U57: na | V57: na | W57: 1 | X57: na | Y57: 5 | Z57: 5 | AA57: 1 | AB57: na | AC57: na | AD57: 2 | AE57: 3 | AF57: na | AG57: na | AH57: na | AI57: na | AJ57: na | AK57: na | AL57: na | AM57: na | AN57: na | AO57: na | AP57: 45.7 | AQ57: na | AR57: na | AS57: na | AT57: 99.6 | AU57: na | AV57: na | AW57: na | AX57: 40.9 | AY57: na | AZ57: 74.8 | BA57: 74.8 | BB57: 19.2 | BC57: na | BD57: na | BE57: 6.1 | BF57: 44.1 | BG57: na | BH57: na | BI57: na | BJ57: na | BK57: na | BL57: na | BM57: na | BN57: na | BO57: na | BP57: na | BQ57: 2 | BR57: na | BS57: na | BT57: na | BU57: 1023 | BV57: na | BW57: na | BX57: na | BY57: -3 | BZ57: na | CA57: 0 | CB57: 0 | CC57: -2 | CD57: na | CE57: 0 | CF57: 0 | CG57: -3 | CH57: na | CI57: na | CJ57: na | CK57: na | CL57: na | CM57: na | CN57: na | CO57: na | CP57: na | CQ57: na | CR57: na | CS57: na | CT57: na | CU57: na | CV57: -1120 | CW57: na | CX57: na | CY57: na | CZ57: na | DA57: na | DB57: -15 | DC57: -15 | DD57: na | DE57: na | DF57: na | DG57: -2 | DH57: -11 | DI57: na | DJ57: na | DK57: na | DL57: na | DM57: na | DN57: 4.271 | DO57: na | DP57: 9.813 | DQ57: 2.105 | DR57: 4.759 | DS57: 50.412 | DT57: 6.637 | DU57: 6.637 | DV57: 0.335
A58: N | B58: Y | C58: 1 | D58: 30 | E58: 5 | F58: 20 | G58: NY130520 | H58: 8673.3 | I58: 36 | J58: na | K58: na | L58: na | M58: na | N58: na | O58: 1 | P58: na | Q58: na | R58: na | S58: 8 | T58: na | U58: na | V58: na | W58: 1 | X58: na | Y58: 10 | Z58: 10 | AA58: 1 | AB58: na | AC58: na | AD58: 1 | AE58: 4 | AF58: na | AG58: na | AH58: na | AI58: na | AJ58: na | AK58: na | AL58: na | AM58: na | AN58: na | AO58: na | AP58: 89.5 | AQ58: na | AR58: na | AS58: na | AT58: 98.9 | AU58: na | AV58: na | AW58: na | AX58: 97.7 | AY58: na | AZ58: 96.1 | BA58: 96.1 | BB58: 49.3 | BC58: na | BD58: na | BE58: 34.1 | BF58: 87.7 | BG58: na | BH58: na | BI58: na | BJ58: na | BK58: na | BL58: na | BM58: na | BN58: na | BO58: na | BP58: na | BQ58: -3 | BR58: na | BS58: na | BT58: na | BU58: 225 | BV58: na | BW58: na | BX58: na | BY58: 104 | BZ58: na | CA58: 0 | CB58: 0 | CC58: -14 | CD58: na | CE58: 0 | CF58: -23 | CG58: -10 | CH58: na | CI58: na | CJ58: na | CK58: na | CL58: na | CM58: na | CN58: na | CO58: na | CP58: na | CQ58: na | CR58: na | CS58: na | CT58: na | CU58: na | CV58: -901 | CW58: na | CX58: na | CY58: na | CZ58: na | DA58: na | DB58: -675 | DC58: -675 | DD58: na | DE58: na | DF58: na | DG58: na | DH58: -1158 | DI58: na | DJ58: na | DK58: na | DL58: na | DM58: na | DN58: 4.277 | DO58: na | DP58: 16.982 | DQ58: 3.156 | DR58: 87.522 | DS58: 159.693 | DT58: 10.69 | DU58: 10.69 | DV58: 0.43
A59: N | B59: Y | C59: 3 | D59: 30 | E59: 5 | F59: 20 | G59: NY330520 | H59: 8673.3 | I59: 36 | J59: na | K59: na | L59: na | M59: na | N59: na | O59: 1 | P59: na | Q59: na | R59: na | S59: 8 | T59: na | U59: na | V59: na | W59: 1 | X59: na | Y59: 10 | Z59: 10 | AA59: 1 | AB59: na | AC59: na | AD59: 1 | AE59: 4 | AF59: na | AG59: na | AH59: na | AI59: na | AJ59: na | AK59: na | AL59: na | AM59: na | AN59: na | AO59: na | AP59: 89.5 | AQ59: na | AR59: na | AS59: na | AT59: 98.9 | AU59: na | AV59: na | AW59: na | AX59: 97.7 | AY59: na | AZ59: 96.1 | BA59: 96.1 | BB59: 49.3 | BC59: na | BD59: na | BE59: 34.1 | BF59: 87.7 | BG59: na | BH59: na | BI59: na | BJ59: na | BK59: na | BL59: na | BM59: na | BN59: na | BO59: na | BP59: na | BQ59: -3 | BR59: na | BS59: na | BT59: na | BU59: 225 | BV59: na | BW59: na | BX59: na | BY59: 104 | BZ59: na | CA59: 0 | CB59: 0 | CC59: -14 | CD59: na | CE59: 0 | CF59: -23 | CG59: -10 | CH59: na | CI59: na | CJ59: na | CK59: na | CL59: na | CM59: na | CN59: na | CO59: na | CP59: na | CQ59: na | CR59: na | CS59: na | CT59: na | CU59: na | CV59: -901 | CW59: na | CX59: na | CY59: na | CZ59: na | DA59: na | DB59: -675 | DC59: -675 | DD59: na | DE59: na | DF59: na | DG59: na | DH59: -1158 | DI59: na | DJ59: na | DK59: na | DL59: na | DM59: na | DN59: 4.277 | DO59: na | DP59: 16.982 | DQ59: 3.156 | DR59: 87.522 | DS59: 159.693 | DT59: 10.69 | DU59: 10.69 | DV59: 0.43
A60: N | B60: Y | C60: 1 | D60: 5 | E60: 10 | F60: 20 | G60: NY151020 | H60: 889.967 | I60: 8 | J60: na | K60: na | L60: na | M60: na | N60: na | O60: 1 | P60: na | Q60: na | R60: na | S60: 1 | T60: na | U60: na | V60: na | W60: 1 | X60: na | Y60: 1 | Z60: 1 | AA60: 1 | AB60: na | AC60: na | AD60: 1 | AE60: 1 | AF60: na | AG60: na | AH60: na | AI60: na | AJ60: na | AK60: na | AL60: na | AM60: na | AN60: na | AO60: na | AP60: 15.2 | AQ60: na | AR60: na | AS60: na | AT60: 100 | AU60: na | AV60: na | AW60: na | AX60: 13.6 | AY60: na | AZ60: 98.5 | BA60: 0 | BB60: 5.1 | BC60: na | BD60: na | BE60: 3.6 | BF60: 44.4 | BG60: na | BH60: na | BI60: na | BJ60: na | BK60: na | BL60: na | BM60: na | BN60: na | BO60: na | BP60: na | BQ60: -1 | BR60: na | BS60: na | BT60: na | BU60: 7 | BV60: na | BW60: na | BX60: na | BY60: 1 | BZ60: na | CA60: 0 | CB60: 0 | CC60: 0 | CD60: na | CE60: 0 | CF60: -1 | CG60: -6 | CH60: na | CI60: na | CJ60: na | CK60: na | CL60: na | CM60: na | CN60: na | CO60: na | CP60: na | CQ60: na | CR60: na | CS60: na | CT60: na | CU60: na | CV60: na | CW60: na | CX60: na | CY60: na | CZ60: na | DA60: na | DB60: na | DC60: 0 | DD60: na | DE60: na | DF60: na | DG60: na | DH60: 0 | DI60: na | DJ60: na | DK60: na | DL60: na | DM60: na | DN60: 4.279 | DO60: na | DP60: 8.814 | DQ60: 2.639 | DR60: 3.348 | DS60: 38.931 | DT60: 154.123 | DU60: 154.123 | DV60: 0.301
A61: N | B61: Y | C61: 3 | D61: 5 | E61: 10 | F61: 20 | G61: NY351020 | H61: 889.967 | I61: 8 | J61: na | K61: na | L61: na | M61: na | N61: na | O61: 1 | P61: na | Q61: na | R61: na | S61: 1 | T61: na | U61: na | V61: na | W61: 1 | X61: na | Y61: 1 | Z61: 1 | AA61: 1 | AB61: na | AC61: na | AD61: 1 | AE61: 1 | AF61: na | AG61: na | AH61: na | AI61: na | AJ61: na | AK61: na | AL61: na | AM61: na | AN61: na | AO61: na | AP61: 15.2 | AQ61: na | AR61: na | AS61: na | AT61: 100 | AU61: na | AV61: na | AW61: na | AX61: 13.6 | AY61: na | AZ61: 98.5 | BA61: 0 | BB61: 5.1 | BC61: na | BD61: na | BE61: 3.6 | BF61: 44.4 | BG61: na | BH61: na | BI61: na | BJ61: na | BK61: na | BL61: na | BM61: na | BN61: na | BO61: na | BP61: na | BQ61: -1 | BR61: na | BS61: na | BT61: na | BU61: 7 | BV61: na | BW61: na | BX61: na | BY61: 1 | BZ61: na | CA61: 0 | CB61: 0 | CC61: 0 | CD61: na | CE61: 0 | CF61: -1 | CG61: -6 | CH61: na | CI61: na | CJ61: na | CK61: na | CL61: na | CM61: na | CN61: na | CO61: na | CP61: na | CQ61: na | CR61: na | CS61: na | CT61: na | CU61: na | CV61: na | CW61: na | CX61: na | CY61: na | CZ61: na | DA61: na | DB61: na | DC61: 0 | DD61: na | DE61: na | DF61: na | DG61: na | DH61: 0 | DI61: na | DJ61: na | DK61: na | DL61: na | DM61: na | DN61: 4.279 | DO61: na | DP61: 8.814 | DQ61: 2.639 | DR61: 3.348 | DS61: 38.931 | DT61: 154.123 | DU61: 154.123 | DV61: 0.301
A62: N | B62: Y | C62: 1 | D62: 15 | E62: 10 | F62: 20 | G62: NY1151020 | H62: 3376.27 | I62: 21 | J62: na | K62: na | L62: na | M62: na | N62: na | O62: 1 | P62: na | Q62: na | R62: na | S62: 3 | T62: na | U62: na | V62: na | W62: 1 | X62: na | Y62: 5 | Z62: 5 | AA62: 1 | AB62: na | AC62: na | AD62: 1 | AE62: 4 | AF62: na | AG62: na | AH62: na | AI62: na | AJ62: na | AK62: na | AL62: na | AM62: na | AN62: na | AO62: na | AP62: 45 | AQ62: na | AR62: na | AS62: na | AT62: 99.7 | AU62: na | AV62: na | AW62: na | AX62: 40.6 | AY62: na | AZ62: 75.1 | BA62: 75.1 | BB62: 19.2 | BC62: na | BD62: na | BE62: 14 | BF62: 33.2 | BG62: na | BH62: na | BI62: na | BJ62: na | BK62: na | BL62: na | BM62: na | BN62: na | BO62: na | BP62: na | BQ62: -10 | BR62: na | BS62: na | BT62: na | BU62: 1030 | BV62: na | BW62: na | BX62: na | BY62: -24 | BZ62: na | CA62: 0 | CB62: 0 | CC62: -12 | CD62: na | CE62: 0 | CF62: -8 | CG62: -7 | CH62: na | CI62: na | CJ62: na | CK62: na | CL62: na | CM62: na | CN62: na | CO62: na | CP62: na | CQ62: na | CR62: na | CS62: na | CT62: na | CU62: na | CV62: -1123 | CW62: na | CX62: na | CY62: na | CZ62: na | DA62: na | DB62: -23 | DC62: -23 | DD62: na | DE62: na | DF62: na | DG62: na | DH62: -7 | DI62: na | DJ62: na | DK62: na | DL62: na | DM62: na | DN62: 4.272 | DO62: na | DP62: 13.279 | DQ62: 2.031 | DR62: 4.643 | DS62: 50.443 | DT62: 6.696 | DU62: 6.696 | DV62: 0.333
A63: N | B63: Y | C63: 3 | D63: 15 | E63: 10 | F63: 20 | G63: NY3151020 | H63: 3376.27 | I63: 21 | J63: na | K63: na | L63: na | M63: na | N63: na | O63: 1 | P63: na | Q63: na | R63: na | S63: 3 | T63: na | U63: na | V63: na | W63: 1 | X63: na | Y63: 5 | Z63: 5 | AA63: 1 | AB63: na | AC63: na | AD63: 1 | AE63: 4 | AF63: na | AG63: na | AH63: na | AI63: na | AJ63: na | AK63: na | AL63: na | AM63: na | AN63: na | AO63: na | AP63: 45 | AQ63: na | AR63: na | AS63: na | AT63: 99.7 | AU63: na | AV63: na | AW63: na | AX63: 40.6 | AY63: na | AZ63: 75.1 | BA63: 75.1 | BB63: 19.2 | BC63: na | BD63: na | BE63: 14 | BF63: 33.2 | BG63: na | BH63: na | BI63: na | BJ63: na | BK63: na | BL63: na | BM63: na | BN63: na | BO63: na | BP63: na | BQ63: -10 | BR63: na | BS63: na | BT63: na | BU63: 1030 | BV63: na | BW63: na | BX63: na | BY63: -24 | BZ63: na | CA63: 0 | CB63: 0 | CC63: -12 | CD63: na | CE63: 0 | CF63: -8 | CG63: -7 | CH63: na | CI63: na | CJ63: na | CK63: na | CL63: na | CM63: na | CN63: na | CO63: na | CP63: na | CQ63: na | CR63: na | CS63: na | CT63: na | CU63: na | CV63: -1123 | CW63: na | CX63: na | CY63: na | CZ63: na | DA63: na | DB63: -23 | DC63: -23 | DD63: na | DE63: na | DF63: na | DG63: na | DH63: -7 | DI63: na | DJ63: na | DK63: na | DL63: na | DM63: na | DN63: 4.272 | DO63: na | DP63: 13.279 | DQ63: 2.031 | DR63: 4.643 | DS63: 50.443 | DT63: 6.696 | DU63: 6.696 | DV63: 0.333
A64: N | B64: Y | C64: 1 | D64: 30 | E64: 10 | F64: 20 | G64: NY1301020 | H64: 8697.17 | I64: 39 | J64: na | K64: na | L64: na | M64: na | N64: na | O64: 1 | P64: na | Q64: na | R64: na | S64: 8 | T64: na | U64: na | V64: na | W64: 1 | X64: na | Y64: 10 | Z64: 10 | AA64: 1 | AB64: na | AC64: na | AD64: 1 | AE64: 7 | AF64: na | AG64: na | AH64: na | AI64: na | AJ64: na | AK64: na | AL64: na | AM64: na | AN64: na | AO64: na | AP64: 92 | AQ64: na | AR64: na | AS64: na | AT64: 98.9 | AU64: na | AV64: na | AW64: na | AX64: 97.3 | AY64: na | AZ64: 96.4 | BA64: 96.4 | BB64: 49.6 | BC64: na | BD64: na | BE64: 37.5 | BF64: 50.2 | BG64: na | BH64: na | BI64: na | BJ64: na | BK64: na | BL64: na | BM64: na | BN64: na | BO64: na | BP64: na | BQ64: -20 | BR64: na | BS64: na | BT64: na | BU64: 208 | BV64: na | BW64: na | BX64: na | BY64: 112 | BZ64: na | CA64: 0 | CB64: 0 | CC64: -25 | CD64: na | CE64: 0 | CF64: -34 | CG64: -40 | CH64: na | CI64: na | CJ64: na | CK64: na | CL64: na | CM64: na | CN64: na | CO64: na | CP64: na | CQ64: na | CR64: na | CS64: na | CT64: na | CU64: na | CV64: -955 | CW64: na | CX64: na | CY64: na | CZ64: na | DA64: na | DB64: -693 | DC64: -693 | DD64: na | DE64: na | DF64: na | DG64: na | DH64: -22 | DI64: na | DJ64: na | DK64: na | DL64: na | DM64: na | DN64: 4.266 | DO64: na | DP64: 21.68 | DQ64: 2.038 | DR64: 77.74 | DS64: 175.923 | DT64: 11.837 | DU64: 11.837 | DV64: 0.432
A65: N | B65: Y | C65: 3 | D65: 30 | E65: 10 | F65: 20 | G65: NY3301020 | H65: 8715.9 | I65: 39 | J65: na | K65: na | L65: na | M65: na | N65: na | O65: 2 | P65: na | Q65: na | R65: na | S65: 8 | T65: na | U65: na | V65: na | W65: 1 | X65: na | Y65: 10 | Z65: 10 | AA65: 1 | AB65: na | AC65: na | AD65: 3 | AE65: 4 | AF65: na | AG65: na | AH65: na | AI65: na | AJ65: na | AK65: na | AL65: na | AM65: na | AN65: na | AO65: na | AP65: 55.5 | AQ65: na | AR65: na | AS65: na | AT65: 98.9 | AU65: na | AV65: na | AW65: na | AX65: 97.2 | AY65: na | AZ65: 96.6 | BA65: 96.6 | BB65: 49.7 | BC65: na | BD65: na | BE65: 12.4 | BF65: 87.5 | BG65: na | BH65: na | BI65: na | BJ65: na | BK65: na | BL65: na | BM65: na | BN65: na | BO65: na | BP65: na | BQ65: -27 | BR65: na | BS65: na | BT65: na | BU65: 184 | BV65: na | BW65: na | BX65: na | BY65: 108 | BZ65: na | CA65: 0 | CB65: 0 | CC65: -19 | CD65: na | CE65: 0 | CF65: -2 | CG65: -40 | CH65: na | CI65: na | CJ65: na | CK65: na | CL65: na | CM65: na | CN65: na | CO65: na | CP65: na | CQ65: na | CR65: -1790 | CS65: na | CT65: na | CU65: na | CV65: -935 | CW65: na | CX65: na | CY65: na | CZ65: na | DA65: na | DB65: -706 | DC65: -706 | DD65: na | DE65: na | DF65: na | DG65: -28 | DH65: -1178 | DI65: na | DJ65: na | DK65: na | DL65: na | DM65: na | DN65: 4.264 | DO65: na | DP65: 10.173 | DQ65: 3.129 | DR65: 74.931 | DS65: 45.112 | DT65: 11.788 | DU65: 11.788 | DV65: 0.433
A66: N | B66: Y | C66: 1 | D66: 5 | E66: 5 | F66: 40 | G66: NY15540 | H66: 889.967 | I66: 8 | J66: na | K66: na | L66: na | M66: na | N66: na | O66: 1 | P66: na | Q66: na | R66: na | S66: 1 | T66: na | U66: na | V66: na | W66: 1 | X66: na | Y66: 1 | Z66: 1 | AA66: 1 | AB66: na | AC66: na | AD66: 1 | AE66: 1 | AF66: na | AG66: na | AH66: na | AI66: na | AJ66: na | AK66: na | AL66: na | AM66: na | AN66: na | AO66: na | AP66: 28.9 | AQ66: na | AR66: na | AS66: na | AT66: 100 | AU66: na | AV66: na | AW66: na | AX66: 27.6 | AY66: na | AZ66: 98.4 | BA66: 0 | BB66: 5.1 | BC66: na | BD66: na | BE66: 5.5 | BF66: 44.5 | BG66: na | BH66: na | BI66: na | BJ66: na | BK66: na | BL66: na | BM66: na | BN66: na | BO66: na | BP66: na | BQ66: 1 | BR66: na | BS66: na | BT66: na | BU66: 6 | BV66: na | BW66: na | BX66: na | BY66: 1 | BZ66: na | CA66: 0 | CB66: 0 | CC66: 0 | CD66: na | CE66: 0 | CF66: -1 | CG66: 4 | CH66: na | CI66: na | CJ66: na | CK66: na | CL66: na | CM66: na | CN66: na | CO66: na | CP66: na | CQ66: na | CR66: na | CS66: na | CT66: na | CU66: na | CV66: na | CW66: na | CX66: na | CY66: na | CZ66: na | DA66: na | DB66: na | DC66: 0 | DD66: na | DE66: na | DF66: na | DG66: na | DH66: 0 | DI66: na | DJ66: na | DK66: na | DL66: na | DM66: na | DN66: 4.281 | DO66: na | DP66: 12.397 | DQ66: 2.638 | DR66: 3.809 | DS66: 42.099 | DT66: 148.413 | DU66: 148.413 | DV66: 0.302
A67: N | B67: Y | C67: 3 | D67: 5 | E67: 5 | F67: 40 | G67: NY35540 | H67: 889.967 | I67: 8 | J67: na | K67: na | L67: na | M67: na | N67: na | O67: 1 | P67: na | Q67: na | R67: na | S67: 1 | T67: na | U67: na | V67: na | W67: 1 | X67: na | Y67: 1 | Z67: 1 | AA67: 1 | AB67: na | AC67: na | AD67: 1 | AE67: 1 | AF67: na | AG67: na | AH67: na | AI67: na | AJ67: na | AK67: na | AL67: na | AM67: na | AN67: na | AO67: na | AP67: 28.9 | AQ67: na | AR67: na | AS67: na | AT67: 100 | AU67: na | AV67: na | AW67: na | AX67: 27.6 | AY67: na | AZ67: 98.4 | BA67: 0 | BB67: 5.1 | BC67: na | BD67: na | BE67: 5.5 | BF67: 44.5 | BG67: na | BH67: na | BI67: na | BJ67: na | BK67: na | BL67: na | BM67: na | BN67: na | BO67: na | BP67: na | BQ67: 1 | BR67: na | BS67: na | BT67: na | BU67: 6 | BV67: na | BW67: na | BX67: na | BY67: 1 | BZ67: na | CA67: 0 | CB67: 0 | CC67: 0 | CD67: na | CE67: 0 | CF67: -1 | CG67: 4 | CH67: na | CI67: na | CJ67: na | CK67: na | CL67: na | CM67: na | CN67: na | CO67: na | CP67: na | CQ67: na | CR67: na | CS67: na | CT67: na | CU67: na | CV67: na | CW67: na | CX67: na | CY67: na | CZ67: na | DA67: na | DB67: na | DC67: 0 | DD67: na | DE67: na | DF67: na | DG67: na | DH67: 0 | DI67: na | DJ67: na | DK67: na | DL67: na | DM67: na | DN67: 4.281 | DO67: na | DP67: 12.397 | DQ67: 2.638 | DR67: 3.809 | DS67: 42.099 | DT67: 148.413 | DU67: 148.413 | DV67: 0.302
A68: N | B68: Y | C68: 1 | D68: 15 | E68: 5 | F68: 40 | G68: NY115540 | H68: 3272.9 | I68: 21 | J68: na | K68: na | L68: na | M68: na | N68: na | O68: 1 | P68: na | Q68: na | R68: na | S68: 3 | T68: na | U68: na | V68: na | W68: 1 | X68: na | Y68: 5 | Z68: 5 | AA68: 1 | AB68: na | AC68: na | AD68: 2 | AE68: 3 | AF68: na | AG68: na | AH68: na | AI68: na | AJ68: na | AK68: na | AL68: na | AM68: na | AN68: na | AO68: na | AP68: 85.2 | AQ68: na | AR68: na | AS68: na | AT68: 99.6 | AU68: na | AV68: na | AW68: na | AX68: 84 | AY68: na | AZ68: 72.7 | BA68: 72.7 | BB68: 18.6 | BC68: na | BD68: na | BE68: 6.8 | BF68: 44.2 | BG68: na | BH68: na | BI68: na | BJ68: na | BK68: na | BL68: na | BM68: na | BN68: na | BO68: na | BP68: na | BQ68: 4 | BR68: na | BS68: na | BT68: na | BU68: 893 | BV68: na | BW68: na | BX68: na | BY68: -9 | BZ68: na | CA68: 0 | CB68: 0 | CC68: -1 | CD68: na | CE68: 0 | CF68: 2 | CG68: 3 | CH68: na | CI68: na | CJ68: na | CK68: na | CL68: na | CM68: na | CN68: na | CO68: na | CP68: na | CQ68: na | CR68: na | CS68: na | CT68: na | CU68: na | CV68: -1081 | CW68: na | CX68: na | CY68: na | CZ68: na | DA68: na | DB68: -14 | DC68: -14 | DD68: na | DE68: na | DF68: na | DG68: -20 | DH68: -11 | DI68: na | DJ68: na | DK68: na | DL68: na | DM68: na | DN68: 4.284 | DO68: na | DP68: 10.152 | DQ68: 2.121 | DR68: 13.04 | DS68: 136.674 | DT68: 6.556 | DU68: 6.556 | DV68: 0.333
A69: N | B69: Y | C69: 3 | D69: 15 | E69: 5 | F69: 40 | G69: NY315540 | H69: 3293.27 | I69: 21 | J69: na | K69: na | L69: na | M69: na | N69: na | O69: 2 | P69: na | Q69: na | R69: na | S69: 3 | T69: na | U69: na | V69: na | W69: 2 | X69: na | Y69: 4 | Z69: 4 | AA69: 1 | AB69: na | AC69: na | AD69: 2 | AE69: 3 | AF69: na | AG69: na | AH69: na | AI69: na | AJ69: na | AK69: na | AL69: na | AM69: na | AN69: na | AO69: na | AP69: 48.4 | AQ69: na | AR69: na | AS69: na | AT69: 99.6 | AU69: na | AV69: na | AW69: na | AX69: 40.8 | AY69: na | AZ69: 91.5 | BA69: 91.5 | BB69: 18.7 | BC69: na | BD69: na | BE69: 6.2 | BF69: 44.3 | BG69: na | BH69: na | BI69: na | BJ69: na | BK69: na | BL69: na | BM69: na | BN69: na | BO69: na | BP69: na | BQ69: 0 | BR69: na | BS69: na | BT69: na | BU69: 265 | BV69: na | BW69: na | BX69: na | BY69: -38 | BZ69: na | CA69: 0 | CB69: 0 | CC69: -23 | CD69: na | CE69: 0 | CF69: -1 | CG69: -4 | CH69: na | CI69: na | CJ69: na | CK69: na | CL69: na | CM69: na | CN69: na | CO69: na | CP69: na | CQ69: na | CR69: -32 | CS69: na | CT69: na | CU69: na | CV69: -1098 | CW69: na | CX69: na | CY69: na | CZ69: -33 | DA69: na | DB69: -627 | DC69: -627 | DD69: na | DE69: na | DF69: na | DG69: -20 | DH69: -16 | DI69: na | DJ69: na | DK69: na | DL69: na | DM69: na | DN69: 4.26 | DO69: na | DP69: 9.857 | DQ69: 2.106 | DR69: 3.516 | DS69: 42.861 | DT69: 9.836 | DU69: 9.836 | DV69: 0.328
A70: N | B70: Y | C70: 1 | D70: 30 | E70: 5 | F70: 40 | G70: NY130540 | H70: 7998.13 | I70: 36 | J70: na | K70: na | L70: na | M70: na | N70: na | O70: 1 | P70: na | Q70: na | R70: na | S70: 8 | T70: na | U70: na | V70: na | W70: 3 | X70: na | Y70: 9 | Z70: 9 | AA70: 1 | AB70: na | AC70: na | AD70: 1 | AE70: 4 | AF70: na | AG70: na | AH70: na | AI70: na | AJ70: na | AK70: na | AL70: na | AM70: na | AN70: na | AO70: na | AP70: 97.8 | AQ70: na | AR70: na | AS70: na | AT70: 98.9 | AU70: na | AV70: na | AW70: na | AX70: 72.3 | AY70: na | AZ70: 98.4 | BA70: 98.4 | BB70: 45.4 | BC70: na | BD70: na | BE70: 33 | BF70: 87.6 | BG70: na | BH70: na | BI70: na | BJ70: na | BK70: na | BL70: na | BM70: na | BN70: na | BO70: na | BP70: na | BQ70: -19 | BR70: na | BS70: na | BT70: na | BU70: 31 | BV70: na | BW70: na | BX70: na | BY70: 6 | BZ70: na | CA70: 0 | CB70: 0 | CC70: 6 | CD70: na | CE70: 0 | CF70: -10 | CG70: 5 | CH70: na | CI70: na | CJ70: na | CK70: na | CL70: na | CM70: na | CN70: na | CO70: na | CP70: na | CQ70: na | CR70: na | CS70: na | CT70: na | CU70: na | CV70: -569 | CW70: na | CX70: na | CY70: na | CZ70: -57 | DA70: na | DB70: -869 | DC70: -869 | DD70: na | DE70: na | DF70: na | DG70: na | DH70: -773 | DI70: na | DJ70: na | DK70: na | DL70: na | DM70: na | DN70: 4.273 | DO70: na | DP70: 16.083 | DQ70: 3.143 | DR70: 4.25 | DS70: 455.361 | DT70: 46.437 | DU70: 46.437 | DV70: 0.411
A71: N | B71: Y | C71: 3 | D71: 30 | E71: 5 | F71: 40 | G71: =_xlfn.CONCAT(A71,B71,C71,D71,E71,F71) -> NY330540 | H71: 7998.13 | I71: 36 | J71: na | K71: na | L71: na | M71: na | N71: na | O71: 1 | P71: na | Q71: na | R71: na | S71: 8 | T71: na | U71: na | V71: na | W71: 3 | X71: na | Y71: 9 | Z71: 9 | AA71: 1 | AB71: na | AC71: na | AD71: 1 | AE71: 4 | AF71: na | AG71: na | AH71: na | AI71: na | AJ71: na | AK71: na | AL71: na | AM71: na | AN71: na | AO71: na | AP71: 97.8 | AQ71: na | AR71: na | AS71: na | AT71: 98.9 | AU71: na | AV71: na | AW71: na | AX71: 72.3 | AY71: na | AZ71: 98.4 | BA71: 98.4 | BB71: 45.4 | BC71: na | BD71: na | BE71: 33 | BF71: 87.6 | BG71: na | BH71: na | BI71: na | BJ71: na | BK71: na | BL71: na | BM71: na | BN71: na | BO71: na | BP71: na | BQ71: -19 | BR71: na | BS71: na | BT71: na | BU71: 31 | BV71: na | BW71: na | BX71: na | BY71: 6 | BZ71: na | CA71: 0 | CB71: 0 | CC71: 6 | CD71: na | CE71: 0 | CF71: -10 | CG71: 5 | CH71: na | CI71: na | CJ71: na | CK71: na | CL71: na | CM71: na | CN71: na | CO71: na | CP71: na | CQ71: na | CR71: na | CS71: na | CT71: na | CU71: na | CV71: -569 | CW71: na | CX71: na | CY71: na | CZ71: -57 | DA71: na | DB71: -869 | DC71: -869 | DD71: na | DE71: na | DF71: na | DG71: na | DH71: -773 | DI71: na | DJ71: na | DK71: na | DL71: na | DM71: na | DN71: 4.273 | DO71: na | DP71: 16.083 | DQ71: 3.143 | DR71: 4.25 | DS71: 455.361 | DT71: 46.437 | DU71: 46.437 | DV71: 0.411
A72: N | B72: Y | C72: 1 | D72: 5 | E72: 10 | F72: 40 | G72: NY151040 | H72: 889.967 | I72: 8 | J72: na | K72: na | L72: na | M72: na | N72: na | O72: 1 | P72: na | Q72: na | R72: na | S72: 1 | T72: na | U72: na | V72: na | W72: 1 | X72: na | Y72: 1 | Z72: 1 | AA72: 1 | AB72: na | AC72: na | AD72: 1 | AE72: 1 | AF72: na | AG72: na | AH72: na | AI72: na | AJ72: na | AK72: na | AL72: na | AM72: na | AN72: na | AO72: na | AP72: 28.9 | AQ72: na | AR72: na | AS72: na | AT72: 100 | AU72: na | AV72: na | AW72: na | AX72: 27.6 | AY72: na | AZ72: 98.4 | BA72: 0 | BB72: 5.1 | BC72: na | BD72: na | BE72: 5.5 | BF72: 44.5 | BG72: na | BH72: na | BI72: na | BJ72: na | BK72: na | BL72: na | BM72: na | BN72: na | BO72: na | BP72: na | BQ72: 1 | BR72: na | BS72: na | BT72: na | BU72: 6 | BV72: na | BW72: na | BX72: na | BY72: 1 | BZ72: na | CA72: 0 | CB72: 0 | CC72: 0 | CD72: na | CE72: 0 | CF72: -1 | CG72: 4 | CH72: na | CI72: na | CJ72: na | CK72: na | CL72: na | CM72: na | CN72: na | CO72: na | CP72: na | CQ72: na | CR72: na | CS72: na | CT72: na | CU72: na | CV72: na | CW72: na | CX72: na | CY72: na | CZ72: na | DA72: na | DB72: na | DC72: 0 | DD72: na | DE72: na | DF72: na | DG72: na | DH72: 0 | DI72: na | DJ72: na | DK72: na | DL72: na | DM72: na | DN72: 4.281 | DO72: na | DP72: 12.397 | DQ72: 2.638 | DR72: 3.809 | DS72: 42.099 | DT72: 148.413 | DU72: 148.413 | DV72: 0.302
A73: N | B73: Y | C73: 3 | D73: 5 | E73: 10 | F73: 40 | G73: NY351040 | H73: 889.967 | I73: 8 | J73: na | K73: na | L73: na | M73: na | N73: na | O73: 1 | P73: na | Q73: na | R73: na | S73: 1 | T73: na | U73: na | V73: na | W73: 1 | X73: na | Y73: 1 | Z73: 1 | AA73: 1 | AB73: na | AC73: na | AD73: 1 | AE73: 1 | AF73: na | AG73: na | AH73: na | AI73: na | AJ73: na | AK73: na | AL73: na | AM73: na | AN73: na | AO73: na | AP73: 28.9 | AQ73: na | AR73: na | AS73: na | AT73: 100 | AU73: na | AV73: na | AW73: na | AX73: 27.6 | AY73: na | AZ73: 98.4 | BA73: 0 | BB73: 5.1 | BC73: na | BD73: na | BE73: 5.5 | BF73: 44.5 | BG73: na | BH73: na | BI73: na | BJ73: na | BK73: na | BL73: na | BM73: na | BN73: na | BO73: na | BP73: na | BQ73: 1 | BR73: na | BS73: na | BT73: na | BU73: 6 | BV73: na | BW73: na | BX73: na | BY73: 1 | BZ73: na | CA73: 0 | CB73: 0 | CC73: 0 | CD73: na | CE73: 0 | CF73: -1 | CG73: 4 | CH73: na | CI73: na | CJ73: na | CK73: na | CL73: na | CM73: na | CN73: na | CO73: na | CP73: na | CQ73: na | CR73: na | CS73: na | CT73: na | CU73: na | CV73: na | CW73: na | CX73: na | CY73: na | CZ73: na | DA73: na | DB73: na | DC73: 0 | DD73: na | DE73: na | DF73: na | DG73: na | DH73: 0 | DI73: na | DJ73: na | DK73: na | DL73: na | DM73: na | DN73: 4.281 | DO73: na | DP73: 12.397 | DQ73: 2.638 | DR73: 3.809 | DS73: 42.099 | DT73: 148.413 | DU73: 148.413 | DV73: 0.302
A74: N | B74: Y | C74: 1 | D74: 15 | E74: 10 | F74: 40 | G74: NY1151040 | H74: 3276.1 | I74: 22 | J74: na | K74: na | L74: na | M74: na | N74: na | O74: 1 | P74: na | Q74: na | R74: na | S74: 3 | T74: na | U74: na | V74: na | W74: 3 | X74: na | Y74: 4 | Z74: 4 | AA74: 1 | AB74: na | AC74: na | AD74: 1 | AE74: 5 | AF74: na | AG74: na | AH74: na | AI74: na | AJ74: na | AK74: na | AL74: na | AM74: na | AN74: na | AO74: na | AP74: 85.5 | AQ74: na | AR74: na | AS74: na | AT74: 99.6 | AU74: na | AV74: na | AW74: na | AX74: 27.2 | AY74: na | AZ74: 91 | BA74: 91 | BB74: 18.7 | BC74: na | BD74: na | BE74: 13.1 | BF74: 26.6 | BG74: na | BH74: na | BI74: na | BJ74: na | BK74: na | BL74: na | BM74: na | BN74: na | BO74: na | BP74: na | BQ74: 1 | BR74: na | BS74: na | BT74: na | BU74: 281 | BV74: na | BW74: na | BX74: na | BY74: -4 | BZ74: na | CA74: 0 | CB74: 0 | CC74: -18 | CD74: na | CE74: 0 | CF74: 0 | CG74: -2 | CH74: na | CI74: na | CJ74: na | CK74: na | CL74: na | CM74: na | CN74: na | CO74: na | CP74: na | CQ74: na | CR74: na | CS74: na | CT74: na | CU74: na | CV74: -1076 | CW74: na | CX74: na | CY74: na | CZ74: -13 | DA74: na | DB74: -609 | DC74: -609 | DD74: na | DE74: na | DF74: na | DG74: na | DH74: -21 | DI74: na | DJ74: na | DK74: na | DL74: na | DM74: na | DN74: 4.281 | DO74: na | DP74: 12.091 | DQ74: 2.02 | DR74: 3.188 | DS74: 127.092 | DT74: 9.935 | DU74: 9.935 | DV74: 0.33
A75: N | B75: Y | C75: 3 | D75: 15 | E75: 10 | F75: 40 | G75: NY3151040 | H75: 3276.1 | I75: 22 | J75: na | K75: na | L75: na | M75: na | N75: na | O75: 1 | P75: na | Q75: na | R75: na | S75: 3 | T75: na | U75: na | V75: na | W75: 3 | X75: na | Y75: 4 | Z75: 4 | AA75: 1 | AB75: na | AC75: na | AD75: 1 | AE75: 5 | AF75: na | AG75: na | AH75: na | AI75: na | AJ75: na | AK75: na | AL75: na | AM75: na | AN75: na | AO75: na | AP75: 85.5 | AQ75: na | AR75: na | AS75: na | AT75: 99.6 | AU75: na | AV75: na | AW75: na | AX75: 27.2 | AY75: na | AZ75: 91 | BA75: 91 | BB75: 18.7 | BC75: na | BD75: na | BE75: 13.1 | BF75: 26.6 | BG75: na | BH75: na | BI75: na | BJ75: na | BK75: na | BL75: na | BM75: na | BN75: na | BO75: na | BP75: na | BQ75: 1 | BR75: na | BS75: na | BT75: na | BU75: 281 | BV75: na | BW75: na | BX75: na | BY75: -4 | BZ75: na | CA75: 0 | CB75: 0 | CC75: -18 | CD75: na | CE75: 0 | CF75: 0 | CG75: -2 | CH75: na | CI75: na | CJ75: na | CK75: na | CL75: na | CM75: na | CN75: na | CO75: na | CP75: na | CQ75: na | CR75: na | CS75: na | CT75: na | CU75: na | CV75: -1076 | CW75: na | CX75: na | CY75: na | CZ75: -13 | DA75: na | DB75: -609 | DC75: -609 | DD75: na | DE75: na | DF75: na | DG75: na | DH75: -21 | DI75: na | DJ75: na | DK75: na | DL75: na | DM75: na | DN75: 4.281 | DO75: na | DP75: 12.091 | DQ75: 2.02 | DR75: 3.188 | DS75: 127.092 | DT75: 9.935 | DU75: 9.935 | DV75: 0.33
A76: N | B76: Y | C76: 1 | D76: 30 | E76: 10 | F76: 40 | G76: NY1301040 | H76: 7998.13 | I76: 36 | J76: na | K76: na | L76: na | M76: na | N76: na | O76: 1 | P76: na | Q76: na | R76: na | S76: 8 | T76: na | U76: na | V76: na | W76: 3 | X76: na | Y76: 9 | Z76: 9 | AA76: 1 | AB76: na | AC76: na | AD76: 1 | AE76: 4 | AF76: na | AG76: na | AH76: na | AI76: na | AJ76: na | AK76: na | AL76: na | AM76: na | AN76: na | AO76: na | AP76: 97.8 | AQ76: na | AR76: na | AS76: na | AT76: 98.9 | AU76: na | AV76: na | AW76: na | AX76: 72.3 | AY76: na | AZ76: 98.4 | BA76: 98.4 | BB76: 45.4 | BC76: na | BD76: na | BE76: 33 | BF76: 87.6 | BG76: na | BH76: na | BI76: na | BJ76: na | BK76: na | BL76: na | BM76: na | BN76: na | BO76: na | BP76: na | BQ76: -19 | BR76: na | BS76: na | BT76: na | BU76: 31 | BV76: na | BW76: na | BX76: na | BY76: 6 | BZ76: na | CA76: 0 | CB76: 0 | CC76: 6 | CD76: na | CE76: 0 | CF76: -10 | CG76: 5 | CH76: na | CI76: na | CJ76: na | CK76: na | CL76: na | CM76: na | CN76: na | CO76: na | CP76: na | CQ76: na | CR76: na | CS76: na | CT76: na | CU76: na | CV76: -569 | CW76: na | CX76: na | CY76: na | CZ76: -57 | DA76: na | DB76: -869 | DC76: -869 | DD76: na | DE76: na | DF76: na | DG76: na | DH76: -773 | DI76: na | DJ76: na | DK76: na | DL76: na | DM76: na | DN76: 4.273 | DO76: na | DP76: 16.083 | DQ76: 3.143 | DR76: 4.25 | DS76: 455.361 | DT76: 46.437 | DU76: 46.437 | DV76: 0.411
A77: N | B77: Y | C77: 3 | D77: 30 | E77: 10 | F77: 40 | G77: NY3301040 | H77: 7998.13 | I77: 36 | J77: na | K77: na | L77: na | M77: na | N77: na | O77: 1 | P77: na | Q77: na | R77: na | S77: 8 | T77: na | U77: na | V77: na | W77: 3 | X77: na | Y77: 9 | Z77: 9 | AA77: 1 | AB77: na | AC77: na | AD77: 1 | AE77: 4 | AF77: na | AG77: na | AH77: na | AI77: na | AJ77: na | AK77: na | AL77: na | AM77: na | AN77: na | AO77: na | AP77: 97.8 | AQ77: na | AR77: na | AS77: na | AT77: 98.9 | AU77: na | AV77: na | AW77: na | AX77: 72.3 | AY77: na | AZ77: 98.4 | BA77: 98.4 | BB77: 45.4 | BC77: na | BD77: na | BE77: 33 | BF77: 87.6 | BG77: na | BH77: na | BI77: na | BJ77: na | BK77: na | BL77: na | BM77: na | BN77: na | BO77: na | BP77: na | BQ77: -19 | BR77: na | BS77: na | BT77: na | BU77: 31 | BV77: na | BW77: na | BX77: na | BY77: 6 | BZ77: na | CA77: 0 | CB77: 0 | CC77: 6 | CD77: na | CE77: 0 | CF77: -10 | CG77: 5 | CH77: na | CI77: na | CJ77: na | CK77: na | CL77: na | CM77: na | CN77: na | CO77: na | CP77: na | CQ77: na | CR77: na | CS77: na | CT77: na | CU77: na | CV77: -569 | CW77: na | CX77: na | CY77: na | CZ77: -57 | DA77: na | DB77: -869 | DC77: -869 | DD77: na | DE77: na | DF77: na | DG77: na | DH77: -773 | DI77: na | DJ77: na | DK77: na | DL77: na | DM77: na | DN77: 4.273 | DO77: na | DP77: 16.083 | DQ77: 3.143 | DR77: 4.25 | DS77: 455.361 | DT77: 46.437 | DU77: 46.437 | DV77: 0.411
A78: N | B78: N | C78: 1 | D78: 5 | E78: 5 | F78: 20 | G78: NN15520 | H78: 1121 | I78: 7 | J78: na | K78: na | L78: na | M78: na | N78: na | O78: 1 | P78: na | Q78: na | R78: na | S78: 1 | T78: na | U78: na | V78: na | W78: 1 | X78: na | Y78: 2 | Z78: 0 | AA78: 1 | AB78: na | AC78: na | AD78: 1 | AE78: 1 | AF78: na | AG78: na | AH78: na | AI78: na | AJ78: na | AK78: na | AL78: na | AM78: na | AN78: na | AO78: na | AP78: 15.7 | AQ78: na | AR78: na | AS78: na | AT78: 100 | AU78: na | AV78: na | AW78: na | AX78: 13.8 | AY78: na | AZ78: 61.9 | BA78: 0 | BB78: 6.4 | BC78: na | BD78: na | BE78: 4.9 | BF78: 44.1 | BG78: na | BH78: na | BI78: na | BJ78: na | BK78: na | BL78: na | BM78: na | BN78: na | BO78: na | BP78: na | BQ78: 4 | BR78: na | BS78: na | BT78: na | BU78: 656 | BV78: na | BW78: na | BX78: na | BY78: 0 | BZ78: na | CA78: 10 | CB78: 0 | CC78: 1 | CD78: na | CE78: 0 | CF78: -4 | CG78: 3 | CH78: na | CI78: na | CJ78: na | CK78: na | CL78: na | CM78: na | CN78: na | CO78: na | CP78: na | CQ78: na | CR78: na | CS78: na | CT78: na | CU78: na | CV78: na | CW78: na | CX78: na | CY78: na | CZ78: na | DA78: na | DB78: -231 | DC78: na | DD78: na | DE78: na | DF78: na | DG78: na | DH78: 0 | DI78: na | DJ78: na | DK78: na | DL78: na | DM78: na | DN78: 4.283 | DO78: na | DP78: 10.957 | DQ78: 2.634 | DR78: 3.471 | DS78: 39.041 | DT78: 6.973 | DU78: na | DV78: 0.308
A79: N | B79: N | C79: 3 | D79: 5 | E79: 5 | F79: 20 | G79: NN35520 | H79: 1121 | I79: 7 | J79: na | K79: na | L79: na | M79: na | N79: na | O79: 1 | P79: na | Q79: na | R79: na | S79: 1 | T79: na | U79: na | V79: na | W79: 1 | X79: na | Y79: 2 | Z79: 0 | AA79: 1 | AB79: na | AC79: na | AD79: 1 | AE79: 1 | AF79: na | AG79: na | AH79: na | AI79: na | AJ79: na | AK79: na | AL79: na | AM79: na | AN79: na | AO79: na | AP79: 15.7 | AQ79: na | AR79: na | AS79: na | AT79: 100 | AU79: na | AV79: na | AW79: na | AX79: 13.8 | AY79: na | AZ79: 61.9 | BA79: 0 | BB79: 6.4 | BC79: na | BD79: na | BE79: 4.9 | BF79: 44.1 | BG79: na | BH79: na | BI79: na | BJ79: na | BK79: na | BL79: na | BM79: na | BN79: na | BO79: na | BP79: na | BQ79: 4 | BR79: na | BS79: na | BT79: na | BU79: 656 | BV79: na | BW79: na | BX79: na | BY79: 0 | BZ79: na | CA79: 10 | CB79: 0 | CC79: 1 | CD79: na | CE79: 0 | CF79: -4 | CG79: 3 | CH79: na | CI79: na | CJ79: na | CK79: na | CL79: na | CM79: na | CN79: na | CO79: na | CP79: na | CQ79: na | CR79: na | CS79: na | CT79: na | CU79: na | CV79: na | CW79: na | CX79: na | CY79: na | CZ79: na | DA79: na | DB79: -231 | DC79: na | DD79: na | DE79: na | DF79: na | DG79: na | DH79: 0 | DI79: na | DJ79: na | DK79: na | DL79: na | DM79: na | DN79: 4.283 | DO79: na | DP79: 10.957 | DQ79: 2.634 | DR79: 3.471 | DS79: 39.041 | DT79: 6.973 | DU79: na | DV79: 0.308
A80: N | B80: N | C80: 1 | D80: 15 | E80: 5 | F80: 20 | G80: NN115520 | H80: 6228.73 | I80: 20 | J80: na | K80: na | L80: na | M80: na | N80: na | O80: 1 | P80: na | Q80: na | R80: na | S80: 6 | T80: na | U80: na | V80: na | W80: 1 | X80: na | Y80: 7 | Z80: 0 | AA80: 1 | AB80: na | AC80: na | AD80: 1 | AE80: 3 | AF80: na | AG80: na | AH80: na | AI80: na | AJ80: na | AK80: na | AL80: na | AM80: na | AN80: na | AO80: na | AP80: 83.5 | AQ80: na | AR80: na | AS80: na | AT80: 99.2 | AU80: na | AV80: na | AW80: na | AX80: 81 | AY80: na | AZ80: 98.5 | BA80: 0 | BB80: 35.4 | BC80: na | BD80: na | BE80: 25.4 | BF80: 87.5 | BG80: na | BH80: na | BI80: na | BJ80: na | BK80: na | BL80: na | BM80: na | BN80: na | BO80: na | BP80: na | BQ80: -9 | BR80: na | BS80: na | BT80: na | BU80: 10 | BV80: na | BW80: na | BX80: na | BY80: -14 | BZ80: na | CA80: 443 | CB80: 0 | CC80: -13 | CD80: na | CE80: 0 | CF80: -9 | CG80: 1 | CH80: na | CI80: na | CJ80: na | CK80: na | CL80: na | CM80: na | CN80: na | CO80: na | CP80: na | CQ80: na | CR80: na | CS80: na | CT80: na | CU80: na | CV80: -650 | CW80: na | CX80: na | CY80: na | CZ80: na | DA80: na | DB80: -879 | DC80: na | DD80: na | DE80: na | DF80: na | DG80: na | DH80: -1186 | DI80: na | DJ80: na | DK80: na | DL80: na | DM80: na | DN80: 4.285 | DO80: na | DP80: 13.935 | DQ80: 3.489 | DR80: 13.86 | DS80: 116.941 | DT80: 49.358 | DU80: na | DV80: 0.372
A81: N | B81: N | C81: 3 | D81: 15 | E81: 5 | F81: 20 | G81: NN315520 | H81: 6228.73 | I81: 20 | J81: na | K81: na | L81: na | M81: na | N81: na | O81: 1 | P81: na | Q81: na | R81: na | S81: 6 | T81: na | U81: na | V81: na | W81: 1 | X81: na | Y81: 7 | Z81: 0 | AA81: 1 | AB81: na | AC81: na | AD81: 1 | AE81: 3 | AF81: na | AG81: na | AH81: na | AI81: na | AJ81: na | AK81: na | AL81: na | AM81: na | AN81: na | AO81: na | AP81: 83.5 | AQ81: na | AR81: na | AS81: na | AT81: 99.2 | AU81: na | AV81: na | AW81: na | AX81: 81 | AY81: na | AZ81: 98.5 | BA81: 0 | BB81: 35.4 | BC81: na | BD81: na | BE81: 25.4 | BF81: 87.5 | BG81: na | BH81: na | BI81: na | BJ81: na | BK81: na | BL81: na | BM81: na | BN81: na | BO81: na | BP81: na | BQ81: -9 | BR81: na | BS81: na | BT81: na | BU81: 10 | BV81: na | BW81: na | BX81: na | BY81: -14 | BZ81: na | CA81: 443 | CB81: 0 | CC81: -13 | CD81: na | CE81: 0 | CF81: -9 | CG81: 1 | CH81: na | CI81: na | CJ81: na | CK81: na | CL81: na | CM81: na | CN81: na | CO81: na | CP81: na | CQ81: na | CR81: na | CS81: na | CT81: na | CU81: na | CV81: -650 | CW81: na | CX81: na | CY81: na | CZ81: na | DA81: na | DB81: -879 | DC81: na | DD81: na | DE81: na | DF81: na | DG81: na | DH81: -1186 | DI81: na | DJ81: na | DK81: na | DL81: na | DM81: na | DN81: 4.285 | DO81: na | DP81: 13.935 | DQ81: 3.489 | DR81: 13.86 | DS81: 116.941 | DT81: 49.358 | DU81: na | DV81: 0.372
A82: N | B82: N | C82: 1 | D82: 30 | E82: 5 | F82: 20 | G82: NN130520 | H82: 9924.77 | I82: 32 | J82: na | K82: na | L82: na | M82: na | N82: na | O82: 1 | P82: na | Q82: na | R82: na | S82: 9 | T82: na | U82: na | V82: na | W82: 2 | X82: na | Y82: 13 | Z82: 0 | AA82: 2 | AB82: na | AC82: na | AD82: 1 | AE82: 4 | AF82: na | AG82: na | AH82: na | AI82: na | AJ82: na | AK82: na | AL82: na | AM82: na | AN82: na | AO82: na | AP82: 95 | AQ82: na | AR82: na | AS82: na | AT82: 98.8 | AU82: na | AV82: na | AW82: na | AX82: 60.6 | AY82: na | AZ82: 84.6 | BA82: 0 | BB82: 28.2 | BC82: na | BD82: na | BE82: 37.9 | BF82: 98.1 | BG82: na | BH82: na | BI82: na | BJ82: na | BK82: na | BL82: na | BM82: na | BN82: na | BO82: na | BP82: na | BQ82: 32 | BR82: na | BS82: na | BT82: na | BU82: 87 | BV82: na | BW82: na | BX82: na | BY82: -14 | BZ82: na | CA82: -25 | CB82: 0 | CC82: -21 | CD82: na | CE82: 0 | CF82: -24 | CG82: 48 | CH82: na | CI82: na | CJ82: na | CK82: na | CL82: na | CM82: na | CN82: na | CO82: na | CP82: na | CQ82: na | CR82: na | CS82: na | CT82: na | CU82: na | CV82: -1031 | CW82: na | CX82: na | CY82: na | CZ82: -349 | DA82: na | DB82: -3217 | DC82: na | DD82: -31 | DE82: na | DF82: na | DG82: na | DH82: -2376 | DI82: na | DJ82: na | DK82: na | DL82: na | DM82: na | DN82: 4.273 | DO82: na | DP82: 21.238 | DQ82: 9.077 | DR82: 4.256 | DS82: 247.523 | DT82: 6.041 | DU82: na | DV82: 0.313
A83: N | B83: N | C83: 3 | D83: 30 | E83: 5 | F83: 20 | G83: NN330520 | H83: 10088.6 | I83: 38 | J83: na | K83: na | L83: na | M83: na | N83: na | O83: 3 | P83: na | Q83: na | R83: na | S83: 10 | T83: na | U83: na | V83: na | W83: 3 | X83: na | Y83: 14 | Z83: 0 | AA83: 3 | AB83: na | AC83: na | AD83: 1 | AE83: 4 | AF83: na | AG83: na | AH83: na | AI83: na | AJ83: na | AK83: na | AL83: na | AM83: na | AN83: na | AO83: na | AP83: 50.3 | AQ83: na | AR83: na | AS83: na | AT83: 98.7 | AU83: na | AV83: na | AW83: na | AX83: 41.3 | AY83: na | AZ83: 79.8 | BA83: 0 | BB83: 19.1 | BC83: na | BD83: na | BE83: 46.5 | BF83: 99.1 | BG83: na | BH83: na | BI83: na | BJ83: na | BK83: na | BL83: na | BM83: na | BN83: na | BO83: na | BP83: na | BQ83: -2 | BR83: na | BS83: na | BT83: na | BU83: 0 | BV83: na | BW83: na | BX83: na | BY83: -17 | BZ83: na | CA83: -6 | CB83: 0 | CC83: -12 | CD83: na | CE83: 0 | CF83: -13 | CG83: 1031 | CH83: na | CI83: na | CJ83: na | CK83: na | CL83: na | CM83: na | CN83: na | CO83: na | CP83: na | CQ83: na | CR83: -5 | CS83: na | CT83: na | CU83: na | CV83: -113 | CW83: na | CX83: na | CY83: na | CZ83: -8 | DA83: na | DB83: -14 | DC83: na | DD83: -20 | DE83: na | DF83: na | DG83: na | DH83: -2500 | DI83: na | DJ83: na | DK83: na | DL83: na | DM83: na | DN83: 4.278 | DO83: na | DP83: 27.468 | DQ83: 66.711 | DR83: 3.249 | DS83: 40.888 | DT83: 5.891 | DU83: na | DV83: 0.301
A84: N | B84: N | C84: 1 | D84: 5 | E84: 10 | F84: 20 | G84: NN151020 | H84: 1121 | I84: 7 | J84: na | K84: na | L84: na | M84: na | N84: na | O84: 1 | P84: na | Q84: na | R84: na | S84: 1 | T84: na | U84: na | V84: na | W84: 1 | X84: na | Y84: 2 | Z84: 0 | AA84: 1 | AB84: na | AC84: na | AD84: 1 | AE84: 1 | AF84: na | AG84: na | AH84: na | AI84: na | AJ84: na | AK84: na | AL84: na | AM84: na | AN84: na | AO84: na | AP84: 15.7 | AQ84: na | AR84: na | AS84: na | AT84: 100 | AU84: na | AV84: na | AW84: na | AX84: 13.8 | AY84: na | AZ84: 61.9 | BA84: 0 | BB84: 6.4 | BC84: na | BD84: na | BE84: 4.9 | BF84: 44.1 | BG84: na | BH84: na | BI84: na | BJ84: na | BK84: na | BL84: na | BM84: na | BN84: na | BO84: na | BP84: na | BQ84: 4 | BR84: na | BS84: na | BT84: na | BU84: 656 | BV84: na | BW84: na | BX84: na | BY84: 0 | BZ84: na | CA84: 10 | CB84: 0 | CC84: 1 | CD84: na | CE84: 0 | CF84: -4 | CG84: 3 | CH84: na | CI84: na | CJ84: na | CK84: na | CL84: na | CM84: na | CN84: na | CO84: na | CP84: na | CQ84: na | CR84: na | CS84: na | CT84: na | CU84: na | CV84: na | CW84: na | CX84: na | CY84: na | CZ84: na | DA84: na | DB84: -231 | DC84: na | DD84: na | DE84: na | DF84: na | DG84: na | DH84: 0 | DI84: na | DJ84: na | DK84: na | DL84: na | DM84: na | DN84: 4.283 | DO84: na | DP84: 10.957 | DQ84: 2.634 | DR84: 3.471 | DS84: 39.041 | DT84: 6.973 | DU84: na | DV84: 0.308
A85: N | B85: N | C85: 3 | D85: 5 | E85: 10 | F85: 20 | G85: NN351020 | H85: 1121 | I85: 7 | J85: na | K85: na | L85: na | M85: na | N85: na | O85: 1 | P85: na | Q85: na | R85: na | S85: 1 | T85: na | U85: na | V85: na | W85: 1 | X85: na | Y85: 2 | Z85: 0 | AA85: 1 | AB85: na | AC85: na | AD85: 1 | AE85: 1 | AF85: na | AG85: na | AH85: na | AI85: na | AJ85: na | AK85: na | AL85: na | AM85: na | AN85: na | AO85: na | AP85: 15.7 | AQ85: na | AR85: na | AS85: na | AT85: 100 | AU85: na | AV85: na | AW85: na | AX85: 13.8 | AY85: na | AZ85: 61.9 | BA85: 0 | BB85: 6.4 | BC85: na | BD85: na | BE85: 4.9 | BF85: 44.1 | BG85: na | BH85: na | BI85: na | BJ85: na | BK85: na | BL85: na | BM85: na | BN85: na | BO85: na | BP85: na | BQ85: 4 | BR85: na | BS85: na | BT85: na | BU85: 656 | BV85: na | BW85: na | BX85: na | BY85: 0 | BZ85: na | CA85: 10 | CB85: 0 | CC85: 1 | CD85: na | CE85: 0 | CF85: -4 | CG85: 3 | CH85: na | CI85: na | CJ85: na | CK85: na | CL85: na | CM85: na | CN85: na | CO85: na | CP85: na | CQ85: na | CR85: na | CS85: na | CT85: na | CU85: na | CV85: na | CW85: na | CX85: na | CY85: na | CZ85: na | DA85: na | DB85: -231 | DC85: na | DD85: na | DE85: na | DF85: na | DG85: na | DH85: 0 | DI85: na | DJ85: na | DK85: na | DL85: na | DM85: na | DN85: 4.283 | DO85: na | DP85: 10.957 | DQ85: 2.634 | DR85: 3.471 | DS85: 39.041 | DT85: 6.973 | DU85: na | DV85: 0.308
A86: N | B86: N | C86: 1 | D86: 15 | E86: 10 | F86: 20 | G86: NN1151020 | H86: 6228.73 | I86: 20 | J86: na | K86: na | L86: na | M86: na | N86: na | O86: 1 | P86: na | Q86: na | R86: na | S86: 6 | T86: na | U86: na | V86: na | W86: 1 | X86: na | Y86: 7 | Z86: 0 | AA86: 1 | AB86: na | AC86: na | AD86: 1 | AE86: 3 | AF86: na | AG86: na | AH86: na | AI86: na | AJ86: na | AK86: na | AL86: na | AM86: na | AN86: na | AO86: na | AP86: 83.5 | AQ86: na | AR86: na | AS86: na | AT86: 99.2 | AU86: na | AV86: na | AW86: na | AX86: 81 | AY86: na | AZ86: 98.5 | BA86: 0 | BB86: 35.4 | BC86: na | BD86: na | BE86: 25.4 | BF86: 87.5 | BG86: na | BH86: na | BI86: na | BJ86: na | BK86: na | BL86: na | BM86: na | BN86: na | BO86: na | BP86: na | BQ86: -9 | BR86: na | BS86: na | BT86: na | BU86: 10 | BV86: na | BW86: na | BX86: na | BY86: -14 | BZ86: na | CA86: 443 | CB86: 0 | CC86: -13 | CD86: na | CE86: 0 | CF86: -9 | CG86: 1 | CH86: na | CI86: na | CJ86: na | CK86: na | CL86: na | CM86: na | CN86: na | CO86: na | CP86: na | CQ86: na | CR86: na | CS86: na | CT86: na | CU86: na | CV86: -650 | CW86: na | CX86: na | CY86: na | CZ86: na | DA86: na | DB86: -879 | DC86: na | DD86: na | DE86: na | DF86: na | DG86: na | DH86: -1186 | DI86: na | DJ86: na | DK86: na | DL86: na | DM86: na | DN86: 4.285 | DO86: na | DP86: 13.935 | DQ86: 3.489 | DR86: 13.86 | DS86: 116.941 | DT86: 49.358 | DU86: na | DV86: 0.372
A87: N | B87: N | C87: 3 | D87: 15 | E87: 10 | F87: 20 | G87: NN3151020 | H87: 6228.73 | I87: 20 | J87: na | K87: na | L87: na | M87: na | N87: na | O87: 1 | P87: na | Q87: na | R87: na | S87: 6 | T87: na | U87: na | V87: na | W87: 1 | X87: na | Y87: 7 | Z87: 0 | AA87: 1 | AB87: na | AC87: na | AD87: 1 | AE87: 3 | AF87: na | AG87: na | AH87: na | AI87: na | AJ87: na | AK87: na | AL87: na | AM87: na | AN87: na | AO87: na | AP87: 83.5 | AQ87: na | AR87: na | AS87: na | AT87: 99.2 | AU87: na | AV87: na | AW87: na | AX87: 81 | AY87: na | AZ87: 98.5 | BA87: 0 | BB87: 35.4 | BC87: na | BD87: na | BE87: 25.4 | BF87: 87.5 | BG87: na | BH87: na | BI87: na | BJ87: na | BK87: na | BL87: na | BM87: na | BN87: na | BO87: na | BP87: na | BQ87: -9 | BR87: na | BS87: na | BT87: na | BU87: 10 | BV87: na | BW87: na | BX87: na | BY87: -14 | BZ87: na | CA87: 443 | CB87: 0 | CC87: -13 | CD87: na | CE87: 0 | CF87: -9 | CG87: 1 | CH87: na | CI87: na | CJ87: na | CK87: na | CL87: na | CM87: na | CN87: na | CO87: na | CP87: na | CQ87: na | CR87: na | CS87: na | CT87: na | CU87: na | CV87: -650 | CW87: na | CX87: na | CY87: na | CZ87: na | DA87: na | DB87: -879 | DC87: na | DD87: na | DE87: na | DF87: na | DG87: na | DH87: -1186 | DI87: na | DJ87: na | DK87: na | DL87: na | DM87: na | DN87: 4.285 | DO87: na | DP87: 13.935 | DQ87: 3.489 | DR87: 13.86 | DS87: 116.941 | DT87: 49.358 | DU87: na | DV87: 0.372
A88: N | B88: N | C88: 1 | D88: 30 | E88: 10 | F88: 20 | G88: NN1301020 | H88: 13173.4 | I88: 39 | J88: na | K88: na | L88: na | M88: na | N88: na | O88: 1 | P88: na | Q88: na | R88: na | S88: 13 | T88: na | U88: na | V88: na | W88: 1 | X88: na | Y88: 15 | Z88: 0 | AA88: 1 | AB88: na | AC88: na | AD88: 1 | AE88: 7 | AF88: na | AG88: na | AH88: na | AI88: na | AJ88: na | AK88: na | AL88: na | AM88: na | AN88: na | AO88: na | AP88: 92.6 | AQ88: na | AR88: na | AS88: na | AT88: 98.4 | AU88: na | AV88: na | AW88: na | AX88: 98.9 | AY88: na | AZ88: 97.3 | BA88: 0 | BB88: 74.8 | BC88: na | BD88: na | BE88: 58.3 | BF88: 81.1 | BG88: na | BH88: na | BI88: na | BJ88: na | BK88: na | BL88: na | BM88: na | BN88: na | BO88: na | BP88: na | BQ88: 14 | BR88: na | BS88: na | BT88: na | BU88: 152 | BV88: na | BW88: na | BX88: na | BY88: 182 | BZ88: na | CA88: -719 | CB88: 0 | CC88: -32 | CD88: na | CE88: 0 | CF88: -28 | CG88: -5 | CH88: na | CI88: na | CJ88: na | CK88: na | CL88: na | CM88: na | CN88: na | CO88: na | CP88: na | CQ88: na | CR88: na | CS88: na | CT88: na | CU88: na | CV88: -834 | CW88: na | CX88: na | CY88: na | CZ88: na | DA88: na | DB88: -719 | DC88: na | DD88: na | DE88: na | DF88: na | DG88: na | DH88: -26 | DI88: na | DJ88: na | DK88: na | DL88: na | DM88: na | DN88: 4.277 | DO88: na | DP88: 31.47 | DQ88: 2.37 | DR88: 308.595 | DS88: 186.171 | DT88: 11.819 | DU88: na | DV88: 0.648
A89: N | B89: N | C89: 3 | D89: 30 | E89: 10 | F89: 20 | G89: NN3301020 | H89: 13225.8 | I89: 41 | J89: na | K89: na | L89: na | M89: na | N89: na | O89: 3 | P89: na | Q89: na | R89: na | S89: 12 | T89: na | U89: na | V89: na | W89: 2 | X89: na | Y89: 15 | Z89: 0 | AA89: 1 | AB89: na | AC89: na | AD89: 1 | AE89: 7 | AF89: na | AG89: na | AH89: na | AI89: na | AJ89: na | AK89: na | AL89: na | AM89: na | AN89: na | AO89: na | AP89: 60.4 | AQ89: na | AR89: na | AS89: na | AT89: 98.5 | AU89: na | AV89: na | AW89: na | AX89: 80.8 | AY89: na | AZ89: 97.8 | BA89: 0 | BB89: 75.2 | BC89: na | BD89: na | BE89: 48.7 | BF89: 74.8 | BG89: na | BH89: na | BI89: na | BJ89: na | BK89: na | BL89: na | BM89: na | BN89: na | BO89: na | BP89: na | BQ89: -2 | BR89: na | BS89: na | BT89: na | BU89: 106 | BV89: na | BW89: na | BX89: na | BY89: -1 | BZ89: na | CA89: -778 | CB89: 0 | CC89: 4 | CD89: na | CE89: 0 | CF89: -7 | CG89: -31 | CH89: na | CI89: na | CJ89: na | CK89: na | CL89: na | CM89: na | CN89: na | CO89: na | CP89: na | CQ89: na | CR89: -15 | CS89: na | CT89: na | CU89: na | CV89: -1000 | CW89: na | CX89: na | CY89: na | CZ89: -824 | DA89: na | DB89: -778 | DC89: na | DD89: na | DE89: na | DF89: na | DG89: na | DH89: -29 | DI89: na | DJ89: na | DK89: na | DL89: na | DM89: na | DN89: 4.278 | DO89: na | DP89: 23.542 | DQ89: 2.224 | DR89: 7.351 | DS89: 41.51 | DT89: 13.043 | DU89: na | DV89: 0.647
A90: N | B90: N | C90: 1 | D90: 5 | E90: 5 | F90: 40 | G90: NN15540 | H90: 1100 | I90: 8 | J90: na | K90: na | L90: na | M90: na | N90: na | O90: 1 | P90: na | Q90: na | R90: na | S90: 1 | T90: na | U90: na | V90: na | W90: 1 | X90: na | Y90: 2 | Z90: 0 | AA90: 1 | AB90: na | AC90: na | AD90: 1 | AE90: 1 | AF90: na | AG90: na | AH90: na | AI90: na | AJ90: na | AK90: na | AL90: na | AM90: na | AN90: na | AO90: na | AP90: 30.8 | AQ90: na | AR90: na | AS90: na | AT90: 100 | AU90: na | AV90: na | AW90: na | AX90: 27.4 | AY90: na | AZ90: 61 | BA90: 0 | BB90: 6.2 | BC90: na | BD90: na | BE90: 4.1 | BF90: 44.3 | BG90: na | BH90: na | BI90: na | BJ90: na | BK90: na | BL90: na | BM90: na | BN90: na | BO90: na | BP90: na | BQ90: -2 | BR90: na | BS90: na | BT90: na | BU90: 677 | BV90: na | BW90: na | BX90: na | BY90: -1 | BZ90: na | CA90: -4 | CB90: 0 | CC90: 0 | CD90: na | CE90: 0 | CF90: 0 | CG90: 1 | CH90: na | CI90: na | CJ90: na | CK90: na | CL90: na | CM90: na | CN90: na | CO90: na | CP90: na | CQ90: na | CR90: na | CS90: na | CT90: na | CU90: na | CV90: na | CW90: na | CX90: na | CY90: na | CZ90: na | DA90: na | DB90: -212 | DC90: na | DD90: na | DE90: na | DF90: na | DG90: na | DH90: 0 | DI90: na | DJ90: na | DK90: na | DL90: na | DM90: na | DN90: 4.308 | DO90: na | DP90: 8.818 | DQ90: 2.656 | DR90: 3.775 | DS90: 43.75 | DT90: 7.06 | DU90: na | DV90: 0.306
A91: N | B91: N | C91: 3 | D91: 5 | E91: 5 | F91: 40 | G91: NN35540 | H91: 1100 | I91: 8 | J91: na | K91: na | L91: na | M91: na | N91: na | O91: 1 | P91: na | Q91: na | R91: na | S91: 1 | T91: na | U91: na | V91: na | W91: 1 | X91: na | Y91: 2 | Z91: 0 | AA91: 1 | AB91: na | AC91: na | AD91: 1 | AE91: 1 | AF91: na | AG91: na | AH91: na | AI91: na | AJ91: na | AK91: na | AL91: na | AM91: na | AN91: na | AO91: na | AP91: 30.8 | AQ91: na | AR91: na | AS91: na | AT91: 100 | AU91: na | AV91: na | AW91: na | AX91: 27.4 | AY91: na | AZ91: 61 | BA91: 0 | BB91: 6.2 | BC91: na | BD91: na | BE91: 4.1 | BF91: 44.3 | BG91: na | BH91: na | BI91: na | BJ91: na | BK91: na | BL91: na | BM91: na | BN91: na | BO91: na | BP91: na | BQ91: -2 | BR91: na | BS91: na | BT91: na | BU91: 677 | BV91: na | BW91: na | BX91: na | BY91: -1 | BZ91: na | CA91: -4 | CB91: 0 | CC91: 0 | CD91: na | CE91: 0 | CF91: 0 | CG91: 1 | CH91: na | CI91: na | CJ91: na | CK91: na | CL91: na | CM91: na | CN91: na | CO91: na | CP91: na | CQ91: na | CR91: na | CS91: na | CT91: na | CU91: na | CV91: na | CW91: na | CX91: na | CY91: na | CZ91: na | DA91: na | DB91: -212 | DC91: na | DD91: na | DE91: na | DF91: na | DG91: na | DH91: 0 | DI91: na | DJ91: na | DK91: na | DL91: na | DM91: na | DN91: 4.308 | DO91: na | DP91: 8.818 | DQ91: 2.656 | DR91: 3.775 | DS91: 43.75 | DT91: 7.06 | DU91: na | DV91: 0.306
A92: N | B92: N | C92: 1 | D92: 15 | E92: 5 | F92: 40 | G92: NN115540 | H92: 5387.2 | I92: 21 | J92: na | K92: na | L92: na | M92: na | N92: na | O92: 1 | P92: na | Q92: na | R92: na | S92: 5 | T92: na | U92: na | V92: na | W92: 2 | X92: na | Y92: 7 | Z92: 0 | AA92: 1 | AB92: na | AC92: na | AD92: 1 | AE92: 4 | AF92: na | AG92: na | AH92: na | AI92: na | AJ92: na | AK92: na | AL92: na | AM92: na | AN92: na | AO92: na | AP92: 96.1 | AQ92: na | AR92: na | AS92: na | AT92: 99.4 | AU92: na | AV92: na | AW92: na | AX92: 67.7 | AY92: na | AZ92: 85.3 | BA92: 0 | BB92: 30.7 | BC92: na | BD92: na | BE92: 22.3 | BF92: 55 | BG92: na | BH92: na | BI92: na | BJ92: na | BK92: na | BL92: na | BM92: na | BN92: na | BO92: na | BP92: na | BQ92: 50 | BR92: na | BS92: na | BT92: na | BU92: 813 | BV92: na | BW92: na | BX92: na | BY92: 4 | BZ92: na | CA92: -11 | CB92: 0 | CC92: -25 | CD92: na | CE92: 0 | CF92: -1 | CG92: -3 | CH92: na | CI92: na | CJ92: na | CK92: na | CL92: na | CM92: na | CN92: na | CO92: na | CP92: na | CQ92: na | CR92: na | CS92: na | CT92: na | CU92: na | CV92: -1026 | CW92: na | CX92: na | CY92: na | CZ92: -498 | DA92: na | DB92: -114 | DC92: na | DD92: na | DE92: na | DF92: na | DG92: na | DH92: -16 | DI92: na | DJ92: na | DK92: na | DL92: na | DM92: na | DN92: 4.278 | DO92: na | DP92: 13.078 | DQ92: 2.133 | DR92: 4.687 | DS92: 283.576 | DT92: 7.171 | DU92: na | DV92: 0.364
A93: N | B93: N | C93: 3 | D93: 15 | E93: 5 | F93: 40 | G93: NN315540 | H93: 5474.13 | I93: 21 | J93: na | K93: na | L93: na | M93: na | N93: na | O93: 2 | P93: na | Q93: na | R93: na | S93: 5 | T93: na | U93: na | V93: na | W93: 2 | X93: na | Y93: 7 | Z93: 0 | AA93: 1 | AB93: na | AC93: na | AD93: 1 | AE93: 3 | AF93: na | AG93: na | AH93: na | AI93: na | AJ93: na | AK93: na | AL93: na | AM93: na | AN93: na | AO93: na | AP93: 77.1 | AQ93: na | AR93: na | AS93: na | AT93: 99.4 | AU93: na | AV93: na | AW93: na | AX93: 68.2 | AY93: na | AZ93: 86.7 | BA93: 0 | BB93: 31.1 | BC93: na | BD93: na | BE93: 22.3 | BF93: 73.5 | BG93: na | BH93: na | BI93: na | BJ93: na | BK93: na | BL93: na | BM93: na | BN93: na | BO93: na | BP93: na | BQ93: -2 | BR93: na | BS93: na | BT93: na | BU93: 727 | BV93: na | BW93: na | BX93: na | BY93: -11 | BZ93: na | CA93: -16 | CB93: 0 | CC93: -26 | CD93: na | CE93: 0 | CF93: -14 | CG93: -37 | CH93: na | CI93: na | CJ93: na | CK93: na | CL93: na | CM93: na | CN93: na | CO93: na | CP93: na | CQ93: na | CR93: -103 | CS93: na | CT93: na | CU93: na | CV93: -1105 | CW93: na | CX93: na | CY93: na | CZ93: -578 | DA93: na | DB93: -166 | DC93: na | DD93: na | DE93: na | DF93: na | DG93: na | DH93: -563 | DI93: na | DJ93: na | DK93: na | DL93: na | DM93: na | DN93: 4.271 | DO93: na | DP93: 14.34 | DQ93: 2.611 | DR93: 4.866 | DS93: 61.596 | DT93: 7.238 | DU93: na | DV93: 0.365
A94: N | B94: N | C94: 1 | D94: 30 | E94: 5 | F94: 40 | G94: NN130540 | H94: 9513.87 | I94: 31 | J94: na | K94: na | L94: na | M94: na | N94: na | O94: 1 | P94: na | Q94: na | R94: na | S94: 9 | T94: na | U94: na | V94: na | W94: 3 | X94: na | Y94: 12 | Z94: 0 | AA94: 1 | AB94: na | AC94: na | AD94: 1 | AE94: 4 | AF94: na | AG94: na | AH94: na | AI94: na | AJ94: na | AK94: na | AL94: na | AM94: na | AN94: na | AO94: na | AP94: 98 | AQ94: na | AR94: na | AS94: na | AT94: 98.8 | AU94: na | AV94: na | AW94: na | AX94: 81.1 | AY94: na | AZ94: 87.9 | BA94: 0 | BB94: 54.1 | BC94: na | BD94: na | BE94: 38.8 | BF94: 98 | BG94: na | BH94: na | BI94: na | BJ94: na | BK94: na | BL94: na | BM94: na | BN94: na | BO94: na | BP94: na | BQ94: 73 | BR94: na | BS94: na | BT94: na | BU94: 98 | BV94: na | BW94: na | BX94: na | BY94: -5 | BZ94: na | CA94: -10 | CB94: 0 | CC94: -13 | CD94: na | CE94: 0 | CF94: -53 | CG94: 8 | CH94: na | CI94: na | CJ94: na | CK94: na | CL94: na | CM94: na | CN94: na | CO94: na | CP94: na | CQ94: na | CR94: na | CS94: na | CT94: na | CU94: na | CV94: -1019 | CW94: na | CX94: na | CY94: na | CZ94: -587 | DA94: na | DB94: -52 | DC94: na | DD94: na | DE94: na | DF94: na | DG94: na | DH94: -2265 | DI94: na | DJ94: na | DK94: na | DL94: na | DM94: na | DN94: 4.287 | DO94: na | DP94: 18.694 | DQ94: 8.24 | DR94: 5.144 | DS94: 448.542 | DT94: 6.381 | DU94: na | DV94: 0.47
A95: N | B95: N | C95: 3 | D95: 30 | E95: 5 | F95: 40 | G95: NN330540 | H95: 9710.41 | I95: 35 | J95: na | K95: na | L95: na | M95: na | N95: na | O95: 3 | P95: na | Q95: na | R95: na | S95: 9 | T95: na | U95: na | V95: na | W95: 4 | X95: na | Y95: 12 | Z95: 0 | AA95: 2 | AB95: na | AC95: na | AD95: 1 | AE95: 4 | AF95: na | AG95: na | AH95: na | AI95: na | AJ95: na | AK95: na | AL95: na | AM95: na | AN95: na | AO95: na | AP95: 89.4 | AQ95: na | AR95: na | AS95: na | AT95: 98.8 | AU95: na | AV95: na | AW95: na | AX95: 60.7 | AY95: na | AZ95: 89.5 | BA95: 0 | BB95: 27.5 | BC95: na | BD95: na | BE95: 39.3 | BF95: 97.9 | BG95: na | BH95: na | BI95: na | BJ95: na | BK95: na | BL95: na | BM95: na | BN95: na | BO95: na | BP95: na | BQ95: 9 | BR95: na | BS95: na | BT95: na | BU95: 129 | BV95: na | BW95: na | BX95: na | BY95: 0 | BZ95: na | CA95: 28 | CB95: 0 | CC95: -9 | CD95: na | CE95: 0 | CF95: -2 | CG95: 36 | CH95: na | CI95: na | CJ95: na | CK95: na | CL95: na | CM95: na | CN95: na | CO95: na | CP95: na | CQ95: na | CR95: -106 | CS95: na | CT95: na | CU95: na | CV95: -998 | CW95: na | CX95: na | CY95: na | CZ95: -679 | DA95: na | DB95: -64 | DC95: na | DD95: 13 | DE95: na | DF95: na | DG95: na | DH95: -2323 | DI95: na | DJ95: na | DK95: na | DL95: na | DM95: na | DN95: 4.278 | DO95: na | DP95: 20.723 | DQ95: 8.155 | DR95: 3.397 | DS95: 83.829 | DT95: 6.422 | DU95: na | DV95: 0.312
A96: N | B96: N | C96: 1 | D96: 5 | E96: 10 | F96: 40 | G96: NN151040 | H96: 1100 | I96: 7 | J96: na | K96: na | L96: na | M96: na | N96: na | O96: 1 | P96: na | Q96: na | R96: na | S96: 1 | T96: na | U96: na | V96: na | W96: 1 | X96: na | Y96: 2 | Z96: 0 | AA96: 1 | AB96: na | AC96: na | AD96: 1 | AE96: 1 | AF96: na | AG96: na | AH96: na | AI96: na | AJ96: na | AK96: na | AL96: na | AM96: na | AN96: na | AO96: na | AP96: 30.8 | AQ96: na | AR96: na | AS96: na | AT96: 100 | AU96: na | AV96: na | AW96: na | AX96: 27.4 | AY96: na | AZ96: 61 | BA96: 0 | BB96: 6.2 | BC96: na | BD96: na | BE96: 4.1 | BF96: 44.3 | BG96: na | BH96: na | BI96: na | BJ96: na | BK96: na | BL96: na | BM96: na | BN96: na | BO96: na | BP96: na | BQ96: -2 | BR96: na | BS96: na | BT96: na | BU96: 677 | BV96: na | BW96: na | BX96: na | BY96: -1 | BZ96: na | CA96: -4 | CB96: 0 | CC96: 0 | CD96: na | CE96: 0 | CF96: 0 | CG96: 1 | CH96: na | CI96: na | CJ96: na | CK96: na | CL96: na | CM96: na | CN96: na | CO96: na | CP96: na | CQ96: na | CR96: na | CS96: na | CT96: na | CU96: na | CV96: na | CW96: na | CX96: na | CY96: na | CZ96: na | DA96: na | DB96: -212 | DC96: na | DD96: na | DE96: na | DF96: na | DG96: na | DH96: 0 | DI96: na | DJ96: na | DK96: na | DL96: na | DM96: na | DN96: 4.308 | DO96: na | DP96: 8.818 | DQ96: 2.656 | DR96: 3.775 | DS96: 43.75 | DT96: 7.06 | DU96: na | DV96: 0.306
A97: N | B97: N | C97: 3 | D97: 5 | E97: 10 | F97: 40 | G97: NN351040 | H97: 1100 | I97: 7 | J97: na | K97: na | L97: na | M97: na | N97: na | O97: 1 | P97: na | Q97: na | R97: na | S97: 1 | T97: na | U97: na | V97: na | W97: 1 | X97: na | Y97: 2 | Z97: 0 | AA97: 1 | AB97: na | AC97: na | AD97: 1 | AE97: 1 | AF97: na | AG97: na | AH97: na | AI97: na | AJ97: na | AK97: na | AL97: na | AM97: na | AN97: na | AO97: na | AP97: 30.8 | AQ97: na | AR97: na | AS97: na | AT97: 100 | AU97: na | AV97: na | AW97: na | AX97: 27.4 | AY97: na | AZ97: 61 | BA97: 0 | BB97: 6.2 | BC97: na | BD97: na | BE97: 4.1 | BF97: 44.3 | BG97: na | BH97: na | BI97: na | BJ97: na | BK97: na | BL97: na | BM97: na | BN97: na | BO97: na | BP97: na | BQ97: -2 | BR97: na | BS97: na | BT97: na | BU97: 677 | BV97: na | BW97: na | BX97: na | BY97: -1 | BZ97: na | CA97: -4 | CB97: 0 | CC97: 0 | CD97: na | CE97: 0 | CF97: 0 | CG97: 1 | CH97: na | CI97: na | CJ97: na | CK97: na | CL97: na | CM97: na | CN97: na | CO97: na | CP97: na | CQ97: na | CR97: na | CS97: na | CT97: na | CU97: na | CV97: na | CW97: na | CX97: na | CY97: na | CZ97: na | DA97: na | DB97: -212 | DC97: na | DD97: na | DE97: na | DF97: na | DG97: na | DH97: 0 | DI97: na | DJ97: na | DK97: na | DL97: na | DM97: na | DN97: 4.308 | DO97: na | DP97: 8.818 | DQ97: 2.656 | DR97: 3.775 | DS97: 43.75 | DT97: 7.06 | DU97: na | DV97: 0.306
A98: N | B98: N | C98: 1 | D98: 15 | E98: 10 | F98: 40 | G98: NN1151040 | H98: 5387.2 | I98: 21 | J98: na | K98: na | L98: na | M98: na | N98: na | O98: 1 | P98: na | Q98: na | R98: na | S98: 5 | T98: na | U98: na | V98: na | W98: 2 | X98: na | Y98: 7 | Z98: 0 | AA98: 1 | AB98: na | AC98: na | AD98: 1 | AE98: 4 | AF98: na | AG98: na | AH98: na | AI98: na | AJ98: na | AK98: na | AL98: na | AM98: na | AN98: na | AO98: na | AP98: 96.1 | AQ98: na | AR98: na | AS98: na | AT98: 99.4 | AU98: na | AV98: na | AW98: na | AX98: 67.7 | AY98: na | AZ98: 85.3 | BA98: 0 | BB98: 30.7 | BC98: na | BD98: na | BE98: 22.3 | BF98: 55 | BG98: na | BH98: na | BI98: na | BJ98: na | BK98: na | BL98: na | BM98: na | BN98: na | BO98: na | BP98: na | BQ98: 50 | BR98: na | BS98: na | BT98: na | BU98: 813 | BV98: na | BW98: na | BX98: na | BY98: 4 | BZ98: na | CA98: -11 | CB98: 0 | CC98: -25 | CD98: na | CE98: 0 | CF98: -1 | CG98: -3 | CH98: na | CI98: na | CJ98: na | CK98: na | CL98: na | CM98: na | CN98: na | CO98: na | CP98: na | CQ98: na | CR98: na | CS98: na | CT98: na | CU98: na | CV98: -1026 | CW98: na | CX98: na | CY98: na | CZ98: -498 | DA98: na | DB98: -114 | DC98: na | DD98: na | DE98: na | DF98: na | DG98: na | DH98: -16 | DI98: na | DJ98: na | DK98: na | DL98: na | DM98: na | DN98: 4.278 | DO98: na | DP98: 13.078 | DQ98: 2.133 | DR98: 4.687 | DS98: 283.576 | DT98: 7.171 | DU98: na | DV98: 0.364
A99: N | B99: N | C99: 3 | D99: 15 | E99: 10 | F99: 40 | G99: NN3151040 | H99: 5474.13 | I99: 21 | J99: na | K99: na | L99: na | M99: na | N99: na | O99: 2 | P99: na | Q99: na | R99: na | S99: 5 | T99: na | U99: na | V99: na | W99: 2 | X99: na | Y99: 7 | Z99: 0 | AA99: 1 | AB99: na | AC99: na | AD99: 1 | AE99: 3 | AF99: na | AG99: na | AH99: na | AI99: na | AJ99: na | AK99: na | AL99: na | AM99: na | AN99: na | AO99: na | AP99: 77.1 | AQ99: na | AR99: na | AS99: na | AT99: 99.4 | AU99: na | AV99: na | AW99: na | AX99: 68.2 | AY99: na | AZ99: 86.7 | BA99: 0 | BB99: 31.1 | BC99: na | BD99: na | BE99: 22.3 | BF99: 73.5 | BG99: na | BH99: na | BI99: na | BJ99: na | BK99: na | BL99: na | BM99: na | BN99: na | BO99: na | BP99: na | BQ99: -2 | BR99: na | BS99: na | BT99: na | BU99: 727 | BV99: na | BW99: na | BX99: na | BY99: -11 | BZ99: na | CA99: -16 | CB99: 0 | CC99: -26 | CD99: na | CE99: 0 | CF99: -14 | CG99: -37 | CH99: na | CI99: na | CJ99: na | CK99: na | CL99: na | CM99: na | CN99: na | CO99: na | CP99: na | CQ99: na | CR99: -103 | CS99: na | CT99: na | CU99: na | CV99: -1105 | CW99: na | CX99: na | CY99: na | CZ99: -578 | DA99: na | DB99: -166 | DC99: na | DD99: na | DE99: na | DF99: na | DG99: na | DH99: -563 | DI99: na | DJ99: na | DK99: na | DL99: na | DM99: na | DN99: 4.271 | DO99: na | DP99: 14.34 | DQ99: 2.611 | DR99: 4.866 | DS99: 61.596 | DT99: 7.238 | DU99: na | DV99: 0.365
A100: N | B100: N | C100: 1 | D100: 30 | E100: 10 | F100: 40 | G100: NN1301040 | H100: 12203.2 | I100: 40 | J100: na | K100: na | L100: na | M100: na | N100: na | O100: 1 | P100: na | Q100: na | R100: na | S100: 12 | T100: na | U100: na | V100: na | W100: 3 | X100: na | Y100: 14 | Z100: 0 | AA100: 1 | AB100: na | AC100: na | AD100: 3 | AE100: 6 | AF100: na | AG100: na | AH100: na | AI100: na | AJ100: na | AK100: na | AL100: na | AM100: na | AN100: na | AO100: na | AP100: 98.3 | AQ100: na | AR100: na | AS100: na | AT100: 98.5 | AU100: na | AV100: na | AW100: na | AX100: 98.4 | AY100: na | AZ100: 96.8 | BA100: 0 | BB100: 69.2 | BC100: na | BD100: na | BE100: 18 | BF100: 87.3 | BG100: na | BH100: na | BI100: na | BJ100: na | BK100: na | BL100: na | BM100: na | BN100: na | BO100: na | BP100: na | BQ100: 63 | BR100: na | BS100: na | BT100: na | BU100: 218 | BV100: na | BW100: na | BX100: na | BY100: 177 | BZ100: na | CA100: -65 | CB100: 0 | CC100: -3 | CD100: na | CE100: 0 | CF100: -29 | CG100: -11 | CH100: na | CI100: na | CJ100: na | CK100: na | CL100: na | CM100: na | CN100: na | CO100: na | CP100: na | CQ100: na | CR100: na | CS100: na | CT100: na | CU100: na | CV100: -677 | CW100: na | CX100: na | CY100: na | CZ100: -1228 | DA100: na | DB100: -656 | DC100: na | DD100: na | DE100: na | DF100: na | DG100: -8 | DH100: -384 | DI100: na | DJ100: na | DK100: na | DL100: na | DM100: na | DN100: 4.281 | DO100: na | DP100: 10.398 | DQ100: 2.709 | DR100: 69.086 | DS100: 507.445 | DT100: 11.841 | DU100: na | DV100: 0.575
A101: N | B101: N | C101: 3 | D101: 30 | E101: 10 | F101: 40 | G101: NN3301040 | H101: 12347.3 | I101: 41 | J101: na | K101: na | L101: na | M101: na | N101: na | O101: 3 | P101: na | Q101: na | R101: na | S101: 12 | T101: na | U101: na | V101: na | W101: 3 | X101: na | Y101: 14 | Z101: 0 | AA101: 1 | AB101: na | AC101: na | AD101: 2 | AE101: 6 | AF101: na | AG101: na | AH101: na | AI101: na | AJ101: na | AK101: na | AL101: na | AM101: na | AN101: na | AO101: na | AP101: 95 | AQ101: na | AR101: na | AS101: na | AT101: 98.5 | AU101: na | AV101: na | AW101: na | AX101: 98.4 | AY101: na | AZ101: 97.8 | BA101: 0 | BB101: 70 | BC101: na | BD101: na | BE101: 25.9 | BF101: 87.3 | BG101: na | BH101: na | BI101: na | BJ101: na | BK101: na | BL101: na | BM101: na | BN101: na | BO101: na | BP101: na | BQ101: -6 | BR101: na | BS101: na | BT101: na | BU101: 91 | BV101: na | BW101: na | BX101: na | BY101: 71 | BZ101: na | CA101: 102 | CB101: 0 | CC101: -34 | CD101: na | CE101: 0 | CF101: 0 | CG101: -26 | CH101: na | CI101: na | CJ101: na | CK101: na | CL101: na | CM101: na | CN101: na | CO101: na | CP101: na | CQ101: na | CR101: -53 | CS101: na | CT101: na | CU101: na | CV101: -577 | CW101: na | CX101: na | CY101: na | CZ101: -1230 | DA101: na | DB101: -789 | DC101: na | DD101: na | DE101: na | DF101: na | DG101: -30 | DH101: -353 | DI101: na | DJ101: na | DK101: na | DL101: na | DM101: na | DN101: 4.28 | DO101: na | DP101: 11.084 | DQ101: 2.729 | DR101: 69.195 | DS101: 141.122 | DT101: 16.323 | DU101: na | DV101: 0.58
